{"text_format":"1","workbook":"xlsx","n_sheets":5,"sheets":["Cover_Sheet","SAP10_Inputs","SAP10_Results","Authorization","XMLSchema_Info"],"not_rendered":{"charts":0,"images":0,"macros":1,"external_links":0,"defined_names":1934,"comments":0,"pivot_tables":0},"unopened":[],"bounds":{"document_bytes":16777216,"sheet_cells":100000,"rows_first":2000,"rows_last":500,"rows_between":2000,"halvings":0,"cell_chars":16384,"cell_head_chars":4096},"cells_cut":0,"cells_raw":0,"read":"whole","date_system":"1900"}

{"sheet":"Cover_Sheet","index":0,"n_rows":67,"n_cols":1,"rows_kept":67,"cut":false,"hidden":false,"merged":[]}
["The SAP10 Excel Workbook"]
[]
["Introduction"]
["This workbook runs Standard Assessment Procedure (SAP) 10.2 calculations."]
["SAP 10 is the Standard Assessment Procedure version 10, the UK Government's energy calculation method for building regulations and Energy Performance Certificates for new and existing dwellings."]
["SAP 10 is developed and published by the Building Research Establishment:"]
["https://bregroup.com/expertise/energy/sap/sap10"]
[]
["Quick Start"]
["Enable Macros in this workbook."]
["Right click anywhere and choose \"Run SAP10 calculation\" at the bottom of the menu."]
["Congratulations, you just ran a SAP10 calculation."]
["You can see the results in the \"SAP10_Results\" worksheet."]
[]
["How does this work?"]
["1. The user edits the input values in the \"SAP10_Inputs\" worksheet."]
["2. The user runs a SAP 10 calculation (right click then \"Run SAP10 calcuation\")"]
["3. The values in the \"SAP10_Inputs\" worksheet are read."]
["4. These model inputs are sent to the online SAP10 API at netzeroapis.com."]
["5. The SAP10 API runs the calculation and returns the results."]
["6. The results are placed in the \"SAP10_Results\" worksheet."]
[]
["What to do when it goes wrong?"]
["SAP10 is a complex process with lots of edge cases, so it is very likely things will go wrong at times."]
["If this happens, please contact the author Steven Firth at s.k.firth@lboro.ac.uk."]
[]
["Contact"]
["Please contact me with any questions and feature requests."]
["Author: Steven Firth"]
["s.k.firth@lboro.ac.uk"]
["https://www.stevenfirth.com/"]
[]
["Further information"]
["Please see:"]
["https://www.stevenfirth.com/tag/sap10/"]
["https://netzeroapis.com/"]
[]
["Terms and Conditions"]
["https://opensource.org/license/mit"]
["\"The software is provided 'as is', without warranty of any kind, express or implied, including but not limited to the warranties of merchantability, fitness for a particular purpose and noninfringement. In no event shall the authors or copyright holders be liable for any claim, damages or other liability, whether in an action of contract, tort or otherwise, arising from, out of or in connection with the software or the use or other dealings in the software.\""]
[]
["FAQs"]
[]
["What is the input format?"]
["The format of the \"SAP10_Inputs\" worksheet is based on the SAP XML input format. The link to the official SAP10 XML schema is:"]
["https://github.com/communitiesuk/epb-register-api/tree/master/api/schemas/xml/SAP-Schema-19.1.0/SAP"]
["The \"SAP10_Inputs\" worksheet is dynamic and can change based on the XML it is representing."]
["Use the \"Load SAP XML file\" option in the right-click menu to upload a new SAP XML file into the \"SAP10_Inputs\" worksheet."]
["See also this online help documentation for SAP10 XML files:"]
["https://stevenkfirth.github.io/sap10calcs/sap_schema_19_1_0.html"]
[]
["Are there any more details about the SAP calculation itself?"]
["Yes, please see the details at:"]
["https://netzeroapis.com/redoc#tag/calc-APIs/operation/sap10_calc_sap10_post"]
[]
["What is the \"Authorization\" worksheet?"]
["If you have an API authorization token for netzeroapis.com, this can be entered here."]
["For more information see:"]
["https://netzeroapis.com/redoc#section/Authorization"]
[]
["Why does the SAP calculation take so long to run?"]
["The SAP calculation itself is fast with the API returning the results in a fraction of a second."]
["However it takes a second or two to load the results into the cells of the \"SAP10_Results\" worksheet."]
[]
["What is the \"XMLSchema_Info\" worksheet?"]
["This contains information which has been extracted from the SAP-Schema-19.1.0 XML schema files."]
["This is for internal use only, when loading a SAP XML file in the \"SAP10_Inputs\" worksheet."]

{"sheet":"SAP10_Inputs","index":1,"n_rows":111,"n_cols":17,"rows_kept":111,"cut":false,"hidden":false,"merged":[]}
["SAP10_Inputs"]
["Calculation method",null,null,null,null,null,null,null,null,null,null,null,null,"Energy rating","New dwelling as designed - dwelling emissions"]
[null,null,null,null,null,null,null,null,null,null,null,null,null,null,"Energy rating"]
["Year",null,null,null,null,null,null,null,null,null,null,null,null,2024,"EPC costs, emissions and primary energy"]
["Month (1 to 12)",null,null,null,null,null,null,null,null,null,null,null,null,11]
["Day",null,null,null,null,null,null,null,null,null,null,null,null,27]
[]
[null,null,null,null,null,null,null,null,null,null,"--- OPENING XML TAG ---","--- XPATH ---","--- XML ATTRIBUTES---","Input Data","--- CLOSING XML TAG ---",null,"Variable Description"]
[null,"<SAP-Report>",null,null,null,null,null,null,null,null,"<SAP-Report>","/SAP-Report[1]","xmlns=\"https://epbr.digital.communities.gov.uk/xsd/sap\"",null,null,null,"The SAP report corresponding to the compliance report. "]
[null,null,"<Schema-Version-Original>",null,null,null,null,null,null,null,"<Schema-Version-Original>","/SAP-Report[1]/Schema-Version-Original[1]",null,"SAP-Schema-19.1.0","</Schema-Version-Original>",null,"The schema version that the data conformed to when it was lodged. "]
[null,null,"<SAP-Version>",null,null,null,null,null,null,null,"<SAP-Version>","/SAP-Report[1]/SAP-Version[1]",null,"10.2 -  SAP version 10.2, dated Oct 2020","</SAP-Version>",null,"SAP version that was used for the calculation. "]
[null,null,"<SAP10-Data>",null,null,null,null,null,null,null,"<SAP10-Data>","/SAP-Report[1]/SAP10-Data[1]",null,null,null,null," These are the specific data-items collected by the HI / EA needed to perform the SAP calculation."]
[null,null,null,"<Data-Type>",null,null,null,null,null,null,"<Data-Type>","/SAP-Report[1]/SAP10-Data[1]/Data-Type[1]",null,"1 -  new dwelling as designed","</Data-Type>",null,"Type of SAP data that has been collected. "]
[null,null,null,"<SAP-Property-Details>",null,null,null,null,null,null,"<SAP-Property-Details>","/SAP-Report[1]/SAP10-Data[1]/SAP-Property-Details[1]",null,null,null,null," Various measurements a particular Property."]
[null,null,null,null,"<Cold-Water-Source>",null,null,null,null,null,"<Cold-Water-Source>","/SAP-Report[1]/SAP10-Data[1]/SAP-Property-Details[1]/Cold-Water-Source[1]",null,"1 -  mains","</Cold-Water-Source>",null,"What is the cold water source? Either mains or header tank. "]
[null,null,null,null,"<Living-Area>",null,null,null,null,null,"<Living-Area>","/SAP-Report[1]/SAP10-Data[1]/SAP-Property-Details[1]/Living-Area[1]",null,30,"</Living-Area>",null,"The size of the living area in square metres. The living area is the room marked on a plan as the lounge or living room, or the largest public room (irrespective of usage by particular occupants), together with any rooms not separated from the lounge or living room by doors, and including any cupboards directly accessed from the lounge or living room. Living area does not, however, extend over more than one storey, even when stairs enter the living area directly. "]
[null,null,null,null,"<Windows-Overshading>",null,null,null,null,null,"<Windows-Overshading>","/SAP-Report[1]/SAP10-Data[1]/SAP-Property-Details[1]/Windows-Overshading[1]",null,"2 -  average or unknown","</Windows-Overshading>",null,"Average amount of overshading of windows. "]
[null,null,null,null,"<SAP-Building-Parts>",null,null,null,null,null,"<SAP-Building-Parts>","/SAP-Report[1]/SAP10-Data[1]/SAP-Property-Details[1]/SAP-Building-Parts[1]",null,null,null,null," Details of the significant building parts that comprise the main habitable building in the property. The main habitable area generally consists of a single main building but can over time be extended to include extensions such as new wings and additional storeys. For the purpose of calculating the overall Energy Assessment for the property details of each distinct Building Part, such as its construction, have to be gathered because different materials have different insulation ratings (obviously) which affects the overall rating."]
[null,null,null,null,null,"<SAP-Building-Part>",null,null,null,null,"<SAP-Building-Part>","/SAP-Report[1]/SAP10-Data[1]/SAP-Property-Details[1]/SAP-Building-Parts[1]/SAP-Building-Part[1]",null,null,null,null," A permanent structure that forms part of the Property and is built primarily for human habitation. A Building Part is usually made up of one or more Storey's and may contain a number of Internal Structural Features. An extension is also a Building Part."]
[null,null,null,null,null,null,"<Building-Part-Number>",null,null,null,"<Building-Part-Number>","/SAP-Report[1]/SAP10-Data[1]/SAP-Property-Details[1]/SAP-Building-Parts[1]/SAP-Building-Part[1]/Building-Part-Number[1]",null,1,"</Building-Part-Number>",null,"An integer value which uniquely identifies the building part in the property. The value \"1\" must be assigned to the main dwelling. "]
[null,null,null,null,null,null,"<SAP-Floor-Dimensions>",null,null,null,"<SAP-Floor-Dimensions>","/SAP-Report[1]/SAP10-Data[1]/SAP-Property-Details[1]/SAP-Building-Parts[1]/SAP-Building-Part[1]/SAP-Floor-Dimensions[1]",null,null,null,null," Storeys that make up a particular Building-Part."]
[null,null,null,null,null,null,null,"<SAP-Floor-Dimension>",null,null,"<SAP-Floor-Dimension>","/SAP-Report[1]/SAP10-Data[1]/SAP-Property-Details[1]/SAP-Building-Parts[1]/SAP-Building-Part[1]/SAP-Floor-Dimensions[1]/SAP-Floor-Dimension[1]",null,null,null,null," Various measurements for the floor of a particular storey."]
[null,null,null,null,null,null,null,null,"<Floor-Type>",null,"<Floor-Type>","/SAP-Report[1]/SAP10-Data[1]/SAP-Property-Details[1]/SAP-Building-Parts[1]/SAP-Building-Part[1]/SAP-Floor-Dimensions[1]/SAP-Floor-Dimension[1]/Floor-Type[1]",null,"2 -  ground floor","</Floor-Type>",null,"Type of floor (exposure). "]
[null,null,null,null,null,null,null,null,"<Storey>",null,"<Storey>","/SAP-Report[1]/SAP10-Data[1]/SAP-Property-Details[1]/SAP-Building-Parts[1]/SAP-Building-Part[1]/SAP-Floor-Dimensions[1]/SAP-Floor-Dimension[1]/Storey[1]",null,"0 -  Ground","</Storey>",null,"Building storey on which the floor is located. "]
[null,null,null,null,null,null,null,null,"<Total-Floor-Area>",null,"<Total-Floor-Area>","/SAP-Report[1]/SAP10-Data[1]/SAP-Property-Details[1]/SAP-Building-Parts[1]/SAP-Building-Part[1]/SAP-Floor-Dimensions[1]/SAP-Floor-Dimension[1]/Total-Floor-Area[1]",null,100,"</Total-Floor-Area>",null,"The total floor area of the storey in square metres. "]
[null,null,null,null,null,null,null,null,"<Storey-Height>",null,"<Storey-Height>","/SAP-Report[1]/SAP10-Data[1]/SAP-Property-Details[1]/SAP-Building-Parts[1]/SAP-Building-Part[1]/SAP-Floor-Dimensions[1]/SAP-Floor-Dimension[1]/Storey-Height[1]",null,3,"</Storey-Height>",null,"Average height of the storey in metres. "]
[null,null,null,null,null,null,null,null,"<Heat-Loss-Area>",null,"<Heat-Loss-Area>","/SAP-Report[1]/SAP10-Data[1]/SAP-Property-Details[1]/SAP-Building-Parts[1]/SAP-Building-Part[1]/SAP-Floor-Dimensions[1]/SAP-Floor-Dimension[1]/Heat-Loss-Area[1]",null,100,"</Heat-Loss-Area>",null,"The estimated total heat loss area for the floor in square metres. "]
[null,null,null,null,null,null,null,null,"<U-Value>",null,"<U-Value>","/SAP-Report[1]/SAP10-Data[1]/SAP-Property-Details[1]/SAP-Building-Parts[1]/SAP-Building-Part[1]/SAP-Floor-Dimensions[1]/SAP-Floor-Dimension[1]/U-Value[1]",null,0.5,"</U-Value>",null,"Heat loss floor U-value. "]
[null,null,null,null,null,null,null,null,null,null,null,null,null,null,"</SAP-Floor-Dimension>"]
[null,null,null,null,null,null,null,null,null,null,null,null,null,null,"</SAP-Floor-Dimensions>"]
[null,null,null,null,null,null,"<SAP-Walls>",null,null,null,"<SAP-Walls>","/SAP-Report[1]/SAP10-Data[1]/SAP-Property-Details[1]/SAP-Building-Parts[1]/SAP-Building-Part[1]/SAP-Walls[1]",null,null,null,null," Exposed walls that make up a particular Storey."]
[null,null,null,null,null,null,null,"<SAP-Wall>",null,null,"<SAP-Wall>","/SAP-Report[1]/SAP10-Data[1]/SAP-Property-Details[1]/SAP-Building-Parts[1]/SAP-Building-Part[1]/SAP-Walls[1]/SAP-Wall[1]",null,null,null,null," Various measurements for each wall of a particular storey."]
[null,null,null,null,null,null,null,null,"<Wall-Type>",null,"<Wall-Type>","/SAP-Report[1]/SAP10-Data[1]/SAP-Property-Details[1]/SAP-Building-Parts[1]/SAP-Building-Part[1]/SAP-Walls[1]/SAP-Wall[1]/Wall-Type[1]",null,"2 -  exposed wall","</Wall-Type>",null,"Type of wall (exposure). "]
[null,null,null,null,null,null,null,null,"<Total-Wall-Area>",null,"<Total-Wall-Area>","/SAP-Report[1]/SAP10-Data[1]/SAP-Property-Details[1]/SAP-Building-Parts[1]/SAP-Building-Part[1]/SAP-Walls[1]/SAP-Wall[1]/Total-Wall-Area[1]",null,120,"</Total-Wall-Area>",null,"Total wall area in square metres, inclusive of any openings. "]
[null,null,null,null,null,null,null,null,"<U-Value>",null,"<U-Value>","/SAP-Report[1]/SAP10-Data[1]/SAP-Property-Details[1]/SAP-Building-Parts[1]/SAP-Building-Part[1]/SAP-Walls[1]/SAP-Wall[1]/U-Value[1]",null,0.5,"</U-Value>",null,"Exposed wall U-value. "]
[null,null,null,null,null,null,null,null,"<Name>",null,"<Name>","/SAP-Report[1]/SAP10-Data[1]/SAP-Property-Details[1]/SAP-Building-Parts[1]/SAP-Building-Part[1]/SAP-Walls[1]/SAP-Wall[1]/Name[1]",null,"sap_wall_1_1","</Name>",null,"Unique name which identifies this wall within its storey. Can be just a number, e.g. \"1\". However, a wall cannot have the same name as an opening or a roof. "]
[null,null,null,null,null,null,null,null,null,null,null,null,null,null,"</SAP-Wall>"]
[null,null,null,null,null,null,null,null,null,null,null,null,null,null,"</SAP-Walls>"]
[null,null,null,null,null,null,"<SAP-Roofs>",null,null,null,"<SAP-Roofs>","/SAP-Report[1]/SAP10-Data[1]/SAP-Property-Details[1]/SAP-Building-Parts[1]/SAP-Building-Part[1]/SAP-Roofs[1]",null,null,null,null," Exposed roofs that make up a particular Building-Part."]
[null,null,null,null,null,null,null,"<SAP-Roof>",null,null,"<SAP-Roof>","/SAP-Report[1]/SAP10-Data[1]/SAP-Property-Details[1]/SAP-Building-Parts[1]/SAP-Building-Part[1]/SAP-Roofs[1]/SAP-Roof[1]",null,null,null,null," Various measurements for each exposed roof that makes up a particular Building-Part."]
[null,null,null,null,null,null,null,null,"<Total-Roof-Area>",null,"<Total-Roof-Area>","/SAP-Report[1]/SAP10-Data[1]/SAP-Property-Details[1]/SAP-Building-Parts[1]/SAP-Building-Part[1]/SAP-Roofs[1]/SAP-Roof[1]/Total-Roof-Area[1]",null,100,"</Total-Roof-Area>",null,"Total roof area in square metres, inclusive of any openings. "]
[null,null,null,null,null,null,null,null,"<U-Value>",null,"<U-Value>","/SAP-Report[1]/SAP10-Data[1]/SAP-Property-Details[1]/SAP-Building-Parts[1]/SAP-Building-Part[1]/SAP-Roofs[1]/SAP-Roof[1]/U-Value[1]",null,0.5,"</U-Value>",null,"Exposed roof U-value. "]
[null,null,null,null,null,null,null,null,"<Roof-Type>",null,"<Roof-Type>","/SAP-Report[1]/SAP10-Data[1]/SAP-Property-Details[1]/SAP-Building-Parts[1]/SAP-Building-Part[1]/SAP-Roofs[1]/SAP-Roof[1]/Roof-Type[1]",null,"2 -  exposed roof","</Roof-Type>",null," "]
[null,null,null,null,null,null,null,null,"<Name>",null,"<Name>","/SAP-Report[1]/SAP10-Data[1]/SAP-Property-Details[1]/SAP-Building-Parts[1]/SAP-Building-Part[1]/SAP-Roofs[1]/SAP-Roof[1]/Name[1]",null,"sap_roof_1_1","</Name>",null,"Unique name which identifies this roof. Can be just a number, e.g. \"1\". However, a roof cannot have the same name as a wall. "]
[null,null,null,null,null,null,null,null,null,null,null,null,null,null,"</SAP-Roof>"]
[null,null,null,null,null,null,null,null,null,null,null,null,null,null,"</SAP-Roofs>"]
[null,null,null,null,null,null,"<SAP-Openings>",null,null,null,"<SAP-Openings>","/SAP-Report[1]/SAP10-Data[1]/SAP-Property-Details[1]/SAP-Building-Parts[1]/SAP-Building-Part[1]/SAP-Openings[1]",null,null,null,null," Exposed openings that make up a particular Building-Part."]
[null,null,null,null,null,null,null,"<SAP-Opening>",null,null,"<SAP-Opening>","/SAP-Report[1]/SAP10-Data[1]/SAP-Property-Details[1]/SAP-Building-Parts[1]/SAP-Building-Part[1]/SAP-Openings[1]/SAP-Opening[1]",null,null,null,null," Various measurements for each exposed opening that makes up a particular Building-Part."]
[null,null,null,null,null,null,null,null,"<Type>",null,"<Type>","/SAP-Report[1]/SAP10-Data[1]/SAP-Property-Details[1]/SAP-Building-Parts[1]/SAP-Building-Part[1]/SAP-Openings[1]/SAP-Opening[1]/Type[1]",null,"sap_opening_type_1","</Type>",null,"The name of the SAP-Opening-Type for this opening. "]
[null,null,null,null,null,null,null,null,"<Height>",null,"<Height>","/SAP-Report[1]/SAP10-Data[1]/SAP-Property-Details[1]/SAP-Building-Parts[1]/SAP-Building-Part[1]/SAP-Openings[1]/SAP-Opening[1]/Height[1]",null,1.5,"</Height>",null,"The height of the opening in metres. If the Height field is used to record the opening area, set the Width to 1. "]
[null,null,null,null,null,null,null,null,"<Width>",null,"<Width>","/SAP-Report[1]/SAP10-Data[1]/SAP-Property-Details[1]/SAP-Building-Parts[1]/SAP-Building-Part[1]/SAP-Openings[1]/SAP-Opening[1]/Width[1]",null,5,"</Width>",null,"The width of the opening in metres. If the Width field is used to record the opening area, set the Height to 1. "]
[null,null,null,null,null,null,null,null,"<Location>",null,"<Location>","/SAP-Report[1]/SAP10-Data[1]/SAP-Property-Details[1]/SAP-Building-Parts[1]/SAP-Building-Part[1]/SAP-Openings[1]/SAP-Opening[1]/Location[1]",null,"sap_wall_1_1","</Location>",null,"Name of the wall or roof which contains the opening. "]
[null,null,null,null,null,null,null,null,"<Orientation>",null,"<Orientation>","/SAP-Report[1]/SAP10-Data[1]/SAP-Property-Details[1]/SAP-Building-Parts[1]/SAP-Building-Part[1]/SAP-Openings[1]/SAP-Opening[1]/Orientation[1]",null,"5 -  South","</Orientation>",null,"Compass direction in which the opening faces. "]
[null,null,null,null,null,null,null,null,null,null,null,null,null,null,"</SAP-Opening>"]
[null,null,null,null,null,null,null,null,null,null,null,null,null,null,"</SAP-Openings>"]
[null,null,null,null,null,null,"<SAP-Thermal-Bridges>",null,null,null,"<SAP-Thermal-Bridges>","/SAP-Report[1]/SAP10-Data[1]/SAP-Property-Details[1]/SAP-Building-Parts[1]/SAP-Building-Part[1]/SAP-Thermal-Bridges[1]",null,null,null,null," Thermal bridges that make up a particular Building-Part."]
[null,null,null,null,null,null,null,"<Thermal-Bridge-Code>",null,null,"<Thermal-Bridge-Code>","/SAP-Report[1]/SAP10-Data[1]/SAP-Property-Details[1]/SAP-Building-Parts[1]/SAP-Building-Part[1]/SAP-Thermal-Bridges[1]/Thermal-Bridge-Code[1]",null,"1 -  default","</Thermal-Bridge-Code>",null,"Code which indicates how the thermal bridge data has been recorded. "]
[null,null,null,null,null,null,null,null,null,null,null,null,null,null,"</SAP-Thermal-Bridges>"]
[null,null,null,null,null,null,null,null,null,null,null,null,null,null,"</SAP-Building-Part>"]
[null,null,null,null,null,null,null,null,null,null,null,null,null,null,"</SAP-Building-Parts>"]
[null,null,null,null,"<SAP-Opening-Types>",null,null,null,null,null,"<SAP-Opening-Types>","/SAP-Report[1]/SAP10-Data[1]/SAP-Property-Details[1]/SAP-Opening-Types[1]",null,null,null,null," Types of exposed openings that make up a particular property. Opening types are used to capture common features shared by multiple openings, to avoid having to record the same data explicitly for each opening."]
[null,null,null,null,null,"<SAP-Opening-Type>",null,null,null,null,"<SAP-Opening-Type>","/SAP-Report[1]/SAP10-Data[1]/SAP-Property-Details[1]/SAP-Opening-Types[1]/SAP-Opening-Type[1]",null,null,null,null," Various measurements for a particular type of exposed opening that makes up a particular property. Opening types are used to capture common features shared by multiple openings, to avoid having to record the same data explicitly for each opening."]
[null,null,null,null,null,null,"<Name>",null,null,null,"<Name>","/SAP-Report[1]/SAP10-Data[1]/SAP-Property-Details[1]/SAP-Opening-Types[1]/SAP-Opening-Type[1]/Name[1]",null,"sap_opening_type_1","</Name>",null,"Unique name which identifies this opening type. Can be just a number, e.g. \"1\". "]
[null,null,null,null,null,null,"<Type>",null,null,null,"<Type>","/SAP-Report[1]/SAP10-Data[1]/SAP-Property-Details[1]/SAP-Opening-Types[1]/SAP-Opening-Type[1]/Type[1]",null,"4 -  window","</Type>",null,"The (physical) type of opening that this opening type represents. "]
[null,null,null,null,null,null,"<Data-Source>",null,null,null,"<Data-Source>","/SAP-Report[1]/SAP10-Data[1]/SAP-Property-Details[1]/SAP-Opening-Types[1]/SAP-Opening-Type[1]/Data-Source[1]",null,"2 -  manufacturer declaration","</Data-Source>",null,"The source of the data for this type of opening. "]
[null,null,null,null,null,null,"<U-Value>",null,null,null,"<U-Value>","/SAP-Report[1]/SAP10-Data[1]/SAP-Property-Details[1]/SAP-Opening-Types[1]/SAP-Opening-Type[1]/U-Value[1]",null,1.5,"</U-Value>",null,"The U-value. For rooflights, the U-value should be in the horizontal plane. "]
[null,null,null,null,null,null,"<Glazing-Type>",null,null,null,"<Glazing-Type>","/SAP-Report[1]/SAP10-Data[1]/SAP-Property-Details[1]/SAP-Opening-Types[1]/SAP-Opening-Type[1]/Glazing-Type[1]",null,"3 -  double","</Glazing-Type>",null,"The type of glazing; if U-value is from BFRC or manufacturer declaration, give as one of - single - double - triple. "]
[null,null,null,null,null,null,null,null,null,null,null,null,null,null,"</SAP-Opening-Type>"]
[null,null,null,null,null,null,null,null,null,null,null,null,null,null,"</SAP-Opening-Types>"]
[null,null,null,null,"<SAP-Heating>",null,null,null,null,null,"<SAP-Heating>","/SAP-Report[1]/SAP10-Data[1]/SAP-Property-Details[1]/SAP-Heating[1]",null,null,null,null," Details of the means by which the Main Building is heated."]
[null,null,null,null,null,"<Has-Hot-Water-Cylinder>",null,null,null,null,"<Has-Hot-Water-Cylinder>","/SAP-Report[1]/SAP10-Data[1]/SAP-Property-Details[1]/SAP-Heating[1]/Has-Hot-Water-Cylinder[1]",null,"0 -  False","</Has-Hot-Water-Cylinder>",null,"Hot water cylinder? "]
[null,null,null,null,null,"<Thermal-Store>",null,null,null,null,"<Thermal-Store>","/SAP-Report[1]/SAP10-Data[1]/SAP-Property-Details[1]/SAP-Heating[1]/Thermal-Store[1]",null,"1 -  none","</Thermal-Store>",null,"The type of thermal store; not used if main heating system is community heating scheme. "]
[null,null,null,null,null,"<Secondary-Heating-Category>",null,null,null,null,"<Secondary-Heating-Category>","/SAP-Report[1]/SAP10-Data[1]/SAP-Property-Details[1]/SAP-Heating[1]/Secondary-Heating-Category[1]",null,"1 -  none","</Secondary-Heating-Category>",null,"Category of heating system for the secondary heating system. "]
[null,null,null,null,null,"<Water-Heating-Code>",null,null,null,null,"<Water-Heating-Code>","/SAP-Report[1]/SAP10-Data[1]/SAP-Property-Details[1]/SAP-Heating[1]/Water-Heating-Code[1]",null,901,"</Water-Heating-Code>",null,"The type of Water Heating present in the Property.  [see SAP document, Table 4a]"]
[null,null,null,null,null,"<Main-Heating-Details>",null,null,null,null,"<Main-Heating-Details>","/SAP-Report[1]/SAP10-Data[1]/SAP-Property-Details[1]/SAP-Heating[1]/Main-Heating-Details[1]",null,null,null,null," "]
[null,null,null,null,null,null,"<Main-Heating>",null,null,null,"<Main-Heating>","/SAP-Report[1]/SAP10-Data[1]/SAP-Property-Details[1]/SAP-Heating[1]/Main-Heating-Details[1]/Main-Heating[1]",null,null,null,null," "]
[null,null,null,null,null,null,null,"<Main-Heating-Number>",null,null,"<Main-Heating-Number>","/SAP-Report[1]/SAP10-Data[1]/SAP-Property-Details[1]/SAP-Heating[1]/Main-Heating-Details[1]/Main-Heating[1]/Main-Heating-Number[1]",null,1,"</Main-Heating-Number>",null,"Identifies the main heating as system 1 or system 2. System 1 must always be present, system 2 is included only when there are two systems. "]
[null,null,null,null,null,null,null,"<Main-Fuel-Type>",null,null,"<Main-Fuel-Type>","/SAP-Report[1]/SAP10-Data[1]/SAP-Property-Details[1]/SAP-Heating[1]/Main-Heating-Details[1]/Main-Heating[1]/Main-Fuel-Type[1]",null,"1 -  Gas: mains gas","</Main-Fuel-Type>",null,"The type of fuel used to power the central heating e.g. Gas, Electricity; not used if main heating system is community heating scheme. "]
[null,null,null,null,null,null,null,"<Main-Heating-Category>",null,null,"<Main-Heating-Category>","/SAP-Report[1]/SAP10-Data[1]/SAP-Property-Details[1]/SAP-Heating[1]/Main-Heating-Details[1]/Main-Heating[1]/Main-Heating-Category[1]",null,"2 -  boiler with radiators or underfloor heating","</Main-Heating-Category>",null,"Category of heating system for the main heating system. "]
[null,null,null,null,null,null,null,"<Main-Heating-Data-Source>",null,null,"<Main-Heating-Data-Source>","/SAP-Report[1]/SAP10-Data[1]/SAP-Property-Details[1]/SAP-Heating[1]/Main-Heating-Details[1]/Main-Heating[1]/Main-Heating-Data-Source[1]",null,"3 -  from SAP table","</Main-Heating-Data-Source>",null,"Source of main heating system data. "]
[null,null,null,null,null,null,null,"<Main-Heating-Code>",null,null,"<Main-Heating-Code>","/SAP-Report[1]/SAP10-Data[1]/SAP-Property-Details[1]/SAP-Heating[1]/Main-Heating-Details[1]/Main-Heating[1]/Main-Heating-Code[1]",null,104,"</Main-Heating-Code>",null,"Main heating code; when heating data source is SAP table.  [see SAP document, Table 4a or Table 4b]"]
[null,null,null,null,null,null,null,"<Is-Central-Heating-Pump-In-Heated-Space>",null,null,"<Is-Central-Heating-Pump-In-Heated-Space>","/SAP-Report[1]/SAP10-Data[1]/SAP-Property-Details[1]/SAP-Heating[1]/Main-Heating-Details[1]/Main-Heating[1]/Is-Central-Heating-Pump-In-Heated-Space[1]",null,"1 -  True","</Is-Central-Heating-Pump-In-Heated-Space>",null,"Central heating pump in heated space? Only when wet system (radiators or underfloor). "]
[null,null,null,null,null,null,null,"<Main-Heating-Fraction>",null,null,"<Main-Heating-Fraction>","/SAP-Report[1]/SAP10-Data[1]/SAP-Property-Details[1]/SAP-Heating[1]/Main-Heating-Details[1]/Main-Heating[1]/Main-Heating-Fraction[1]",null,1,"</Main-Heating-Fraction>",null,"Fraction of main heating provided by this system, is 1 if only one main system. "]
[null,null,null,null,null,null,null,"<Heat-Emitter-Type>",null,null,"<Heat-Emitter-Type>","/SAP-Report[1]/SAP10-Data[1]/SAP-Property-Details[1]/SAP-Heating[1]/Main-Heating-Details[1]/Main-Heating[1]/Heat-Emitter-Type[1]",null,"1 -  radiators","</Heat-Emitter-Type>",null,"Identifies the means by which the central heating system (if present) emits heat; only when wet system (radiators or underfloor). "]
[null,null,null,null,null,null,null,"<Main-Heating-Control>",null,null,"<Main-Heating-Control>","/SAP-Report[1]/SAP10-Data[1]/SAP-Property-Details[1]/SAP-Heating[1]/Main-Heating-Details[1]/Main-Heating[1]/Main-Heating-Control[1]",null,2106,"</Main-Heating-Control>",null,"Type of Main Control for the Heating System.  [see SAP document, Table 4e]"]
[null,null,null,null,null,null,null,"<Has-Separate-Delayed-Start>",null,null,"<Has-Separate-Delayed-Start>","/SAP-Report[1]/SAP10-Data[1]/SAP-Property-Details[1]/SAP-Heating[1]/Main-Heating-Details[1]/Main-Heating[1]/Has-Separate-Delayed-Start[1]",null,"0 -  False","</Has-Separate-Delayed-Start>",null,"True if there is a delayed start control separate from a controller in the database. "]
[null,null,null,null,null,null,null,"<Is-Interlocked-System>",null,null,"<Is-Interlocked-System>","/SAP-Report[1]/SAP10-Data[1]/SAP-Property-Details[1]/SAP-Heating[1]/Main-Heating-Details[1]/Main-Heating[1]/Is-Interlocked-System[1]",null,"0 -  False","</Is-Interlocked-System>",null,"Interlocked system? Only when wet system (radiators or underfloor). "]
[null,null,null,null,null,null,null,null,null,null,null,null,null,null,"</Main-Heating>"]
[null,null,null,null,null,null,null,null,null,null,null,null,null,null,"</Main-Heating-Details>"]
[null,null,null,null,null,null,null,null,null,null,null,null,null,null,"</SAP-Heating>"]
[null,null,null,null,"<SAP-Ventilation>",null,null,null,null,null,"<SAP-Ventilation>","/SAP-Report[1]/SAP10-Data[1]/SAP-Property-Details[1]/SAP-Ventilation[1]",null,null,null,null," Details of the means by which the building is ventilated"]
[null,null,null,null,null,"<Open-Chimneys-Count>",null,null,null,null,"<Open-Chimneys-Count>","/SAP-Report[1]/SAP10-Data[1]/SAP-Property-Details[1]/SAP-Ventilation[1]/Open-Chimneys-Count[1]",null,0,"</Open-Chimneys-Count>",null,"The number of Open Chimneys in the Property. "]
[null,null,null,null,null,"<Open-Flues-Count>",null,null,null,null,"<Open-Flues-Count>","/SAP-Report[1]/SAP10-Data[1]/SAP-Property-Details[1]/SAP-Ventilation[1]/Open-Flues-Count[1]",null,0,"</Open-Flues-Count>",null,"The number of Open Flues in the Property. "]
[null,null,null,null,null,"<Closed-Flues-Count>",null,null,null,null,"<Closed-Flues-Count>","/SAP-Report[1]/SAP10-Data[1]/SAP-Property-Details[1]/SAP-Ventilation[1]/Closed-Flues-Count[1]",null,0,"</Closed-Flues-Count>",null,"The number of Closed Flues or chimneys in the Property. "]
[null,null,null,null,null,"<Boilers-Flues-Count>",null,null,null,null,"<Boilers-Flues-Count>","/SAP-Report[1]/SAP10-Data[1]/SAP-Property-Details[1]/SAP-Ventilation[1]/Boilers-Flues-Count[1]",null,0,"</Boilers-Flues-Count>",null,"The number of Boiler Flues or chimneys in the Property. "]
[null,null,null,null,null,"<Other-Flues-Count>",null,null,null,null,"<Other-Flues-Count>","/SAP-Report[1]/SAP10-Data[1]/SAP-Property-Details[1]/SAP-Ventilation[1]/Other-Flues-Count[1]",null,0,"</Other-Flues-Count>",null,"The number of Other Flues or chimneys in the Property. "]
[null,null,null,null,null,"<Blocked-Chimneys-Count>",null,null,null,null,"<Blocked-Chimneys-Count>","/SAP-Report[1]/SAP10-Data[1]/SAP-Property-Details[1]/SAP-Ventilation[1]/Blocked-Chimneys-Count[1]",null,0,"</Blocked-Chimneys-Count>",null,"The number of Blocked Chimneys in the Property. "]
[null,null,null,null,null,"<Extract-Fans-Count>",null,null,null,null,"<Extract-Fans-Count>","/SAP-Report[1]/SAP10-Data[1]/SAP-Property-Details[1]/SAP-Ventilation[1]/Extract-Fans-Count[1]",null,0,"</Extract-Fans-Count>",null," "]
[null,null,null,null,null,"<PSV-Count>",null,null,null,null,"<PSV-Count>","/SAP-Report[1]/SAP10-Data[1]/SAP-Property-Details[1]/SAP-Ventilation[1]/PSV-Count[1]",null,0,"</PSV-Count>",null," "]
[null,null,null,null,null,"<Flueless-Gas-Fires-Count>",null,null,null,null,"<Flueless-Gas-Fires-Count>","/SAP-Report[1]/SAP10-Data[1]/SAP-Property-Details[1]/SAP-Ventilation[1]/Flueless-Gas-Fires-Count[1]",null,0,"</Flueless-Gas-Fires-Count>",null,"The number of flueless gas fires in the Property. "]
[null,null,null,null,null,"<Pressure-Test>",null,null,null,null,"<Pressure-Test>","/SAP-Report[1]/SAP10-Data[1]/SAP-Property-Details[1]/SAP-Ventilation[1]/Pressure-Test[1]",null,"2 -  yes (new dwelling, design value)","</Pressure-Test>",null,"Whether there has been a pressure test, or whether an assumed value is used for the air permeability. "]
[null,null,null,null,null,"<Air-Permeability>",null,null,null,null,"<Air-Permeability>","/SAP-Report[1]/SAP10-Data[1]/SAP-Property-Details[1]/SAP-Ventilation[1]/Air-Permeability[1]",null,3.5,"</Air-Permeability>",null,"Air permeability; only if pressure test (yes or assumed). "]
[null,null,null,null,null,"<Sheltered-Sides-Count>",null,null,null,null,"<Sheltered-Sides-Count>","/SAP-Report[1]/SAP10-Data[1]/SAP-Property-Details[1]/SAP-Ventilation[1]/Sheltered-Sides-Count[1]",null,2,"</Sheltered-Sides-Count>",null,"The number of sheltered sides in the Property. "]
[null,null,null,null,null,"<Ventilation-Type>",null,null,null,null,"<Ventilation-Type>","/SAP-Report[1]/SAP10-Data[1]/SAP-Property-Details[1]/SAP-Ventilation[1]/Ventilation-Type[1]",null,"1 -  natural with intermittent extract fans","</Ventilation-Type>",null,"The type of ventilation. "]
[null,null,null,null,null,null,null,null,null,null,null,null,null,null,"</SAP-Ventilation>"]
[null,null,null,null,"<SAP-Energy-Source>",null,null,null,null,null,"<SAP-Energy-Source>","/SAP-Report[1]/SAP10-Data[1]/SAP-Property-Details[1]/SAP-Energy-Source[1]",null,null,null,null," Details of the main Electricity supply to the Property."]
[null,null,null,null,null,"<Electricity-Tariff>",null,null,null,null,"<Electricity-Tariff>","/SAP-Report[1]/SAP10-Data[1]/SAP-Property-Details[1]/SAP-Energy-Source[1]/Electricity-Tariff[1]",null,"1 -  standard tariff","</Electricity-Tariff>",null,"Type of electricity tariff. "]
[null,null,null,null,null,null,null,null,null,null,null,null,null,null,"</SAP-Energy-Source>"]
[null,null,null,null,null,null,null,null,null,null,null,null,null,null,"</SAP-Property-Details>"]
[null,null,null,null,null,null,null,null,null,null,null,null,null,null,"</SAP10-Data>"]
[null,null,null,null,null,null,null,null,null,null,null,null,null,null,"</SAP-Report>"]

{"sheet":"SAP10_Results","index":2,"n_rows":131,"n_cols":235,"rows_kept":131,"cut":false,"hidden":false,"merged":[]}
["SAP WORKSHEET version 10.2 (21-03-2023)"]
[]
["SAP and RdSAP 10 software should generate a worksheet in a similar format to that shown in this section (including the item reference numbers) to facilitate checking of calculations and for use where intermediate results are required as inputs in an Appendix Q calculation."]
["This should be easily and immediately available to assessors via software interfaces."]
[]
[null,"1. Overall dwelling dimensions",null,null,null,null,null,null,null,null,null,null,null,"2. Ventilation rate",null,null,null,null,null,null,null,null,null,null,null,null,null,null,null,null,null,null,null,null,null,null,null,null,null,null,null,null,null,null,"3. Heat losses and heat loss parameter",null,null,null,null,null,null,null,null,null,null,null,null,null,null,null,null,null,null,null,null,null,null,null,null,null,null,null,null,null,null,null,null,null,"4. Water heating energy requirement",null,null,null,null,null,null,null,null,null,null,null,null,null,null,null,null,null,"5. Internal gains (see Tables 5 and 5a)",null,null,null,null,null,null,null,null,null,null,null,null,null,null,null,"6. Solar gains",null,null,null,null,null,null,null,null,null,null,null,null,null,null,null,"7. Mean internal temperature (heating season)",null,null,null,null,null,null,null,null,null,null,null,null,null,null,null,null,"8. Space heating requirement",null,null,null,null,null,null,null,null,null,null,null,null,null,null,null,null,"8c. Space cooling requirement",null,null,null,null,null,null,null,null,null,null,null,null,null,null,null,null,"8f. Fabric Energy Efficiency (calculated only under special conditions, see section 11)",null,null,null,null,null,"9a. Energy requirements – Individual heating systems including micro-CHP",null,null,null,null,null,null,null,null,null,null,null,null,null,null,null,null,"10a. Fuel costs – Individual heating systems including micro-CHP",null,null,null,null,null,null,null,null,null,"11a. SAP rating – Individual heating systems including micro-CHP",null,null,null,null,null,"12a. CO2 emissions – Individual heating systems including micro-CHP",null,null,null,null,null,null,null,null,"13a. Primary Energy – Individual heating systems including micro-CHP"]
[]
[null,null,null,null,"Area (m2)",null,null,"Average storey",null,null,"Volume (m3)",null,null,null,null,null,"main",null,"secondary",null,"other",null,"total",null,"m3 per",null,null,"Infiltration rate modified for monthly wind speed:",null,null,null,null,null,null,null,null,null,null,null,null,null,null,null,null,null,"Items in the table below are to be expanded as necessary to allow for all different types of element e.g. 4 wall types.",null,null,null,null,null,null,null,null,null,null,null,null,null,null,null,null,"Ventilation heat loss calculated monthly",null,null,null,null,null,"(38)m = 0.33 × (25)m × (5)",null,null,null,null,null,null,null,null,null,null,"Assumed occupancy, N",null,null,null,null,null,null,null,null,null,null,null,null,null,2.73952587507606,"(42)",null,null,"Metabolic gains (Table 5), watts",null,null,null,null,null,null,null,null,null,null,null,null,null,null,null,"Solar gains are calculated using solar flux from table U3 in Appendix U and associated equations to convert to the",null,null,null,null,null,null,null,null,null,null,null,null,null,null,null,"Temperature during heating periods in the living area from Table 9, Th1 (°C)",null,null,null,null,null,null,null,null,null,null,null,null,21,"(85)",null,null,"Set Ti to the mean internal temperature obtained at step 11 of Table 9b, so that Ti,m=(93)m and re-calculate",null,null,null,null,null,null,null,null,null,null,null,null,null,null,null,null,null,"Jan","Feb","Mar","Apr","May","Jun","Jul","Aug","Sep","Oct","Nov","Dec",null,null,null,null,"Fabric Energy Efficiency","(98a) ÷ (4) + (108) =",null,"(109)",null,null,"Space heating:",null,null,null,null,null,null,null,null,null,null,null,null,null,null,null,null,null,null,"Fuel required",null,"Fuel price",null,null,null,null,null,"Energy cost deflator (Table 12):",null,0.36,"(256)",null,null,null,"Energy",null,"Emission factor",null,"Emissions",null,null,null,null,"Energy",null,"PE factor",null,"Primary Energy"]
[null,null,null,null,null,null,null,"height (m)",null,null,null,null,null,null,null,null,"heating",null,"heating",null,null,null,null,null,"hour",null,null,"Monthly average wind speed from Table U2",null,null,null,null,null,null,null,null,null,null,null,null,null,null,null,null,null,"The κ-value is the heat capacity per unit area, see Table 1h",null,null,null,null,null,null,null,null,null,null,null,null,null,null,null,null,null,"Jan","Feb","Mar","Apr","May","Jun","Jul","Aug","Sep","Oct","Nov","Dec",null,null,null,null,null,"if TFA > 13.9, N = 1 + 1.76 × [1 - exp(-0.000349 × (TFA -13.9)2)] + 0.0013 × (TFA -13.9)",null,null,null,null,null,null,null,null,null,null,null,null,null,null,null,null,null,"Jan","Feb","Mar","Apr","May","Jun","Jul","Aug","Sep","Oct","Nov","Dec",null,null,null,"applicable orientation. Rows (74) to (82) are used 12 times, one for each month, repeating as needed if there is more",null,null,null,null,null,null,null,null,null,null,null,null,null,null,null,"Utilisation factor for gains for living area, η1,m (see Table 9a)",null,null,null,null,null,null,null,null,null,null,null,null,null,null,null,null,"the utilisation factor for gains using Table 9a",null,null,null,null,null,null,null,null,null,null,null,null,null,null,null,null,"Heat loss rate Lm (calculated using 24°C internal temp and external temp for the applicable climate (see Appendix U)",null,null,null,null,null,null,null,null,null,null,null,null,null,null,null,null,null,null,null,null,null,null,"Fraction of space heat from secondary/supplementary system (Table 11)         “0” if none",null,null,null,null,null,null,null,null,null,null,null,null,0,"(201)",null,null,null,null,"kWh/year",null,"(Table 12)",null,null,null,null,null,null,null,null,null,null,null,null,"kWh/year(a)",null,"kg CO2/kWh(b)",null,"kg CO2/year",null,null,null,null,"kWh/year(a)",null,"kWh/kWh(b)",null,"kWh/year"]
[null,null,"Basement",null,null,"(1a)","×",null,"(2a)","=",null,"(3a)",null,null,"Number of chimneys / flues:",null,null,null,null,null,null,null,null,null,null,null,null,null,null,"Jan","Feb","Mar","Apr","May","Jun","Jul","Aug","Sep","Oct","Nov","Dec",null,null,null,null,"Element",null,"Gross area, m2",null,"Openings, m2",null,"Net area",null,"U-value",null,"A × U",null,"κ-value",null,"A × κ",null,null,"(38)m =",51.280489911620997,51.211351318359299,51.143581806152298,50.825270460937503,50.765715435058503,50.488476521484301,50.488476521484301,50.437135981933501,50.595264843750002,50.765715435058503,50.886194567871001,51.012150024902297,null,"(38)",null,null,null,"if TFA ≤ 13.9, N = 1",null,null,null,null,null,null,null,null,null,null,null,null,null,null,null,null,"(66)m =",164.37155250456399,164.37155250456399,164.37155250456399,164.37155250456399,164.37155250456399,164.37155250456399,164.37155250456399,164.37155250456399,164.37155250456399,164.37155250456399,164.37155250456399,164.37155250456399,"(66)",null,null,"than one window type.",null,null,null,null,null,null,null,null,null,null,null,null,null,null,null,null,"Jan","Feb","Mar","Apr","May","Jun","Jul","Aug","Sep","Oct","Nov","Dec",null,null,null,null,null,"Jan","Feb","Mar","Apr","May","Jun","Jul","Aug","Sep","Oct","Nov","Dec",null,null,null,null,"(100)m =",null,null,null,null,null,null,null,null,null,null,null,null,null,"(100)",null,null,null,null,null,null,null,null,null,null,null,null,null,null,null,null,null,null,null,null,null,null,null,null,null,"Space heating - main system 1 (electric off-peak tariff)",null,null,null,null,null,null,null,null,null,"Energy cost factor (ECF)","[(255) × (256)] ÷ [(4) + 45.0] = ",1.6548378688496399,"(257)",null,null,"Space heating - main system 1","(211)","×","0.21, 0.21, 0.21, 0.21, 0.21, 0.21, 0.21, 0.21, 0.21, 0.21, 0.21, 0.21","=",2055.6199381053102,"(261)",null,null,"Space heating - main system 1","(211)","×",null,"=",11061.1930002809,"(275)"]
[null,null,"Ground floor",null,100,"(1b)","×",3,"(2b)","=",300,"(3b)",null,null,"- open chimneys",null,null,"+",null,"+",null,"=",0,"× 80 =",0,"(6a)",null,"(22)m =",null,5.0999999999999996,5,4.9000000000000004,4.4000000000000004,4.3,3.8,3.8,3.7,4,4.3,4.5,4.7,null,null,null,null,null,null,null,null,null,null,"A, m2",null,"W/m2K",null,"W/K",null,"kJ/m2K",null,"kJ/K",null,null,"Heat transfer coefficient, W/K (39)m = (37) + (38)m",null,null,null,null,null,null,null,null,null,null,null,null,null,null,null,null,null,null,"Jan","Feb","Mar","Apr","May","Jun","Jul","Aug","Sep","Oct","Nov","Dec",null,null,null,null,"Lighting gains (calculated in Appendix L, equation L12 or L12a), also see Table 5",null,null,null,null,null,null,null,null,null,null,null,null,null,null,null,null,null,null,null,null,null,null,null,null,"FF",null,null,null,null,null,null,"(86)m =",0.83360889207853295,0.81661748655747401,0.79575749942310803,0.76710656145215295,0.72420523582507501,0.65849606054788601,0.57782652308080096,0.58860687164729897,0.67704290903417197,0.75963273459648495,0.81278485948450696,0.83983204410808698,null,"(86)",null,null,"Utilisation factor for gains, ηm:",null,null,null,null,null,null,null,null,null,null,null,null,null,null,null,null,null,null,null,null,null,null,null,null,null,null,null,null,null,null,null,null,null,null,null,null,null,null,null,"Fraction of space heat from main system(s)",null,null,null,null,null,null,null,null,null,null,null,"1 – (201) = ",1,"(202)",null,null,null,"High-rate fraction (Table 12a, or Appendix F for electric CPSU)",null,null,null,null,null,"(240a)"]
[null,null,"First floor",null,null,"(1c)","×",null,"(2c)","=",null,"(3c)",null,null,"- open flues",null,null,"+",null,"+",null,"=",0,"× 20 =",0,"(6b)",null,null,null,null,null,null,null,null,null,null,null,null,null,null,null,null,null,null,null,"Solid door",null,null,null,null,null,null,"×",null,"=",null,null,null,null,null,"(26)",null,"(39)m =",239.64369745879,239.57455886552901,239.50678935332201,239.18847800810701,239.128922982228,238.85168406865401,238.85168406865401,238.800343529103,238.95847239091901,239.128922982228,239.24940211504,239.37535757207201,null,null,null,null,"Hot water usage in litres per day for mixer showers, Vd,shower (from Appendix J)",null,null,null,null,null,null,null,null,null,null,null,null,null,null,null,null,null,"(67)m =",74.7210542373723,66.366578109843701,53.9729301409808,40.860978295316002,30.544059481091001,25.786583762954798,27.863312917592701,36.2177890451213,48.611437013984201,61.723388859648999,72.040307673873997,76.797783392010203,"(67)",null,null,null,null,null,null,null,null,null,"g Specific",null,"Specific",null,null,null,null,null,null,null,null,null,null,null,null,null,null,null,null,null,null,null,null,null,null,null,"(94)m =",0.74173425447720998,0.72058781573230901,0.69438733641998895,0.65843980492614895,0.60533324505521802,0.52400576413118904,0.42367207457905798,0.43706929225695101,0.54575099380260395,0.64624773058360596,0.71344426291149898,0.74955589073987705,null,"(94)",null,null,"Utilisation factor for loss ηm",null,null,null,null,null,null,null,null,null,null,null,null,null,null,null,null,null,null,null,null,null,null,null,null,null,null,null,null,null,null,null,null,null,null,null,null,null,null,null,null,"Low-rate fraction",null,null,null,"1.0 – (240a) = ",null,"(240b)",null,null,"SAP rating (Section 13)",null,73,"(258)",null,null,"Space heating - main system 2","(213)","×",null,"=",null,"(262)",null,null,"Space heating - main system 2","(213)","×",null,"=",null,"(276)"]
[null,null,"Second floor",null,null,"(1d)","×",null,"(2d)","=",null,"(3d)",null,null,"- chinmeys / flues attached to closed fire",null,null,"+",null,"+",null,"=",0,"× 10 =",0,"(6c)",null,"Wind Factor (22a)m = (22)m ÷ 4",null,null,null,null,null,null,null,null,null,null,null,null,null,null,null,null,null,"Semi-glazed door",null,null,null,null,null,null,"×",null,"* =",null,null,null,null,null,"(26a)",null,null,null,null,null,null,null,null,null,null,null,null,null,"Average = ∑(39)1…12 /12 =",239.188192782887,"(39)",null,null,"(42a)m =",null,0,0,0,0,0,0,0,0,0,0,0,0,null,"(42a)",null,null,"Appliances gains (calculated in Appendix L, equation L16 or L16a), also see Table 5",null,null,null,null,null,null,null,null,null,null,null,null,null,null,null,null,"Access factor",null,"Area",null,"Solar flux",null,"data or",null,"data or",null,"Gains",null,null,null,null,"Mean internal temperature in living area T1 (follow steps 3 and 4 in Table 9c)",null,null,null,null,null,null,null,null,null,null,null,null,null,null,null,null,"Useful gains, ηmGm , W         = (94)m × (84)m",null,null,null,null,null,null,null,null,null,null,null,null,null,null,null,null,"(101)m =",null,null,null,null,null,null,null,null,null,null,null,null,null,"(101)",null,null,null,null,null,null,null,null,"Fraction of main heating from main system 2         if no second main system enter “0”",null,null,null,null,null,null,null,null,null,null,null,null,0,"(203)",null,null,null,"High-rate cost","(211) x (240a)","×",null,"× 0.01 =",null,"(240c)"]
[null,null,"Third floor",null,null,"(1e)","×",null,"(2e)","=",null,"(3e)",null,null,"- flues attached to solid fuel boiler",null,null,"+",null,"+",null,"=",0,"× 20 =",0,"(6d)",null,"(22a)m =",null,1.2749999999999999,1.25,1.2250000000000001,1.1000000000000001,1.075,0.95,0.95,0.92500000000000004,1,1.075,1.125,1.175,null,null,null,null,"Window",null,null,null,null,null,7.5,"×",1.42,"* =",10.6132075471698,null,null,null,null,"(27)",null,"Heat loss parameter (HLP), W/m²K (40)m = (39)m ÷ (4)",null,null,null,null,null,null,null,null,null,null,null,null,null,null,null,null,null,null,null,null,null,null,null,null,null,null,null,null,null,null,null,null,null,null,"(68)m =",382.57876017742399,386.54873055669202,376.544532365968,355.24678243137498,328.36219564848801,303.09447533462702,286.21408674246499,282.24411636319599,292.24831455392098,313.54606448851399,340.43065127140102,365.69837158526201,"(68)",null,null,null,"Table 6d",null,"m2",null,"W/m2",null,"Table 6b",null,"Table 6c",null,"(W)",null,null,null,null,"(87)m =",14.6194186052155,14.9740434637779,15.711528285083901,16.745754861279899,17.9130751822956,19.0684115557262,19.834716511787001,19.759020512276901,18.858851800179401,17.37908396509,15.8218831243674,14.533293260367699,null,"(87)",null,null,"(95)m =",592.51396901979297,624.15540122763002,618.94634395021399,578.55314506280399,512.66531915834503,415.41950389252099,325.31515535232199,335.563549023669,429.234567644587,508.55289319600797,546.50114296780498,574.87832587149705,null,"(95)",null,null,null,null,null,null,null,null,null,null,null,null,null,null,null,null,null,null,null,null,null,null,null,null,null,null,null,null,null,null,null,null,null,null,null,null,null,null,null,null,null,null,null,"Low-rate cost","(211) x (240b)","×",null,"× 0.01 =",null,"(240d)",null,null,"SAP band",null,"C",null,null,null,"Space heating - secondary","(215)","×",null,"=",null,"(263)",null,null,"Space heating - secondary","(215)","×",null,"=",null,"(277)"]
[null,null,"Other floors (repeat as necessary)",null,null,"(1n)","×",null,"(2n)","=",null,"(3n)",null,null,"- flues attached to other heater",null,null,"+",null,"+",null,"=",0,"× 30 =",0,"(6e)",null,null,null,null,null,null,null,null,null,null,null,null,null,null,null,null,null,null,null,"Roof window",null,null,null,null,null,null,"×",null,"=",null,null,null,null,null,"(27a)",null,"(40)m =",2.3964369745879002,2.3957455886552901,2.3950678935332199,2.3918847800810701,2.3912892298222799,2.38851684068654,2.38851684068654,2.3880034352910302,2.3895847239091901,2.3912892298222799,2.3924940211504002,2.3937535757207198,null,null,null,null,"Hot water usage in litres per day for baths, Vd,bath (from Appendix J)",null,null,null,null,null,null,null,null,null,null,null,null,null,null,null,null,null,"Cooking gains (calculated in Appendix L, equation L18 or L18a), also see Table 5",null,null,null,null,null,null,null,null,null,null,null,null,null,null,null,"North",null,"×",null,"×",null,"× 0.9 ×",null,"×",null,"=",null,"(74)",null,null,null,"Temperature during heating periods in rest of dwelling from Table 9, Th2 (°C)",null,null,null,null,null,null,null,null,null,null,null,null,null,null,null,null,"Monthly average external temperature from Table U1",null,null,null,null,null,null,null,null,null,null,null,null,null,null,null,null,"Useful loss, ηmLm (watts) = (100)m × (101)m",null,null,null,null,null,null,null,null,null,null,null,null,null,null,null,null,null,null,null,null,null,null,"Fraction of total space heat from main system 1",null,null,null,null,null,null,null,null,null,null,null,"(202) × [1 – (203)] = ",1,"(204)",null,null,"Space heating - main system 1 cost (other fuel)",null,"(211)","×",3.64,"× 0.01 =",356.30745593825299,"(240e)"]
[null,null,"Total floor area TFA","(1a)+(1b)+(1c)+(1d)+(1e)…(1n) =",100,null,null,null,null,null,null,"(4)",null,null,"Number of blocked chimneys",null,null,null,null,null,null,null,0,"× 20 = ",0,"(6f)",null,"Adjusted infiltration rate (allowing for shelter and wind speed) = (21) × (22a)m",null,null,null,null,null,null,null,null,null,null,null,null,null,null,null,null,null,"Basement floor",null,null,null,null,null,null,"×",null,"=",null,null,null,null,null,"(28)",null,null,null,null,null,null,null,null,null,null,null,null,null,"Average = ∑(40)1…12 /12 =",2.3918819278288699,"(40)",null,null,"(42b)m =",null,85.171705503348306,83.906785858825003,82.125514172554801,78.841172056724602,76.381890959835403,73.654940421770206,72.181980244880904,73.950791901106996,75.876703853053002,78.794634048099098,82.1466139936133,84.883768703134194,null,"(42b)",null,null,"(69)m =",54.176681125532397,54.176681125532397,54.176681125532397,54.176681125532397,54.176681125532397,54.176681125532397,54.176681125532397,54.176681125532397,54.176681125532397,54.176681125532397,54.176681125532397,54.176681125532397,"(69)",null,null,"Northeast",null,"×",null,"×",null,"× 0.9 ×",null,"×",null,"=",null,"(75)",null,null,null,"(88)m =",19.082138873176401,19.082554155141398,19.082961291019501,19.084874620017501,19.085232785233,19.086900884167001,19.086900884167001,19.087209931955702,19.086258205485802,19.085232785233,19.084508282286201,19.083751106052201,null,"(88)",null,null,"(96)m =",4.3,4.9000000000000004,6.5,8.9,11.7,14.6,16.600000000000001,16.399999999999999,14.1,10.6,7.1,4.2,null,"(96)",null,null,"(102)m =",null,null,null,null,null,null,null,null,null,null,null,null,null,"(102)",null,null,null,null,null,null,null,null,null,null,null,null,null,null,null,null,null,null,null,null,null,null,null,null,null,null,null,null,null,null,null,null,null,null,null,null,null,null,null,null,null,"Energy for water heating","(219)","×","0.21, 0.21, 0.21, 0.21, 0.21, 0.21, 0.21, 0.21, 0.21, 0.21, 0.21, 0.21","=",647.42500435785905,"(264)",null,null,"Energy for water heating","(219)","×",null,"=",3483.7631186875201,"(278)"]
[null,null,"Dwelling volume",null,null,null,null,null,"(3a)+(3b)+(3c)+(3d)+(3e)…(3n)"," =",300,"(5)",null,null,"Number of intermittent extract fans",null,null,null,null,null,null,null,0,"× 10 =",0,"(7a)",null,"(22b)m =",null,0.189656249999999,0.18593749999999901,0.18221875000000001,0.16362499999999999,0.15990625,0.14131249999999901,0.14131249999999901,0.13759374999999999,0.14874999999999999,0.15990625,0.16734374999999899,0.17478125,null,null,null,null,"Ground floor",null,null,null,null,null,100,"×",0.5,"=",50,null,null,null,null,"(28a)",null,"Number of days in month (Table 1a)",null,null,null,null,null,null,null,null,null,null,null,null,null,null,null,null,null,null,null,null,null,null,null,null,null,null,null,null,null,null,null,null,null,null,"Pumps and fans gains (Table 5a)",null,null,null,null,null,null,null,null,null,null,null,null,null,null,null,"East",null,"×",null,"×",null,"× 0.9 ×",null,"×",null,"=",null,"(76)",null,null,null,"Utilisation factor for gains for rest of dwelling, η2,m (see Table 9a)",null,null,null,null,null,null,null,null,null,null,null,null,null,null,null,null,"Heat loss rate for mean internal temperature, Lm , W         = (39)m × [(93)m – (96)m ]",null,null,null,null,null,null,null,null,null,null,null,null,null,null,null,null,null,null,null,null,null,null,null,null,null,null,null,null,null,null,null,null,null,null,null,null,null,null,null,"Fraction of total space heat from main system 2",null,null,null,null,null,null,null,null,null,null,null,"(202) × (203) = ",0,"(205)",null,null,"Space heating - main system 2 (electric off-peak tariff)",null,null,null,null,null,null,null,null,null,null,null,null,null,null,null,"(for a DHW-only heat network use (361) to (373) instead of (264)",null,null,null,null,null,null,null,null,"(for a DHW-only heat network use (361) to (373) instead of (264)"]
[null,null,null,null,null,null,null,null,null,null,null,null,null,null,"Number of passive vents",null,null,null,null,null,null,null,0,"× 10 =",0,"(7b)",null,null,null,null,null,null,null,null,null,null,null,null,null,null,null,null,null,null,null,"Exposed floor",null,null,null,null,null,null,"×",null,"=",null,null,null,null,null,"(28b)",null,null,"Jan","Feb","Mar","Apr","May","Jun","Jul","Aug","Sep","Oct","Nov","Dec",null,null,null,null,"Hot water usage in litres per day for other uses, Vd,other (from Appendix J)",null,null,null,null,null,null,null,null,null,null,null,null,null,null,null,null,null,"(70)m =",7,7,7,7,7,0,0,0,0,7,7,7,"(70)",null,null,"Southeast",null,"×",null,"×",null,"× 0.9 ×",null,"×",null,"=",null,"(77)",null,null,null,"(89)m =",0.81599332620443299,0.79686102503858003,0.77174335922566695,0.73492253743736802,0.67587652885424598,0.57480025983155902,0.43617267070020999,0.45528388740771703,0.60237708772569998,0.72054942610040895,0.78917072706348901,0.82286356246689196,null,"(89)",null,null,"(97)m =",2294.2026935101599,2233.8159764345,2025.2640603950999,1693.85412412506,1298.9827816383199,872.74061866374302,564.46189921253097,596.10098438054797,944.93232079425002,1437.5961291640499,1907.1373287460001,2295.4356066502701,null,"(97)",null,null,"Gains (internal gains as for heating except that column (A) of Table 5 is always used; solar gains",null,null,null,null,null,null,null,null,null,null,null,null,null,null,null,null,null,null,null,null,null,null,null,null,null,null,null,null,null,null,null,null,null,null,null,null,null,null,null,null,"High-rate fraction (Table 12a, or Appendix F for electric CPSU)",null,null,null,null,null,"(241a)"]
[null,null,null,null,null,null,null,null,null,null,null,null,null,null,"Number of flueless gas fires",null,null,null,null,null,null,null,0,"× 40 =",0,"(7c)",null,"Calculate effective air change rate for the applicable case:",null,null,null,null,null,null,null,null,null,null,null,null,null,null,null,null,null,"Basement wall",null,null,"-",null,"=",null,"×",null,"=",null,null,null,null,null,"(29)",null,"(41)m =",31,28,31,30,31,30,31,31,30,31,30,31,null,"(41)",null,null,"(42c)m =",null,44.932088933320003,43.298194790290097,41.664300647260298,40.030406504230498,38.396512361200699,36.7626182181709,36.7626182181709,38.396512361200699,40.030406504230498,41.664300647260298,43.298194790290097,44.932088933320003,null,"(42c)",null,null,"Losses e.g. evaporation (negative values) (Table 5)",null,null,null,null,null,null,null,null,null,null,null,null,null,null,null,"South","0.9 / 0.77","×",7.5,"×","46.8, 76.6, 97.5, 110.2, 114.9, 110.5, 108.0, 104.9, 101.9, 82.6, 55.4, 40.4","× 0.9 ×",0.7,"×",0.7,"=",2612.2442942636198,"(78)",null,null,null,"Mean internal temperature in the rest of dwelling T2",null,null,null,null,null,null,null,null,null,null,null,null,null,null,null,null,"Space heating requirement for each month, kWh/month = 0.024 × [(97)m – (95)m] × (41)m",null,null,null,null,null,null,null,null,null,null,null,null,null,null,null,null,"calculated for the applicable climate, see Appendix U)",null,null,null,null,null,null,null,null,null,null,null,null,null,null,null,null,null,null,null,null,null,null,"Efficiency of main space heating system 1 (in %)",null,null,null,null,null,null,null,null,null,null,null,null,79,"(206)",null,null,null,"Low-rate fraction",null,null,null,"1.0 – (241a) = ",null,"(241b)",null,null,null,null,null,null,null,null,"Energy for instantaneous electric shower(s)","(64a)","×",null,"=",null,"(264a)",null,null,"Energy for instantaneous electric shower(s)","(64a)","×",null,"=",null,"(278a)"]
[null,null,null,null,null,null,null,null,null,null,null,null,null,null,"Infiltration due to chimneys, flues, fans, PSVs, etc.",null,null,null,null,null,null,null,null,null,"Air changes per hour",null,null,null,null,null,null,null,null,null,null,null,null,null,null,null,null,null,null,null,null,"External wall",null,120,"-",7.5,"=",112.5,"×",0.5,"=",56.25,null,null,null,null,"(29a)",null,null,null,null,null,null,null,null,null,null,null,null,null,null,null,null,null,null,null,null,null,null,null,null,null,null,null,null,null,null,null,null,null,null,null,null,"(71)m =",-109.581035003042,-109.581035003042,-109.581035003042,-109.581035003042,-109.581035003042,-109.581035003042,-109.581035003042,-109.581035003042,-109.581035003042,-109.581035003042,-109.581035003042,-109.581035003042,"(71)",null,null,"Southwest",null,"×",null,"×",null,"× 0.9 ×",null,"×",null,"=",null,"(79)",null,null,null,"(follow steps 5 and 6 in Table 9c, if two main heating systems see further notes in Table 9c)",null,null,null,null,null,null,null,null,null,null,null,null,null,null,null,null,"(98a)m =",1266.05641102083,1081.69190653902,1046.3003810349901,803.01670492482901,585.02019208510796,null,null,null,null,691.20816756022805,979.65805376030505,1280.0946168994101,null,null,null,null,"(103)m =",null,null,null,null,null,null,null,null,null,null,null,null,null,"(103)",null,null,null,null,null,null,null,null,"(from database or Table 4a/4b, adjusted where appropriate by the amount shown in the",null,null,null,null,null,null,null,null,null,null,null,null,null,null,null,null,null,"High-rate cost","(213) x (241a)","×",null,"× 0.01 =",null,"(241c)"]
[null,null,null,null,null,null,null,null,null,null,null,null,null,null,"(6a)+(6b)+(6c)+(6d)+(6e)+(6f)+(7a)+(7b)+(7c) =",null,null,null,0,null,"m3 per hour",null,"÷ (5) =",null,0,"(8)",null,null,"If mechanical ventilation: air change rate through system",null,null,null,null,null,null,null,null,null,null,null,null,null,"(23a)",null,null,"Roof",null,100,"-",null,"=",100,"×",0.5,"=",50,null,null,null,null,"(30)",null,null,null,null,null,null,null,null,null,null,null,null,null,null,null,null,null,null,"Annual average hot water usage in litres per day Vd,average (from Appendix J)",null,null,null,null,null,null,null,null,null,null,null,null,null,119.814947453344,"(43)",null,null,"Water heating gains (Table 5)",null,null,null,null,null,null,null,null,null,null,null,null,null,null,null,"West",null,"×",null,"×",null,"× 0.9 ×",null,"×",null,"=",null,"(80)",null,null,null,"(90)m =",13.553664150554299,13.902688694348001,14.632170250472999,15.654206582872799,16.7974594312204,17.904826311890599,18.589738375644,18.526465047575901,17.709604677937499,16.282969212274299,14.7496726880807,13.470406896137,null,"(90)",null,null,null,null,null,null,null,null,null,null,null,null,null,null,"Total per year (kWh/year) = ∑(98a)1…5,10..12 = ",7733.0464338247302,"(98a)",null,null,null,null,null,null,null,null,null,null,null,null,null,null,null,null,null,null,null,null,null,null,null,null,null,"‘space efficiency adjustment’ column of Table 4c; for gas and oil boilers see 9.2.1)",null,null,null,null,null,null,null,null,null,null,null,null,null,null,null,null,null,"Low-rate cost","(213) x (241b)","×",null,"× 0.01 =",null,"(241d)",null,null,null,null,null,null,null,null,"Space and water heating",null,null,"(261) + (262) + (263) + (264) + (264a)","=",2703.0449424631602,"(265)",null,null,"Space and water heating",null,null,"(275) + (276) + (277) + (278) + (278a)","=",14544.956118968399,"(279)"]
[null,null,null,null,null,null,null,null,null,null,null,null,null,null,null,null,null,null,null,null,null,null,null,null,null,null,null,null,"If exhaust air heat pump using Appendix N, (23b) = (23a) × F mv (equation (N4)) , otherwise (23b) = (23a)",null,null,null,null,null,null,null,null,null,null,null,null,null,"(23b)",null,null,"Total area of external elements ∑A, m²",null,null,null,null,null,320,null,null,null,null,null,null,null,null,"(31)",null,null,null,null,null,null,null,null,null,null,null,null,null,null,null,null,null,null,null,null,null,null,null,null,null,null,null,null,null,null,null,null,null,null,null,null,"(72)m =",109.20997034141,106.748957754063,102.152269213322,92.272558204724504,86.176831284713799,79.823214625086905,76.007540516627699,79.292488927210997,83.126873382859003,90.175699240274795,99.656774016971397,107.96204673971801,"(72)",null,null,"Northwest",null,"×",null,"×",null,"× 0.9 ×",null,"×",null,"=",null,"(81)",null,null,null,"Living area fraction",null,null,null,null,null,null,null,null,null,null,null,"fLA = Living area ÷ (4) = ",0.3,"(91)",null,null,"Solar space heating calculated using Appendix H (negative quantity) (enter “0” if no solar contribution to space heating)",null,null,null,null,null,null,null,null,null,null,null,null,null,null,null,null,"Space cooling requirement for month, whole dwelling, continuous ( kWh) = 0.024 × [(103)m – (102)m ] × (41)m",null,null,null,null,null,null,null,null,null,null,null,null,null,null,null,null,null,null,null,null,null,null,null,null,null,null,null,null,null,null,null,null,null,null,null,null,null,null,null,"Space heating - main system 2 cost (other fuel)",null,"(213)","×",null,"× 0.01 =",null,"(241e)"]
[null,null,null,null,null,null,null,null,null,null,null,null,null,null,"If a pressurisation test has been carried out or is intended, proceed to (17) , otherwise continue from (9) to (16)",null,null,null,null,null,null,null,null,null,null,null,null,null,"If balanced with heat recovery: efficiency in % allowing for in-use factor (from PCDB) =",null,null,null,null,null,null,null,null,null,null,null,null,null,"(23c)",null,null,"Party wall",null,null,null,null,null,null,"×",null,"=",null,null,null,null,null,"(32)",null,null,null,null,null,null,null,null,null,null,null,null,null,null,null,null,null,null,"Hot water usage in litres per day for each month Vd,m = (42a) + (42b) + (42c)",null,null,null,null,null,null,null,null,null,null,null,null,null,null,null,null,null,"Total internal gains = (66)m + (67)m + (68)m + (69)m + (70)m + (71)m + (72)m",null,null,null,null,null,null,null,null,null,null,null,null,null,null,null,"Roof windows",1,"×",null,"×",null,"× 0.9 ×",null,"×",null,"=",null,"(82)",null,null,null,"Mean internal temperature (for the whole dwelling) = fLA × T1 + (1 – fLA) × T2",null,null,null,null,null,null,null,null,null,null,null,null,null,null,null,null,"(98b)m =",0,0,0,0,0,null,null,null,null,0,0,0,null,null,null,null,"(104)m =",null,null,null,null,null,null,null,null,null,null,null,null,null,null,null,null,null,null,null,null,null,null,"If there is a second main system complete (207)",null,null,null,null,null,null,null,null,null,null,null,null,null,null,null,null,null,null,null,null,null,null,null,null,null,null,null,null,null,null,null,null,"Space cooling","(221)","×",null,"=",null,"(266)",null,null,"Space cooling","(221)","×",null,"=",null,"(280)"]
[null,null,null,null,null,null,null,null,null,null,null,null,null,null,null,"Number of storeys in the dwelling (ns)",null,null,null,null,null,null,null,null,null,"(9)",null,null,null,null,null,null,null,null,null,null,null,null,null,null,null,null,null,null,null,"Party floor",null,null,null,null,null,null,null,null,null,null,null,null,null,null,"(32a)",null,null,null,null,null,null,null,null,null,null,null,null,null,null,null,null,null,null,"(44)m =",null,130.10379443666801,127.204980649115,123.78981481981501,118.871578560955,114.778403321036,110.41755863994101,108.94459846305099,112.34730426230701,115.907110357283,120.45893469535901,125.444808783903,129.81585763645401,null,"(44)",null,null,"(73)m =",682.47698338326097,675.63146504765405,648.63693034732501,604.34751755846901,561.05028504134702,517.67147234972197,499.05213880373901,506.72159296258297,532.95382357781796,581.41235121549198,628.09493158930002,666.42540034404396,"(73)",null,null,"Rooflights",1,"×",null,"×",null,"× 0.9 ×",null,"×",null,"=",null,"(82a)",null,null,null,"(92)m =",13.873390486952699,14.2240951251769,14.955977660856201,15.981671066394901,17.1321441565429,18.253901885041198,18.9632318164869,18.896231686986201,18.0543788146101,16.611803638119,15.0713358189667,13.789272805406201,null,"(92)",null,null,null,null,null,null,null,null,null,null,null,null,null,null,"Total per year (kWh/year) = ∑(98b)1…5,10..12 =",0,"(98b)",null,null,null,null,null,null,null,null,null,null,null,null,null,null,"Total = ∑(104)6..8 = ",null,"(104)",null,null,null,null,null,null,null,null,"Efficiency of main space heating system 2 (in %)",null,null,null,null,null,null,null,null,null,null,null,null,null,"(207)",null,null,"Space heating - secondary (electric off-peak tariff)"]
[null,null,null,null,null,null,null,null,null,null,null,null,null,null,null,"Additional infiltration",null,null,null,null,null,null,null,null,null,"(10)",null,null,"a) If balanced mechanical ventilation with heat recovery (MVHR) (24a)m = (22b)m + (23b) × [1 – (23c) ÷ 100]",null,null,null,null,null,null,null,null,null,null,null,null,null,null,null,null,"Party ceiling",null,null,null,null,null,null,null,null,null,null,null,null,null,null,"(32b)",null,null,null,null,null,null,null,null,null,null,null,null,null,null,null,null,null,null,null,null,null,null,null,null,null,null,null,null,null,null,null,null,null,null,null,null,null,null,null,null,null,null,null,null,null,null,null,null,null,null,null,null,null,null,null,null,null,null,null,null,null,null,null,null,null,null,null,null,"Apply adjustment to the mean internal temperature from Table 4e, where appropriate",null,null,null,null,null,null,null,null,null,null,null,null,null,null,null,null,"Space heating requirement for each month after solar contribution, kWh/month (98c)m = (98a)m + (98b)m",null,null,null,null,null,null,null,null,null,null,null,null,null,null,null,null,null,null,null,null,null,null,null,null,null,null,null,null,null,null,null,null,null,null,null,null,null,null,null,"(from database or Table 4a/4b, adjusted where appropriate by the amount shown in the",null,null,null,null,null,null,null,null,null,null,null,null,null,null,null,null,null,"High-rate fraction (Table 12a, or Appendix F for electric CPSU)",null,null,null,null,null,"(242a)",null,null,null,null,null,null,null,null,"Electricity for pumps, fans and electric keep-hot","(231)","×","0.163, 0.16, 0.153, 0.143, 0.132, 0.12, 0.111, 0.112, 0.122, 0.136, 0.151, 0.163","=",15.9519178082191,"(267)",null,null,"Electricity for pumps, fans and electric keep-hot","(231)","×",null,"=",173.97200000000001,"(281)"]
[null,null,null,null,null,null,null,null,null,null,null,null,null,null,null,"Structural infiltration: 0.25 for steel or timber frame or 0.35 for masonry construction",null,null,null,null,null,null,null,null,null,"(11)",null,"(24a)m =",null,null,null,null,null,null,null,null,null,null,null,null,null,null,"(24a)",null,null,"Internal wall **",null,null,null,null,null,null,null,null,null,null,null,null,null,null,"(32c)",null,null,null,null,null,null,null,null,null,null,null,null,null,null,null,null,null,null,"Energy content of hot water used = 4.18 × Vd,m × nm × ΔTm / 3600 kWh/month (from Appendix J)",null,null,null,null,null,null,null,null,null,null,null,null,null,null,null,null,null,null,null,null,null,null,null,null,null,null,null,null,null,null,null,null,null,"Solar gains in watts, calculated for each month (83)m = ∑(74)m …(82)m",null,null,null,null,null,null,null,null,null,null,null,null,null,null,null,"Adjusted mean internal temperature:",null,null,null,null,null,null,null,null,null,null,null,null,null,null,null,null,"(98c)m =",1266.05641102083,1081.69190653902,1046.3003810349901,803.01670492482901,585.02019208510796,null,null,null,null,691.20816756022805,979.65805376030505,1280.0946168994101,null,null,null,null,"Cooled fraction",null,null,null,null,null,null,null,null,null,null,null,"fC = cooled area ÷ (4) =",null,"(105)",null,null,null,null,null,null,null,null,"‘space efficiency adjustment’ column of Table 4c; for gas and oil boilers see 9.2.1)",null,null,null,null,null,null,null,null,null,null,null,null,null,null,null,null,null,"Low-rate fraction",null,null,null,"1.0 – (242a) = ",null,"(242b)"]
[null,null,null,null,null,null,null,null,null,null,null,null,null,null,"if both types of wall are present, use the value corresponding to the greater wall area (after deducting",null,null,null,null,null,null,null,null,null,null,null,null,null,"b) If balanced mechanical ventilation without heat recovery (MV) (24b)m = (22b)m + (23b)",null,null,null,null,null,null,null,null,null,null,null,null,null,null,null,null,"Internal floor",null,null,null,null,null,null,null,null,null,null,null,null,null,null,"(32d)",null,null,null,null,null,null,null,null,null,null,null,null,null,null,null,null,null,null,"(45)m =",null,206.052607237931,181.138196377931,190.26033764605901,162.72924747101899,154.513793829864,135.771270396315,131.75904997586099,139.10943078029399,142.92505778156601,163.46163671388601,178.71912832761399,203.26026089309099,null,null,null,null,null,null,null,null,null,null,null,null,null,null,null,null,null,null,null,null,"(83)m =",116.34545934915501,190.54388180208599,242.719106099534,274.32527946007502,285.86391196691301,275.10511968127099,268.79444555172302,261.03664347374098,253.548761884882,205.519453924852,137.909045704715,100.533185364677,"(83)",null,null,"(93)m =",13.873390486952699,14.2240951251769,14.955977660856201,15.981671066394901,17.1321441565429,18.253901885041198,18.9632318164869,18.896231686986201,18.0543788146101,16.611803638119,15.0713358189667,13.789272805406201,null,"(93)",null,null,null,null,null,null,null,null,null,null,null,null,null,null,"Total per year (kWh/year) = ∑(98c)1…5,10..12 =",7733.0464338247302,"(98c)",null,null,null,null,null,null,null,null,null,null,null,null,null,null,null,null,null,null,null,null,null,null,null,null,null,null,null,null,null,null,null,null,null,null,null,null,null,null,null,null,null,null,null,"High-rate cost","(215) x (242a)","×",null,"× 0.01 =",null,"(242c)",null,null,null,null,null,null,null,null,"Electricity for lighting","(232)","×","0.163, 0.16, 0.153, 0.143, 0.132, 0.12, 0.111, 0.112, 0.122, 0.136, 0.151, 0.163","=",76.183460836021297,"(268)",null,null,"Electricity for lighting","(232)","×",null,"=",809.61687800444702,"(282)"]
[null,null,null,null,null,null,null,null,null,null,null,null,null,null,"areas of openings); if equal use 0.35",null,null,null,null,null,null,null,null,null,null,null,null,"(24b)m =",null,null,null,null,null,null,null,null,null,null,null,null,null,null,"(24b)",null,null,"Internal ceiling",null,null,null,null,null,null,null,null,null,null,null,null,null,null,"(32e)",null,null,null,null,null,null,null,null,null,null,null,null,null,null,null,null,null,null,null,null,null,null,null,null,null,null,null,null,null,null,null,"Total =∑(45)1…12 = ",1989.7000174314301,"(45)",null,null,null,null,null,null,null,null,null,null,null,null,null,null,null,null,null,null,"Total gains – internal and solar (84)m = (73)m + (83)m , watts",null,null,null,null,null,null,null,null,null,null,null,null,null,null,null,null,null,null,null,null,null,null,null,null,null,null,null,null,null,null,null,null,null,null,null,null,null,null,null,null,null,null,null,null,null,null,null,null,null,"Intermittency factor (Table 10b)",null,null,null,null,null,null,null,null,null,null,null,null,null,null,null,null,null,null,null,null,null,null,"Efficiency of secondary/supplementary heating system, % (from Table 4a or Appendix E)",null,null,null,null,null,null,null,null,null,null,null,null,null,"(208)",null,null,null,"Low-rate cost","(215) x (242b)","×",null,"× 0.01 =",null,"(242d)"]
[null,null,null,null,null,null,null,null,null,null,null,null,null,null,null,"If suspended wooden ground floor, enter 0.2 (unsealed) or 0.1 (sealed) , else enter 0",null,null,null,null,null,null,null,null,null,"(12)",null,null,"c) If whole house extract ventilation or positive input ventilation from outside",null,null,null,null,null,null,null,null,null,null,null,null,null,null,null,null," *for windows and roof windows, use effective window U-value calculated using formula 1/[(1/U-value)+0.04] as in paragraph 3.2",null,null,null,null,null,null,null,null,null,null,null,null,null,null,null,null,null,null,null,null,null,null,null,null,null,null,null,null,null,null,null,null,null,"If instantaneous water heating at point of use (no hot water storage), enter “0” in (46) to (61)",null,null,null,null,null,null,null,null,null,null,null,null,null,null,null,null,null,null,null,null,null,null,null,null,null,null,null,null,null,null,null,null,null,"(84)m =",798.82244273241599,866.17534684973998,891.35603644685898,878.672797018545,846.914197008261,792.77659203099302,767.84658435546305,767.75823643632395,786.50258546270095,786.93180514034395,766.00397729401504,766.95858570872099,"(84)",null,null,null,null,null,null,null,null,null,null,null,null,null,null,null,null,null,null,null,"Space heating requirement in kWh/m²/year",null,null,null,null,null,null,null,null,null,null,null,"(98c) ÷ (4) = ",77.330464338247296,"(99)",null,null,"(106)m =",null,null,null,null,null,null,null,null,null,null,null,null,null,null,null,null,null,null,null,null,null,null,null,null,null,null,null,null,null,null,null,null,null,null,null,null,null,null,null,"Space heating - secondary cost (other fuel)",null,"(215)","×",null,"× 0.01 =",null,"(242e)",null,null,null,null,null,null,null,null,"Energy saving/generation technologies","(233a) to (235d) as applicable, repeat line (269) as needed",null,null,null,null,null,null,null,"Energy saving/generation technologies","(233a) to (235d) as applicable, repeat line (269) as needed"]
[null,null,null,null,null,null,null,null,null,null,null,null,null,null,null,"If no draught lobby, enter 0.05, else enter 0",null,null,null,null,null,null,null,null,null,"(13)",null,null,null,"if (22b)m < 0.5 x (23b), then (24c) = (23b); otherwise (24c) = (22b)m + 0.5 x (23b)",null,null,null,null,null,null,null,null,null,null,null,null,null,null,null,"** include the areas on both sides of internal walls and partitions",null,null,null,null,null,null,null,null,null,null,null,null,null,null,null,null,null,null,null,null,null,null,null,null,null,null,null,null,null,null,null,null,null,"For heat networks include distribution loss whether or not hot water tank is present",null,null,null,null,null,null,null,null,null,null,null,null,null,null,null,null,null,null,null,null,null,null,null,null,null,null,null,null,null,null,null,null,null,null,null,null,null,null,null,null,null,null,null,null,null,null,null,null,null,null,null,null,null,null,null,null,null,null,null,null,null,null,null,null,null,null,null,null,null,null,null,null,null,null,null,null,null,null,null,null,null,null,null,null,null,null,null,null,null,null,null,null,null,null,null,"Total =∑(106)6..8 = ",null,"(106)",null,null,null,null,null,null,null,null,"Cooling System Seasonal Energy Efficiency Ratio (see Table 10c)",null,null,null,null,null,null,null,null,null,null,null,null,null,"(209)",null,null,null,null,null,null,null,null,null,null,null,null,null,null,null,null,null,null,"    <description>","one of (233a) to (235d)","×",null,"=",null,"(269)",null,null,"    <description>","one of (233a) to (235d)","×",null,"=",null,"(283)"]
[null,null,null,null,null,null,null,null,null,null,null,null,null,null,null,"Percentage of windows and doors draught proofed",null,null,null,null,null,null,null,null,null,"(14)",null,"(24c)m =",null,null,null,null,null,null,null,null,null,null,null,null,null,null,"(24c)",null,null,"Fabric heat loss, W/K = ∑ (A × U)",null,null,null,null,null,null,null,null,null,null,null,"(26)…(30) + (32)","=",166.863207547169,"(33)",null,null,null,null,null,null,null,null,null,null,null,null,null,null,null,null,null,null,"Distribution loss (46)m = 0.15 x (45)m",null,null,null,null,null,null,null,null,null,null,null,null,null,null,null,null,null,null,null,null,null,null,null,null,null,null,null,null,null,null,null,null,null,null,null,null,null,null,null,null,null,null,null,null,null,null,null,null,null,null,null,null,null,null,null,null,null,null,null,null,null,null,null,null,null,null,"For range cooker boilers where efficiency is obtained from the Product Characteristics Database, multiply the results in (98c) m",null,null,null,null,null,null,null,null,null,null,null,null,null,null,null,null,"Space cooling requirement for month = (104)m × (105) × (106)m",null,null,null,null,null,null,null,null,null,null,null,null,null,null,null,null,null,null,null,null,null,null,null,null,null,null,null,null,null,null,null,null,null,null,null,null,null,null,null,"Water heating (electric off-peak tariff)"]
[null,null,null,null,null,null,null,null,null,null,null,null,null,null,null,"Window infiltration",null,null,null,null,null,null,null,"0.25 - [0.2 × (14) ÷ 100] =",null,"(15)",null,null,"d) If natural ventilation or whole house positive input ventilation from loft",null,null,null,null,null,null,null,null,null,null,null,null,null,null,null,null,"Heat capacity Cm = ∑(A × κ )",null,null,null,null,null,null,null,null,null,null,null,"(29)...(30) + (32) + (32a)...(32e)","=",0,"(34)",null,null,null,null,null,null,null,null,null,null,null,null,null,null,null,null,null,null,"(46)m =",null,30.907891085689698,27.170729456689699,28.539050646908901,24.409387120652902,23.177069074479601,20.365690559447302,19.763857496379099,20.8664146170441,21.4387586672349,24.5192455070829,26.807869249142101,30.489039133963701,null,"(46)",null,null,null,null,null,null,null,null,null,null,null,null,null,null,null,null,null,null,null,null,null,null,null,null,null,null,null,null,null,null,null,null,null,null,null,null,null,null,null,null,null,null,null,null,null,null,null,null,null,null,null,"by (1 – Φ case /Φ water ) where Φ case is the heat emission from the case of the range cooker at full load (in kW); and Φ water is the",null,null,null,null,null,null,null,null,null,null,null,null,null,null,null,null,"(107)m =",null,null,null,null,null,null,null,null,null,null,null,null,null,null,null,null,null,null,null,null,null,null,null,"Jan","Feb","Mar","Apr","May","Jun","Jul","Aug","Sep","Oct","Nov","Dec","kWh/year",null,null,null,null,"High-rate fraction (Table 12a, or Appendix F for electric CPSU)",null,null,null,null,null,"(243)",null,null,null,null,null,null,null,null,"Appendix Q items","repeat lines (270) and (271) as needed",null,null,null,null,null,null,null,"Appendix Q items","repeat lines (284) and (285) as needed"]
[null,null,null,null,null,null,null,null,null,null,null,null,null,null,null,"Infiltration rate",null,null,null,null,null,null,null,"(8) + (10) + (11) + (12) + (13) + (15) =",null,"(16)",null,null,null,"if (22b)m ≥1, then (24d)m = (22b)m otherwise (24d)m = 0.5 + [(22b)m² × 0.5]",null,null,null,null,null,null,null,null,null,null,null,null,null,null,null,"Thermal mass parameter (TMP = Cm ÷ TFA) in kJ/m²K",null,null,null,null,null,null,null,null,null,null,null,"(34) ÷ (4)","=",0,"(35)",null,null,null,null,null,null,null,null,null,null,null,null,null,null,null,null,null,null,null,null,null,null,null,null,null,null,null,null,null,null,null,null,null,null,null,null,null,null,null,null,null,null,null,null,null,null,null,null,null,null,null,null,null,null,null,null,null,null,null,null,null,null,null,null,null,null,null,null,null,null,null,null,null,null,null,null,null,null,null,null,null,null,null,null,null,"heat transferred to water at full load (in kW). Φ case and Φ water are obtained from the database record for the range cooker",null,null,null,null,null,null,null,null,null,null,null,null,null,null,null,null,null,null,null,null,null,null,null,null,null,null,null,null,"Total = ∑(107)6..8 = ",null,"(107)",null,null,null,null,null,null,null,null,null,null,null,null,null,null,null,null,null,null,null,null,null,null,null,null,null,null,"Low-rate fraction",null,null,null,"1.0 – (243) = ",null,"(244)",null,null,null,null,null,null,null,null,"    <description>, energy saved *","one of (236a) etc","×",null,"=",null,"(270)",null,null,"    <description>, energy saved *","one of (236a) etc","×",null,"=",null,"(284)"]
[null,null,null,null,null,null,null,null,null,null,null,null,null,null,"Air permeability value, AP50, (m³/h/m²)",null,null,null,null,null,null,null,null,null,3.5,"(17)",null,"(24d)m =",null,0.51798474658203097,0.51728637695312496,0.51660183642578095,0.51338657031250001,0.51278500439453101,0.509984611328125,0.509984611328125,0.50946602001953101,0.51106328125,0.51278500439453101,0.51400196533203102,0.51527424267578104,null,"(24d)",null,null,"For design assessments where the details of the construction are not known precisely the",null,null,null,null,null,null,null,null,null,null,null,null,null,null,null,null,null,null,null,null,null,null,null,null,null,null,null,null,null,null,null,null,null,"Storage volume (litres) including any solar or WWHRS storage within same vessel",null,null,null,null,null,null,null,null,null,null,null,null,null,0,"(47)",null,null,null,null,null,null,null,null,null,null,null,null,null,null,null,null,null,null,null,null,null,null,null,null,null,null,null,null,null,null,null,null,null,null,null,null,null,null,null,null,null,null,null,null,null,null,null,null,null,null,null,null,null,null,null,null,null,null,null,null,null,null,null,null,null,null,null,null,null,null,null,null,null,null,null,null,null,null,null,null,null,null,null,null,null,null,null,null,null,null,null,"Space heating requirement (calculated above)",null,null,null,null,null,null,null,null,null,null,null,null,null,null,null,null,null,"High-rate cost","(219) x (243)","×",null,"× 0.01 =",null,"(245)",null,null,null,null,null,null,null,null,"    <description>, energy used *","one of (237a) etc","×",null,"=",null,"(271)",null,null,"    <description>, energy used *","one of (237a) etc","×",null,"=",null,"(285)"]
[null,null,null,null,null,null,null,null,null,null,null,null,null,null,"Air permeability value, AP4, (m³/h/m²)",null,null,null,null,null,null,null,null,null,null,"(17a)",null,"Effective air change rate - enter (24a) or (24b) or (24c) or (24d) in (25)",null,null,null,null,null,null,null,null,null,null,null,null,null,null,null,null,null,"indicative values of TMP in Table 1j can be used instead of a detailed calculation. Also TMP",null,null,null,null,null,null,null,null,null,null,null,null,null,null,null,null,null,null,null,null,null,null,null,null,null,null,null,null,null,null,null,null,null,"If heat network and no tank in dwelling, enter 110 litres in (47)",null,null,null,null,null,null,null,null,null,null,null,null,null,null,null,null,null,null,null,null,null,null,null,null,null,null,null,null,null,null,null,null,null,null,null,null,null,null,null,null,null,null,null,null,null,null,null,null,null,null,null,null,null,null,null,null,null,null,null,null,null,null,null,null,null,null,null,null,null,null,null,null,null,null,null,null,null,null,null,null,null,null,null,"Space cooling requirement in kWh/m²/year",null,null,null,null,null,null,null,null,null,null,null,null,null,"(108)",null,null,null,null,null,null,null,null,null,{"$f":"value_98c_1","v":1266.05641102083},{"$f":"value_98c_2","v":1081.69190653902},{"$f":"value_98c_3","v":1046.3003810349901},{"$f":"value_98c_4","v":803.01670492482901},{"$f":"value_98c_5","v":585.02019208510796},"-","-","-","-",{"$f":"value_98c_10","v":691.20816756022805},{"$f":"value_98c_11","v":979.65805376030505},{"$f":"value_98c_12","v":1280.0946168994101},null,null,null,null,null,"Low-rate cost","(219) x (244)","×",null,"× 0.01 =",null,"(246)",null,null,null,null,null,null,null,null,"    * where the item is concerned only with CO2 emissions use the right-hand column only."]
[null,null,null,null,null,null,null,null,null,null,null,null,null,null,"If based on air permeability value at 50 Pa, then (18) = [(17) ÷ 20] + (8)",null,null,null,null,null,null,null,null,null,null,null,null,"(25)m =",null,0.51798474658203097,0.51728637695312496,0.51660183642578095,0.51338657031250001,0.51278500439453101,0.509984611328125,0.509984611328125,0.50946602001953101,0.51106328125,0.51278500439453101,0.51400196533203102,0.51527424267578104,null,"(25)",null,null,"calculated separately can be used in (35) .",null,null,null,null,null,null,null,null,null,null,null,null,null,null,null,null,null,null,null,null,null,null,null,null,null,null,null,null,null,null,null,null,null,"Otherwise if no stored hot water (this includes instantaneous combi boilers) enter ‘0’ in (47)",null,null,null,null,null,null,null,null,null,null,null,null,null,null,null,null,null,null,null,null,null,null,null,null,null,null,null,null,null,null,null,null,null,null,null,null,null,null,null,null,null,null,null,null,null,null,null,null,null,null,null,null,null,null,null,null,null,null,null,null,null,null,null,null,null,null,null,null,null,null,null,null,null,null,null,null,null,null,null,null,null,null,null,null,null,null,null,null,null,null,null,null,null,null,null,null,null,null,null,null,null,null,null,null,null,null,null,null,null,null,null,null,null,null,null,null,null,null,null,null,null,null,null,"Water heating cost (other fuel)",null,"(219)","×",3.64,"× 0.01 =",112.220334088695,"(247)",null,null,null,null,null,null,null,null,null,null,null,null,null,null,null,null,null,"Total PE, kWh/year",null,null,"sum of (279)…(285)","=",15528.5449969729,"(286)"]
[null,null,null,null,null,null,null,null,null,null,null,null,null,null,"If based on air permeability value at 4 Pa, then (18) = [0.263 x (17a)0.924] + (8)",null,null,null,null,null,null,null,null,null,0.17499999999999999,"(18)",null,"For mechanical ventilation systems providing variable air change rates, the monthly rate held in the PCDB or",null,null,null,null,null,null,null,null,null,null,null,null,null,null,null,null,null,"Linear Thermal bridges: ∑ (L × ψ) calculated using Appendix K",null,null,null,null,null,null,null,null,null,null,null,null,null,21.5,"(36)",null,null,null,null,null,null,null,null,null,null,null,null,null,null,null,null,null,null,null,null,null,null,null,null,null,null,null,null,null,null,null,null,null,null,null,null,null,null,null,null,null,null,null,null,null,null,null,null,null,null,null,null,null,null,null,null,null,null,null,null,null,null,null,null,null,null,null,null,null,null,null,null,null,null,null,null,null,null,null,null,null,null,null,null,null,null,null,null,null,null,null,null,null,null,null,null,null,null,null,null,null,null,null,null,null,null,null,null,null,null,null,null,null,null,null,null,null,null,null,null,null,null,null,null,null,"Space heating fuel (main heating system 1), kWh/month",null,null,null,null,null,null,null,null,null,null,null,null,null,null,null,null,"(for a DHW-only heat network use (342a) or (342b) instead of (247)",null,null,null,null,null,null,null,null,null,null,null,null,null,null,null,"Total CO2, kg/year",null,null,"sum of (265)…(271)","=",2795.1803211074098,"(272)"]
[null,null,null,null,null,null,null,null,null,null,null,null,null,null,"If no air permeability test data, then (18) = (16)",null,null,null,null,null,null,null,null,null,null,null,null,"Appendix Q data and should instead be used:",null,null,null,null,null,null,null,null,null,null,null,null,null,null,null,null,null,null,"if details of thermal bridging are not known (36) = 0.20× (31)",null,null,null,null,null,null,null,null,null,null,null,null,null,null,null,null,null,null,null,null,null,null,null,null,null,null,null,null,null,null,null,null,"Water storage loss (or HIU loss):",null,null,null,null,null,null,null,null,null,null,null,null,null,null,null,null,null,null,null,null,null,null,null,null,null,null,null,null,null,null,null,null,null,null,null,null,null,null,null,null,null,null,null,null,null,null,null,null,null,null,null,null,null,null,null,null,null,null,null,null,null,null,null,null,null,null,null,null,null,null,null,null,null,null,null,null,null,null,null,null,null,null,null,null,null,null,null,null,null,null,null,null,null,null,null,null,null,null,null,null,null,null,null,null,null,null,"(211)m = (98c)m × (204) × 100 ÷ (206)",null,null,null,null,null,null,null,null,null,null,null,null,null,null,null,null,null,null,null,null,null,null,null,null,null,null,null,null,null,null,null,null,null,null,null,null,null,null,null,null,null,"Dwelling PE Rate",null,null,"(286) ÷ (4)","=",155.285449969729,"(287)"]
[null,null,null,null,null,null,null,null,null,null,null,null,null,null,"Air permeability value applies if a pressurisation test has been done, or a design or specified air permeability is",null,null,null,null,null,null,null,null,null,null,null,null,"Effective air change rate from PCDB:",null,null,null,null,null,null,null,null,null,null,null,null,null,null,null,null,null,"Point Thermal bridges: ∑χ (W/K) if significant point thermal bridge present and values available",null,null,null,null,null,null,null,null,null,null,null,null,null,0,"(36a)",null,null,null,null,null,null,null,null,null,null,null,null,null,null,null,null,null,null,"a) If manufacturer’s declared loss factor is known (kWh/day):",null,null,null,null,null,null,null,null,null,null,null,null,null,null,"(48)",null,null,null,null,null,null,null,null,null,null,null,null,null,null,null,null,null,null,null,null,null,null,null,null,null,null,null,null,null,null,null,null,null,null,null,null,null,null,null,null,null,null,null,null,null,null,null,null,null,null,null,null,null,null,null,null,null,null,null,null,null,null,null,null,null,null,null,null,null,null,null,null,null,null,null,null,null,null,null,null,null,null,null,null,null,null,null,null,null,null,null,"(211)m =",1602.6030519251001,1369.2302614417999,1324.4308620696099,1016.47684167699,740.531888715327,null,null,null,null,874.94704754459201,1240.0734857725299,1620.3729327840599,null,null,null,null,"Energy for instantaneous electric shower(s)",null,"(64a)","×",16.489999999999998,"× 0.01 =",null,"(247a)",null,null,null,null,null,null,null,null,"Dwelling CO2 Emission Rate",null,null,"(272) ÷ (4)","=",27.951803211074001,"(273)"]
[null,null,null,null,null,null,null,null,null,null,null,null,null,null,"being used",null,null,null,null,null,null,null,null,null,null,null,null,"(25)m =",null,null,null,null,null,null,null,null,null,null,null,null,null,null,"(25)",null,null,"Total fabric heat loss H = Σ(A × U) + Σ(L × Ψ) +Σχ",null,null,null,null,null,null,null,null,null,null,null,"(33) + (36) + (36a)","=",188.363207547169,"(37)",null,null,null,null,null,null,null,null,null,null,null,null,null,null,null,null,null,null,null,"Temperature factor from Table 2b",null,null,null,null,null,null,null,null,null,null,null,null,null,"(49)",null,null,null,null,null,null,null,null,null,null,null,null,null,null,null,null,null,null,null,null,null,null,null,null,null,null,null,null,null,null,null,null,null,null,null,null,null,null,null,null,null,null,null,null,null,null,null,null,null,null,null,null,null,null,null,null,null,null,null,null,null,null,null,null,null,null,null,null,null,null,null,null,null,null,null,null,null,null,null,null,null,null,null,null,null,null,null,null,null,null,null,null,null,null,null,null,null,null,null,null,null,null,null,"Total (kWh/year) =∑(211)1..5,10..12 = ",9788.6663719300395,"(211)",null,null,"Space cooling",null,"(221)","×",{"$f":"electricity_unit_price","v":16.489999999999998},"× 0.01 =",null,"(248)",null,null,null,null,null,null,null,null,null,null,null,null,null,null,null,null,null,"(a) If the fuel used/saved/generated is electricity, use monthly values with factors from Table 12e."]
[null,null,null,null,null,null,null,null,null,null,null,null,null,null,"Number of sides on which dwelling is sheltered",null,null,null,null,null,null,null,null,null,2,"(19)",null,null,null,null,null,null,null,null,null,null,null,null,null,null,null,null,null,null,null,null,null,null,null,null,null,null,null,null,null,null,null,null,null,null,null,null,null,null,null,null,null,null,null,null,null,null,null,null,null,null,null,null,null,null,"Energy lost from water storage, kWh/day          (48) × (49) =",null,null,null,null,null,null,null,null,null,null,null,null,null,"(50)",null,null,null,null,null,null,null,null,null,null,null,null,null,null,null,null,null,null,null,null,null,null,null,null,null,null,null,null,null,null,null,null,null,null,null,null,null,null,null,null,null,null,null,null,null,null,null,null,null,null,null,null,null,null,null,null,null,null,null,null,null,null,null,null,null,null,null,null,null,null,null,null,null,null,null,null,null,null,null,null,null,null,null,null,null,null,null,null,null,null,null,"Space heating fuel (main heating system 2), kWh/month, omit if no second main heating system",null,null,null,null,null,null,null,null,null,null,null,null,null,null,null,null,"Pumps, fans and electric keep-hot",null,"(231)","×",{"$f":"electricity_unit_price","v":16.489999999999998},"× 0.01 =",18.9635,"(249)",null,null,null,null,null,null,null,null,"EI rating (section 14)",null,null,null,null,74,"(274)",null,null,"(b) If the fuel used/saved/generated is electricity and an off-peak tariff is used, split into on/off"]
[null,null,null,null,null,null,null,null,null,null,null,null,null,null,"Shelter factor",null,null,null,null,null,null,null,null,"(20) = 1 - [0.075 × (19)] =",0.85,"(20)",null,null,null,null,null,null,null,null,null,null,null,null,null,null,null,null,null,null,null,null,null,null,null,null,null,null,null,null,null,null,null,null,null,null,null,null,null,null,null,null,null,null,null,null,null,null,null,null,null,null,null,null,null,"b) If manufacturer’s declared loss factor is not known :",null,null,null,null,null,null,null,null,null,null,null,null,null,null,null,null,null,null,null,null,null,null,null,null,null,null,null,null,null,null,null,null,null,null,null,null,null,null,null,null,null,null,null,null,null,null,null,null,null,null,null,null,null,null,null,null,null,null,null,null,null,null,null,null,null,null,null,null,null,null,null,null,null,null,null,null,null,null,null,null,null,null,null,null,null,null,null,null,null,null,null,null,null,null,null,null,null,null,null,null,null,null,null,null,null,null,"(213)m = (98c)m × (205) × 100 ÷ (207)",null,null,null,null,null,null,null,null,null,null,null,null,null,null,null,null,"    (if off-peak tariff, list each of (230a) to (230g) separately as applicable and apply fuel price according to Table 12a)",null,null,null,null,null,null,null,null,null,null,null,null,null,null,null,null,null,null,null,null,null,null,null,null,"peak fraction (as for fuel cost calculation) and use applicable on/off-peak factor from Table 12e."]
[null,null,null,null,null,null,null,null,null,null,null,null,null,null,"Infiltration rate incorporating shelter factor",null,null,null,null,null,null,null,null,"(21) = (18) × (20) =",0.14874999999999999,"(21)",null,null,null,null,null,null,null,null,null,null,null,null,null,null,null,null,null,null,null,null,null,null,null,null,null,null,null,null,null,null,null,null,null,null,null,null,null,null,null,null,null,null,null,null,null,null,null,null,null,null,null,null,null,null,"Hot water storage loss factor from Table 2 (kWh/litre/day)",null,null,null,null,null,null,null,null,null,null,null,null,null,"(51)",null,null,null,null,null,null,null,null,null,null,null,null,null,null,null,null,null,null,null,null,null,null,null,null,null,null,null,null,null,null,null,null,null,null,null,null,null,null,null,null,null,null,null,null,null,null,null,null,null,null,null,null,null,null,null,null,null,null,null,null,null,null,null,null,null,null,null,null,null,null,null,null,null,null,null,null,null,null,null,null,null,null,null,null,null,null,null,null,null,null,null,"(213)m =",null,null,null,null,null,null,null,null,null,null,null,null,null,null,null,null,"Energy for lighting",null,"(232)","×",{"$f":"electricity_unit_price","v":16.489999999999998},"× 0.01 =",87.040629370825997,"(250)",null,null,null,null,null,null,null,null,"(a) If the fuel used/saved/generated is electricity, use monthly values with factors from Table 12d."]
[null,null,null,null,null,null,null,null,null,null,null,null,null,null,null,null,null,null,null,null,null,null,null,null,null,null,null,null,null,null,null,null,null,null,null,null,null,null,null,null,null,null,null,null,null,null,null,null,null,null,null,null,null,null,null,null,null,null,null,null,null,null,null,null,null,null,null,null,null,null,null,null,null,null,null,null,null,null,null,null,"If heat network see section 4.3",null,null,null,null,null,null,null,null,null,null,null,null,null,null,null,null,null,null,null,null,null,null,null,null,null,null,null,null,null,null,null,null,null,null,null,null,null,null,null,null,null,null,null,null,null,null,null,null,null,null,null,null,null,null,null,null,null,null,null,null,null,null,null,null,null,null,null,null,null,null,null,null,null,null,null,null,null,null,null,null,null,null,null,null,null,null,null,null,null,null,null,null,null,null,null,null,null,null,null,null,null,null,null,null,null,null,null,null,null,null,null,null,null,null,null,null,null,"Total (kWh/year) =∑(213) 1..5,10..12 = ",null,"(213)",null,null,"Additional standing charges (Table 12)",null,null,null,null,null,92,"(251)",null,null,null,null,null,null,null,null,"(b) If the fuel used/saved/generated is electricity and an off-peak tariff is used, split into on/off"]
[null,null,null,null,null,null,null,null,null,null,null,null,null,null,null,null,null,null,null,null,null,null,null,null,null,null,null,null,null,null,null,null,null,null,null,null,null,null,null,null,null,null,null,null,null,null,null,null,null,null,null,null,null,null,null,null,null,null,null,null,null,null,null,null,null,null,null,null,null,null,null,null,null,null,null,null,null,null,null,null,"Volume factor from Table 2a",null,null,null,null,null,null,null,null,null,null,null,null,null,"(52)",null,null,null,null,null,null,null,null,null,null,null,null,null,null,null,null,null,null,null,null,null,null,null,null,null,null,null,null,null,null,null,null,null,null,null,null,null,null,null,null,null,null,null,null,null,null,null,null,null,null,null,null,null,null,null,null,null,null,null,null,null,null,null,null,null,null,null,null,null,null,null,null,null,null,null,null,null,null,null,null,null,null,null,null,null,null,null,null,null,null,null,"Space heating fuel (secondary), kWh/month",null,null,null,null,null,null,null,null,null,null,null,null,null,null,null,null,"Energy saving/generation technologies",null,"(233a) to (235d) as applicable, repeat line (252) as needed",null,null,null,null,null,null,null,null,null,null,null,null,null,"peak fraction (as for fuel cost calculation) and use applicable on/off-peak factor from Table 12d."]
[null,null,null,null,null,null,null,null,null,null,null,null,null,null,null,null,null,null,null,null,null,null,null,null,null,null,null,null,null,null,null,null,null,null,null,null,null,null,null,null,null,null,null,null,null,null,null,null,null,null,null,null,null,null,null,null,null,null,null,null,null,null,null,null,null,null,null,null,null,null,null,null,null,null,null,null,null,null,null,null,"Temperature factor from Table 2b",null,null,null,null,null,null,null,null,null,null,null,null,null,"(53)",null,null,null,null,null,null,null,null,null,null,null,null,null,null,null,null,null,null,null,null,null,null,null,null,null,null,null,null,null,null,null,null,null,null,null,null,null,null,null,null,null,null,null,null,null,null,null,null,null,null,null,null,null,null,null,null,null,null,null,null,null,null,null,null,null,null,null,null,null,null,null,null,null,null,null,null,null,null,null,null,null,null,null,null,null,null,null,null,null,null,null,"(215)m = (98c)m × (201) × 100 ÷ (208)",null,null,null,null,null,null,null,null,null,null,null,null,null,null,null,null,"    <description>",null,"one of (233a) to (235d)","×",null,"× 0.01 =",0,"(252)"]
[null,null,null,null,null,null,null,null,null,null,null,null,null,null,null,null,null,null,null,null,null,null,null,null,null,null,null,null,null,null,null,null,null,null,null,null,null,null,null,null,null,null,null,null,null,null,null,null,null,null,null,null,null,null,null,null,null,null,null,null,null,null,null,null,null,null,null,null,null,null,null,null,null,null,null,null,null,null,null,null,"Energy lost from water storage, kWh/day         (47) × (51) × (52) × (53) =",null,null,null,null,null,null,null,null,null,null,null,null,null,"(54)",null,null,null,null,null,null,null,null,null,null,null,null,null,null,null,null,null,null,null,null,null,null,null,null,null,null,null,null,null,null,null,null,null,null,null,null,null,null,null,null,null,null,null,null,null,null,null,null,null,null,null,null,null,null,null,null,null,null,null,null,null,null,null,null,null,null,null,null,null,null,null,null,null,null,null,null,null,null,null,null,null,null,null,null,null,null,null,null,null,null,null,"(215)m =",null,null,null,null,null,null,null,null,null,null,null,null,null,null,null,null,"Appendix Q items:",null,"repeat lines (253) and (254) as needed"]
[null,null,null,null,null,null,null,null,null,null,null,null,null,null,null,null,null,null,null,null,null,null,null,null,null,null,null,null,null,null,null,null,null,null,null,null,null,null,null,null,null,null,null,null,null,null,null,null,null,null,null,null,null,null,null,null,null,null,null,null,null,null,null,null,null,null,null,null,null,null,null,null,null,null,null,null,null,null,null,"Enter (50) or (54) in (55)",null,null,null,null,null,null,null,null,null,null,null,null,null,0,"(55)",null,null,null,null,null,null,null,null,null,null,null,null,null,null,null,null,null,null,null,null,null,null,null,null,null,null,null,null,null,null,null,null,null,null,null,null,null,null,null,null,null,null,null,null,null,null,null,null,null,null,null,null,null,null,null,null,null,null,null,null,null,null,null,null,null,null,null,null,null,null,null,null,null,null,null,null,null,null,null,null,null,null,null,null,null,null,null,null,null,null,null,null,null,null,null,null,null,null,null,null,null,null,null,"Total (kWh/year) = ∑(215) 1..5,10..12 = ",null,"(215)",null,null,"    <description>, energy saved",null,"one of (236a) etc","×",null,"× 0.01 =",null,"(253)"]
[null,null,null,null,null,null,null,null,null,null,null,null,null,null,null,null,null,null,null,null,null,null,null,null,null,null,null,null,null,null,null,null,null,null,null,null,null,null,null,null,null,null,null,null,null,null,null,null,null,null,null,null,null,null,null,null,null,null,null,null,null,null,null,null,null,null,null,null,null,null,null,null,null,null,null,null,null,null,null,null,null,null,null,null,null,null,null,null,null,null,null,null,null,null,null,null,null,null,null,null,null,null,null,null,null,null,null,null,null,null,null,null,null,null,null,null,null,null,null,null,null,null,null,null,null,null,null,null,null,null,null,null,null,null,null,null,null,null,null,null,null,null,null,null,null,null,null,null,null,null,null,null,null,null,null,null,null,null,null,null,null,null,null,null,null,null,null,null,null,null,null,null,null,null,null,null,null,null,null,null,null,null,null,null,null,null,"Water heating",null,null,null,null,null,null,null,null,null,null,null,null,null,null,null,null,"    <description>, energy used",null,"one of (237a) etc","×",null,"× 0.01 =",null,"(254)"]
[null,null,null,null,null,null,null,null,null,null,null,null,null,null,null,null,null,null,null,null,null,null,null,null,null,null,null,null,null,null,null,null,null,null,null,null,null,null,null,null,null,null,null,null,null,null,null,null,null,null,null,null,null,null,null,null,null,null,null,null,null,null,null,null,null,null,null,null,null,null,null,null,null,null,null,null,null,null,null,"Water storage (or HIU) loss calculated for each month (56)m = (55) × (41)m",null,null,null,null,null,null,null,null,null,null,null,null,null,null,null,null,null,null,null,null,null,null,null,null,null,null,null,null,null,null,null,null,null,null,null,null,null,null,null,null,null,null,null,null,null,null,null,null,null,null,null,null,null,null,null,null,null,null,null,null,null,null,null,null,null,null,null,null,null,null,null,null,null,null,null,null,null,null,null,null,null,null,null,null,null,null,null,null,null,null,null,null,null,null,null,null,null,null,null,null,null,null,null,null,null,null,"Output from water heater (calculated above)"]
[null,null,null,null,null,null,null,null,null,null,null,null,null,null,null,null,null,null,null,null,null,null,null,null,null,null,null,null,null,null,null,null,null,null,null,null,null,null,null,null,null,null,null,null,null,null,null,null,null,null,null,null,null,null,null,null,null,null,null,null,null,null,null,null,null,null,null,null,null,null,null,null,null,null,null,null,null,null,null,"(56)m =",null,0,0,0,0,0,0,0,0,0,0,0,0,null,"(56)",null,null,null,null,null,null,null,null,null,null,null,null,null,null,null,null,null,null,null,null,null,null,null,null,null,null,null,null,null,null,null,null,null,null,null,null,null,null,null,null,null,null,null,null,null,null,null,null,null,null,null,null,null,null,null,null,null,null,null,null,null,null,null,null,null,null,null,null,null,null,null,null,null,null,null,null,null,null,null,null,null,null,null,null,null,null,null,null,null,null,null,null,{"$f":"value_64_1","v":257.01151134752001},{"$f":"value_64_2","v":227.165593638205},{"$f":"value_64_3","v":241.219241755648},{"$f":"value_64_4","v":212.04431596417001},{"$f":"value_64_5","v":205.47269793945301},{"$f":"value_64_6","v":185.08633888946599},{"$f":"value_64_7","v":182.71795408545},{"$f":"value_64_8","v":190.068334889883},{"$f":"value_64_9","v":192.240126274717},{"$f":"value_64_10","v":214.42054082347499},{"$f":"value_64_11","v":228.034196820765},{"$f":"value_64_12","v":254.21916500268},null,null,null,null,"Total energy cost",null,null,null,null,"(240)...(242) + (245)…(254) = ",666.53191939777503,"(255)"]
[]
[null,null,null,null,null,null,null,null,null,null,null,null,null,null,null,null,null,null,null,null,null,null,null,null,null,null,null,null,null,null,null,null,null,null,null,null,null,null,null,null,null,null,null,null,null,null,null,null,null,null,null,null,null,null,null,null,null,null,null,null,null,null,null,null,null,null,null,null,null,null,null,null,null,null,null,null,null,null,null,"If the vessel contains dedicated solar storage or dedicated WWHRS storage,",null,null,null,null,null,null,null,null,null,null,null,null,null,null,null,null,null,null,null,null,null,null,null,null,null,null,null,null,null,null,null,null,null,null,null,null,null,null,null,null,null,null,null,null,null,null,null,null,null,null,null,null,null,null,null,null,null,null,null,null,null,null,null,null,null,null,null,null,null,null,null,null,null,null,null,null,null,null,null,null,null,null,null,null,null,null,null,null,null,null,null,null,null,null,null,null,null,null,null,null,null,null,null,null,null,null,"Efficiency of water heater"]
[null,null,null,null,null,null,null,null,null,null,null,null,null,null,null,null,null,null,null,null,null,null,null,null,null,null,null,null,null,null,null,null,null,null,null,null,null,null,null,null,null,null,null,null,null,null,null,null,null,null,null,null,null,null,null,null,null,null,null,null,null,null,null,null,null,null,null,null,null,null,null,null,null,null,null,null,null,null,null,null,null,"(57)m = (56)m × [(47) – Vs] ÷ (47), else (57)m = (56)m",null,null,null,null,null,null,null,null,null,null,null,null,null,null,null,null,null,null,null,null,null,null,null,null,null,null,null,null,null,null,null,null,null,null,null,null,null,null,null,null,null,null,null,null,null,null,null,null,null,null,null,null,null,null,null,null,null,null,null,null,null,null,null,null,null,null,null,null,null,null,null,null,null,null,null,null,null,null,null,null,null,null,null,null,null,null,null,null,null,null,null,null,null,null,null,null,null,null,null,null,null,null,null,null,"Monthly value (217)m taken as annual value from database record or Table 4a and adjusted where appropriate by the amount"]
[null,null,null,null,null,null,null,null,null,null,null,null,null,null,null,null,null,null,null,null,null,null,null,null,null,null,null,null,null,null,null,null,null,null,null,null,null,null,null,null,null,null,null,null,null,null,null,null,null,null,null,null,null,null,null,null,null,null,null,null,null,null,null,null,null,null,null,null,null,null,null,null,null,null,null,null,null,null,null,"where Vs is Vww from Appendix G3 or (H12) from Appendix H (as applicable).",null,null,null,null,null,null,null,null,null,null,null,null,null,null,null,null,null,null,null,null,null,null,null,null,null,null,null,null,null,null,null,null,null,null,null,null,null,null,null,null,null,null,null,null,null,null,null,null,null,null,null,null,null,null,null,null,null,null,null,null,null,null,null,null,null,null,null,null,null,null,null,null,null,null,null,null,null,null,null,null,null,null,null,null,null,null,null,null,null,null,null,null,null,null,null,null,null,null,null,null,null,null,null,null,null,null,"shown in the 'DHW efficiency adjustment' column of Table 4c. There are two exceptions:"]
[null,null,null,null,null,null,null,null,null,null,null,null,null,null,null,null,null,null,null,null,null,null,null,null,null,null,null,null,null,null,null,null,null,null,null,null,null,null,null,null,null,null,null,null,null,null,null,null,null,null,null,null,null,null,null,null,null,null,null,null,null,null,null,null,null,null,null,null,null,null,null,null,null,null,null,null,null,null,null,"(57)m =",null,0,0,0,0,0,0,0,0,0,0,0,0,null,"(57)",null,null,null,null,null,null,null,null,null,null,null,null,null,null,null,null,null,null,null,null,null,null,null,null,null,null,null,null,null,null,null,null,null,null,null,null,null,null,null,null,null,null,null,null,null,null,null,null,null,null,null,null,null,null,null,null,null,null,null,null,null,null,null,null,null,null,null,null,null,null,null,null,null,null,null,null,null,null,null,null,null,null,null,null,null,null,null,null,null,null,null,"A)  Gas/oil boiler main system 1 or 2 used for water heating: (217)m = value calculted for each month using equation (D1) in"]
[null,null,null,null,null,null,null,null,null,null,null,null,null,null,null,null,null,null,null,null,null,null,null,null,null,null,null,null,null,null,null,null,null,null,null,null,null,null,null,null,null,null,null,null,null,null,null,null,null,null,null,null,null,null,null,null,null,null,null,null,null,null,null,null,null,null,null,null,null,null,null,null,null,null,null,null,null,null,null,null,null,null,null,null,null,null,null,null,null,null,null,null,null,null,null,null,null,null,null,null,null,null,null,null,null,null,null,null,null,null,null,null,null,null,null,null,null,null,null,null,null,null,null,null,null,null,null,null,null,null,null,null,null,null,null,null,null,null,null,null,null,null,null,null,null,null,null,null,null,null,null,null,null,null,null,null,null,null,null,null,null,null,null,null,null,null,null,null,null,null,null,null,null,null,null,null,null,null,null,null,null,null,null,null,null,null,"Appendix D using database record, or taken from Table 4a. In either case, then adjust where appropriate by the amount shown"]
[null,null,null,null,null,null,null,null,null,null,null,null,null,null,null,null,null,null,null,null,null,null,null,null,null,null,null,null,null,null,null,null,null,null,null,null,null,null,null,null,null,null,null,null,null,null,null,null,null,null,null,null,null,null,null,null,null,null,null,null,null,null,null,null,null,null,null,null,null,null,null,null,null,null,null,null,null,null,null,"Primary circuit loss for each month from Table 3",null,null,null,null,null,null,null,null,null,null,null,null,null,null,null,null,null,null,null,null,null,null,null,null,null,null,null,null,null,null,null,null,null,null,null,null,null,null,null,null,null,null,null,null,null,null,null,null,null,null,null,null,null,null,null,null,null,null,null,null,null,null,null,null,null,null,null,null,null,null,null,null,null,null,null,null,null,null,null,null,null,null,null,null,null,null,null,null,null,null,null,null,null,null,null,null,null,null,null,null,null,null,null,null,null,null,"in the 'DHW efficiency adjustment' column of Table 4c."]
[null,null,null,null,null,null,null,null,null,null,null,null,null,null,null,null,null,null,null,null,null,null,null,null,null,null,null,null,null,null,null,null,null,null,null,null,null,null,null,null,null,null,null,null,null,null,null,null,null,null,null,null,null,null,null,null,null,null,null,null,null,null,null,null,null,null,null,null,null,null,null,null,null,null,null,null,null,null,null,"(modified by factor from Table H4 if there is solar water heating and a cylinder thermostat, although not for",null,null,null,null,null,null,null,null,null,null,null,null,null,null,null,null,null,null,null,null,null,null,null,null,null,null,null,null,null,null,null,null,null,null,null,null,null,null,null,null,null,null,null,null,null,null,null,null,null,null,null,null,null,null,null,null,null,null,null,null,null,null,null,null,null,null,null,null,null,null,null,null,null,null,null,null,null,null,null,null,null,null,null,null,null,null,null,null,null,null,null,null,null,null,null,null,null,null,null,null,null,null,null,null,null,null,"B)  mCHP main system 1 or 2 used for water heating: (217)m = value calculated for each month using equation (N8) in"]
[null,null,null,null,null,null,null,null,null,null,null,null,null,null,null,null,null,null,null,null,null,null,null,null,null,null,null,null,null,null,null,null,null,null,null,null,null,null,null,null,null,null,null,null,null,null,null,null,null,null,null,null,null,null,null,null,null,null,null,null,null,null,null,null,null,null,null,null,null,null,null,null,null,null,null,null,null,null,null,"DHW-only heat networks)",null,null,null,null,null,null,null,null,null,null,null,null,null,null,null,null,null,null,null,null,null,null,null,null,null,null,null,null,null,null,null,null,null,null,null,null,null,null,null,null,null,null,null,null,null,null,null,null,null,null,null,null,null,null,null,null,null,null,null,null,null,null,null,null,null,null,null,null,null,null,null,null,null,null,null,null,null,null,null,null,null,null,null,null,null,null,null,null,null,null,null,null,null,null,null,null,null,null,null,null,null,null,null,null,null,null,"Appendix N using database record."]
[null,null,null,null,null,null,null,null,null,null,null,null,null,null,null,null,null,null,null,null,null,null,null,null,null,null,null,null,null,null,null,null,null,null,null,null,null,null,null,null,null,null,null,null,null,null,null,null,null,null,null,null,null,null,null,null,null,null,null,null,null,null,null,null,null,null,null,null,null,null,null,null,null,null,null,null,null,null,null,"(59)m =",null,0,0,0,0,0,0,0,0,0,0,0,0,null,"(59)",null,null,null,null,null,null,null,null,null,null,null,null,null,null,null,null,null,null,null,null,null,null,null,null,null,null,null,null,null,null,null,null,null,null,null,null,null,null,null,null,null,null,null,null,null,null,null,null,null,null,null,null,null,null,null,null,null,null,null,null,null,null,null,null,null,null,null,null,null,null,null,null,null,null,null,null,null,null,null,null,null,null,null,null,null,null,null,null,null,null,null,"(217)m =",84,84,84,84,84,84,83.999999999999901,84,84,84,84,84,null,"(217)"]
[null,null,null,null,null,null,null,null,null,null,null,null,null,null,null,null,null,null,null,null,null,null,null,null,null,null,null,null,null,null,null,null,null,null,null,null,null,null,null,null,null,null,null,null,null,null,null,null,null,null,null,null,null,null,null,null,null,null,null,null,null,null,null,null,null,null,null,null,null,null,null,null,null,null,null,null,null,null,null,null,null,null,null,null,null,null,null,null,null,null,null,null,null,null,null,null,null,null,null,null,null,null,null,null,null,null,null,null,null,null,null,null,null,null,null,null,null,null,null,null,null,null,null,null,null,null,null,null,null,null,null,null,null,null,null,null,null,null,null,null,null,null,null,null,null,null,null,null,null,null,null,null,null,null,null,null,null,null,null,null,null,null,null,null,null,null,null,null,null,null,null,null,null,null,null,null,null,null,null,null,null,null,null,null,null,null,"Fuel for water heating, kWh/month"]
[null,null,null,null,null,null,null,null,null,null,null,null,null,null,null,null,null,null,null,null,null,null,null,null,null,null,null,null,null,null,null,null,null,null,null,null,null,null,null,null,null,null,null,null,null,null,null,null,null,null,null,null,null,null,null,null,null,null,null,null,null,null,null,null,null,null,null,null,null,null,null,null,null,null,null,null,null,null,null,"Combi loss for each month from Table 3a, 3b or 3c (enter “0” if not a combi boiler)",null,null,null,null,null,null,null,null,null,null,null,null,null,null,null,null,null,null,null,null,null,null,null,null,null,null,null,null,null,null,null,null,null,null,null,null,null,null,null,null,null,null,null,null,null,null,null,null,null,null,null,null,null,null,null,null,null,null,null,null,null,null,null,null,null,null,null,null,null,null,null,null,null,null,null,null,null,null,null,null,null,null,null,null,null,null,null,null,null,null,null,null,null,null,null,null,null,null,null,null,null,null,null,null,null,null,"(219)m = (64)m × 100 ÷ (217)m"]
[null,null,null,null,null,null,null,null,null,null,null,null,null,null,null,null,null,null,null,null,null,null,null,null,null,null,null,null,null,null,null,null,null,null,null,null,null,null,null,null,null,null,null,null,null,null,null,null,null,null,null,null,null,null,null,null,null,null,null,null,null,null,null,null,null,null,null,null,null,null,null,null,null,null,null,null,null,null,null,"(61)m =",null,50.958904109589,46.027397260273901,50.958904109589,49.315068493150598,50.958904109589,49.315068493150598,50.958904109589,50.958904109589,49.315068493150598,50.958904109589,49.315068493150598,50.958904109589,null,"(61)",null,null,null,null,null,null,null,null,null,null,null,null,null,null,null,null,null,null,null,null,null,null,null,null,null,null,null,null,null,null,null,null,null,null,null,null,null,null,null,null,null,null,null,null,null,null,null,null,null,null,null,null,null,null,null,null,null,null,null,null,null,null,null,null,null,null,null,null,null,null,null,null,null,null,null,null,null,null,null,null,null,null,null,null,null,null,null,null,null,null,null,"(219)m =",305.96608493752399,270.43523052167302,287.16576399482,252.43370948115501,244.61035468982499,220.340879630317,217.52137391125001,226.27182724986,228.85729318418601,255.26254859937501,271.46928192948201,302.64186309842898]
[null,null,null,null,null,null,null,null,null,null,null,null,null,null,null,null,null,null,null,null,null,null,null,null,null,null,null,null,null,null,null,null,null,null,null,null,null,null,null,null,null,null,null,null,null,null,null,null,null,null,null,null,null,null,null,null,null,null,null,null,null,null,null,null,null,null,null,null,null,null,null,null,null,null,null,null,null,null,null,"Total heat required for water heating calculated for each month         (62)m = 0.85 × (45)m + (46)m + (57)m + (59)m + (61)m",null,null,null,null,null,null,null,null,null,null,null,null,null,null,null,null,null,null,null,null,null,null,null,null,null,null,null,null,null,null,null,null,null,null,null,null,null,null,null,null,null,null,null,null,null,null,null,null,null,null,null,null,null,null,null,null,null,null,null,null,null,null,null,null,null,null,null,null,null,null,null,null,null,null,null,null,null,null,null,null,null,null,null,null,null,null,null,null,null,null,null,null,null,null,null,null,null,null,null,null,null,null,null,null,null,null,null,null,null,null,null,null,null,null,null,null,null,null,"Total = ∑(219a)1…12 = ",3082.9762112279,"(219)"]
[null,null,null,null,null,null,null,null,null,null,null,null,null,null,null,null,null,null,null,null,null,null,null,null,null,null,null,null,null,null,null,null,null,null,null,null,null,null,null,null,null,null,null,null,null,null,null,null,null,null,null,null,null,null,null,null,null,null,null,null,null,null,null,null,null,null,null,null,null,null,null,null,null,null,null,null,null,null,null,"(62)m =",null,257.01151134752001,227.165593638205,241.219241755648,212.04431596417001,205.47269793945301,185.08633888946599,182.71795408545,190.068334889883,192.240126274717,214.42054082347499,228.034196820765,254.21916500268,null,"(62)",null,null,null,null,null,null,null,null,null,null,null,null,null,null,null,null,null,null,null,null,null,null,null,null,null,null,null,null,null,null,null,null,null,null,null,null,null,null,null,null,null,null,null,null,null,null,null,null,null,null,null,null,null,null,null,null,null,null,null,null,null,null,null,null,null,null,null,null,null,null,null,null,null,null,null,null,null,null,null,null,null,null,null,null,null,null,null,null,null,null,null,"(for a DHW-only heat network use (305), (306) and (310b), with (304a)=1.0 or (304b)=1.0, instead of (219)"]
[null,null,null,null,null,null,null,null,null,null,null,null,null,null,null,null,null,null,null,null,null,null,null,null,null,null,null,null,null,null,null,null,null,null,null,null,null,null,null,null,null,null,null,null,null,null,null,null,null,null,null,null,null,null,null,null,null,null,null,null,null,null,null,null,null,null,null,null,null,null,null,null,null,null,null,null,null,null,null,"WWHRS DHW input calculated using Appendix G (negative quantity) (enter “0” if no WWHRS contribution to water heating)"]
[null,null,null,null,null,null,null,null,null,null,null,null,null,null,null,null,null,null,null,null,null,null,null,null,null,null,null,null,null,null,null,null,null,null,null,null,null,null,null,null,null,null,null,null,null,null,null,null,null,null,null,null,null,null,null,null,null,null,null,null,null,null,null,null,null,null,null,null,null,null,null,null,null,null,null,null,null,null,null,"(63a)m =",null,0,0,0,0,0,0,0,0,0,0,0,0,null,"(63a)",null,null,null,null,null,null,null,null,null,null,null,null,null,null,null,null,null,null,null,null,null,null,null,null,null,null,null,null,null,null,null,null,null,null,null,null,null,null,null,null,null,null,null,null,null,null,null,null,null,null,null,null,null,null,null,null,null,null,null,null,null,null,null,null,null,null,null,null,null,null,null,null,null,null,null,null,null,null,null,null,null,null,null,null,null,null,null,null,null,null,null,"Space cooling"]
[null,null,null,null,null,null,null,null,null,null,null,null,null,null,null,null,null,null,null,null,null,null,null,null,null,null,null,null,null,null,null,null,null,null,null,null,null,null,null,null,null,null,null,null,null,null,null,null,null,null,null,null,null,null,null,null,null,null,null,null,null,null,null,null,null,null,null,null,null,null,null,null,null,null,null,null,null,null,null,"PV diverter DHW input calculated using Appendix G (negative quantity) (enter “0” if no PV diverter contribution)",null,null,null,null,null,null,null,null,null,null,null,null,null,null,null,null,null,null,null,null,null,null,null,null,null,null,null,null,null,null,null,null,null,null,null,null,null,null,null,null,null,null,null,null,null,null,null,null,null,null,null,null,null,null,null,null,null,null,null,null,null,null,null,null,null,null,null,null,null,null,null,null,null,null,null,null,null,null,null,null,null,null,null,null,null,null,null,null,null,null,null,null,null,null,null,null,null,null,null,null,null,null,null,null,null,null,"Space cooling fuel, kWh/month"]
[null,null,null,null,null,null,null,null,null,null,null,null,null,null,null,null,null,null,null,null,null,null,null,null,null,null,null,null,null,null,null,null,null,null,null,null,null,null,null,null,null,null,null,null,null,null,null,null,null,null,null,null,null,null,null,null,null,null,null,null,null,null,null,null,null,null,null,null,null,null,null,null,null,null,null,null,null,null,null,"(63b)m =",null,0,0,0,0,0,0,0,0,0,0,0,0,null,"(63b)",null,null,null,null,null,null,null,null,null,null,null,null,null,null,null,null,null,null,null,null,null,null,null,null,null,null,null,null,null,null,null,null,null,null,null,null,null,null,null,null,null,null,null,null,null,null,null,null,null,null,null,null,null,null,null,null,null,null,null,null,null,null,null,null,null,null,null,null,null,null,null,null,null,null,null,null,null,null,null,null,null,null,null,null,null,null,null,null,null,null,null,"(221)m ="]
[null,null,null,null,null,null,null,null,null,null,null,null,null,null,null,null,null,null,null,null,null,null,null,null,null,null,null,null,null,null,null,null,null,null,null,null,null,null,null,null,null,null,null,null,null,null,null,null,null,null,null,null,null,null,null,null,null,null,null,null,null,null,null,null,null,null,null,null,null,null,null,null,null,null,null,null,null,null,null,"Solar DHW input calculated using Appendix H (negative quantity) (enter “0” if no solar contribution to water heating)",null,null,null,null,null,null,null,null,null,null,null,null,null,null,null,null,null,null,null,null,null,null,null,null,null,null,null,null,null,null,null,null,null,null,null,null,null,null,null,null,null,null,null,null,null,null,null,null,null,null,null,null,null,null,null,null,null,null,null,null,null,null,null,null,null,null,null,null,null,null,null,null,null,null,null,null,null,null,null,null,null,null,null,null,null,null,null,null,null,null,null,null,null,null,null,null,null,null,null,null,null,null,null,null,null,null,null,null,null,null,null,null,null,null,null,null,null,null,"Total = ∑(221)1…12 = ",null,"(221)"]
[null,null,null,null,null,null,null,null,null,null,null,null,null,null,null,null,null,null,null,null,null,null,null,null,null,null,null,null,null,null,null,null,null,null,null,null,null,null,null,null,null,null,null,null,null,null,null,null,null,null,null,null,null,null,null,null,null,null,null,null,null,null,null,null,null,null,null,null,null,null,null,null,null,null,null,null,null,null,null,"(63c)m =",null,0,0,0,0,0,0,0,0,0,0,0,0,null,"(63c)"]
[null,null,null,null,null,null,null,null,null,null,null,null,null,null,null,null,null,null,null,null,null,null,null,null,null,null,null,null,null,null,null,null,null,null,null,null,null,null,null,null,null,null,null,null,null,null,null,null,null,null,null,null,null,null,null,null,null,null,null,null,null,null,null,null,null,null,null,null,null,null,null,null,null,null,null,null,null,null,null,"FGHRS DHW input calculated using Appendix G (negative quantity) (enter “0” if no FGHRS contribution to water heating)",null,null,null,null,null,null,null,null,null,null,null,null,null,null,null,null,null,null,null,null,null,null,null,null,null,null,null,null,null,null,null,null,null,null,null,null,null,null,null,null,null,null,null,null,null,null,null,null,null,null,null,null,null,null,null,null,null,null,null,null,null,null,null,null,null,null,null,null,null,null,null,null,null,null,null,null,null,null,null,null,null,null,null,null,null,null,null,null,null,null,null,null,null,null,null,null,null,null,null,null,null,null,null,null,null,null,"Annual totals",null,null,null,null,null,null,null,null,null,null,null,"kWh/year","kWh/year"]
[null,null,null,null,null,null,null,null,null,null,null,null,null,null,null,null,null,null,null,null,null,null,null,null,null,null,null,null,null,null,null,null,null,null,null,null,null,null,null,null,null,null,null,null,null,null,null,null,null,null,null,null,null,null,null,null,null,null,null,null,null,null,null,null,null,null,null,null,null,null,null,null,null,null,null,null,null,null,null,"(63d)m =",null,0,0,0,0,0,0,0,0,0,0,0,0,null,"(63d)",null,null,null,null,null,null,null,null,null,null,null,null,null,null,null,null,null,null,null,null,null,null,null,null,null,null,null,null,null,null,null,null,null,null,null,null,null,null,null,null,null,null,null,null,null,null,null,null,null,null,null,null,null,null,null,null,null,null,null,null,null,null,null,null,null,null,null,null,null,null,null,null,null,null,null,null,null,null,null,null,null,null,null,null,null,null,null,null,null,null,null,"Space heating fuel used, main system 1",null,null,null,null,null,null,null,null,null,null,null,null,{"$f":"value_211","v":9788.6663719300395},"(211)"]
[null,null,null,null,null,null,null,null,null,null,null,null,null,null,null,null,null,null,null,null,null,null,null,null,null,null,null,null,null,null,null,null,null,null,null,null,null,null,null,null,null,null,null,null,null,null,null,null,null,null,null,null,null,null,null,null,null,null,null,null,null,null,null,null,null,null,null,null,null,null,null,null,null,null,null,null,null,null,null,"Output from water heater for each month, kWh/month         (64)m = (62)m + (63a)m + (63b)m + (63c)m + (63d)m",null,null,null,null,null,null,null,null,null,null,null,null,null,null,null,null,null,null,null,null,null,null,null,null,null,null,null,null,null,null,null,null,null,null,null,null,null,null,null,null,null,null,null,null,null,null,null,null,null,null,null,null,null,null,null,null,null,null,null,null,null,null,null,null,null,null,null,null,null,null,null,null,null,null,null,null,null,null,null,null,null,null,null,null,null,null,null,null,null,null,null,null,null,null,null,null,null,null,null,null,null,null,null,null,null,null,"Space heating fuel used, main system 2",null,null,null,null,null,null,null,null,null,null,null,null,{"$f":"value_213","v":0},"(213)"]
[null,null,null,null,null,null,null,null,null,null,null,null,null,null,null,null,null,null,null,null,null,null,null,null,null,null,null,null,null,null,null,null,null,null,null,null,null,null,null,null,null,null,null,null,null,null,null,null,null,null,null,null,null,null,null,null,null,null,null,null,null,null,null,null,null,null,null,null,null,null,null,null,null,null,null,null,null,null,null,"(64)m =",null,257.01151134752001,227.165593638205,241.219241755648,212.04431596417001,205.47269793945301,185.08633888946599,182.71795408545,190.068334889883,192.240126274717,214.42054082347499,228.034196820765,254.21916500268,null,null,null,null,null,null,null,null,null,null,null,null,null,null,null,null,null,null,null,null,null,null,null,null,null,null,null,null,null,null,null,null,null,null,null,null,null,null,null,null,null,null,null,null,null,null,null,null,null,null,null,null,null,null,null,null,null,null,null,null,null,null,null,null,null,null,null,null,null,null,null,null,null,null,null,null,null,null,null,null,null,null,null,null,null,null,null,null,null,null,null,null,null,"Space heating fuel used, secondary",null,null,null,null,null,null,null,null,null,null,null,null,{"$f":"value_215","v":0},"(215)"]
[null,null,null,null,null,null,null,null,null,null,null,null,null,null,null,null,null,null,null,null,null,null,null,null,null,null,null,null,null,null,null,null,null,null,null,null,null,null,null,null,null,null,null,null,null,null,null,null,null,null,null,null,null,null,null,null,null,null,null,null,null,null,null,null,null,null,null,null,null,null,null,null,null,null,null,null,null,null,null,null,null,null,null,null,null,null,null,null,null,null,null,null,"Total per year (kWh/year) = ∑(64)1…12 = ",2589.7000174314298,"(64)",null,null,null,null,null,null,null,null,null,null,null,null,null,null,null,null,null,null,null,null,null,null,null,null,null,null,null,null,null,null,null,null,null,null,null,null,null,null,null,null,null,null,null,null,null,null,null,null,null,null,null,null,null,null,null,null,null,null,null,null,null,null,null,null,null,null,null,null,null,null,null,null,null,null,null,null,null,null,null,null,null,null,null,null,null,null,null,null,null,null,null,"Water heating fuel used",null,null,null,null,null,null,null,null,null,null,null,null,{"$f":"value_219","v":3082.9762112279},"(219)"]
[null,null,null,null,null,null,null,null,null,null,null,null,null,null,null,null,null,null,null,null,null,null,null,null,null,null,null,null,null,null,null,null,null,null,null,null,null,null,null,null,null,null,null,null,null,null,null,null,null,null,null,null,null,null,null,null,null,null,null,null,null,null,null,null,null,null,null,null,null,null,null,null,null,null,null,null,null,null,null,"if (64)m < 0 then set to 0",null,null,null,null,null,null,null,null,null,null,null,null,null,null,null,null,null,null,null,null,null,null,null,null,null,null,null,null,null,null,null,null,null,null,null,null,null,null,null,null,null,null,null,null,null,null,null,null,null,null,null,null,null,null,null,null,null,null,null,null,null,null,null,null,null,null,null,null,null,null,null,null,null,null,null,null,null,null,null,null,null,null,null,null,null,null,null,null,null,null,null,null,null,null,null,null,null,null,null,null,null,null,null,null,null,null,"Electricity for instantaneous electric shower(s)",null,null,null,null,null,null,null,null,null,null,null,null,{"$f":"value_64a","v":0},"(64a)"]
[null,null,null,null,null,null,null,null,null,null,null,null,null,null,null,null,null,null,null,null,null,null,null,null,null,null,null,null,null,null,null,null,null,null,null,null,null,null,null,null,null,null,null,null,null,null,null,null,null,null,null,null,null,null,null,null,null,null,null,null,null,null,null,null,null,null,null,null,null,null,null,null,null,null,null,null,null,null,null,"Energy used by instantaneous electric shower(s), kWh/month (from Appendix J)",null,null,null,null,null,null,null,null,null,null,null,null,null,null,null,null,null,null,null,null,null,null,null,null,null,null,null,null,null,null,null,null,null,null,null,null,null,null,null,null,null,null,null,null,null,null,null,null,null,null,null,null,null,null,null,null,null,null,null,null,null,null,null,null,null,null,null,null,null,null,null,null,null,null,null,null,null,null,null,null,null,null,null,null,null,null,null,null,null,null,null,null,null,null,null,null,null,null,null,null,null,null,null,null,null,null,"Space cooling fuel used (if there is a fixed cooling system, if not enter 0)",null,null,null,null,null,null,null,null,null,null,null,null,{"$f":"value_221","v":0},"(221)"]
[null,null,null,null,null,null,null,null,null,null,null,null,null,null,null,null,null,null,null,null,null,null,null,null,null,null,null,null,null,null,null,null,null,null,null,null,null,null,null,null,null,null,null,null,null,null,null,null,null,null,null,null,null,null,null,null,null,null,null,null,null,null,null,null,null,null,null,null,null,null,null,null,null,null,null,null,null,null,null,"(64a)m =",null,null,null,null,null,null,null,null,null,null,null,null,null,null,null,null,null,null,null,null,null,null,null,null,null,null,null,null,null,null,null,null,null,null,null,null,null,null,null,null,null,null,null,null,null,null,null,null,null,null,null,null,null,null,null,null,null,null,null,null,null,null,null,null,null,null,null,null,null,null,null,null,null,null,null,null,null,null,null,null,null,null,null,null,null,null,null,null,null,null,null,null,null,null,null,null,null,null,null,null,null,null,null,null,null,null,"Electricity for pumps, fans and electric keep-hot (Table 4f):"]
[null,null,null,null,null,null,null,null,null,null,null,null,null,null,null,null,null,null,null,null,null,null,null,null,null,null,null,null,null,null,null,null,null,null,null,null,null,null,null,null,null,null,null,null,null,null,null,null,null,null,null,null,null,null,null,null,null,null,null,null,null,null,null,null,null,null,null,null,null,null,null,null,null,null,null,null,null,null,null,null,null,null,null,null,null,null,null,null,null,null,null,null,"Total per year (kWh/year) = ∑(64a)1…12 = ",null,"(64a)",null,null,null,null,null,null,null,null,null,null,null,null,null,null,null,null,null,null,null,null,null,null,null,null,null,null,null,null,null,null,null,null,null,null,null,null,null,null,null,null,null,null,null,null,null,null,null,null,null,null,null,null,null,null,null,null,null,null,null,null,null,null,null,null,null,null,null,null,null,null,null,null,null,null,null,null,null,null,null,null,null,null,null,null,null,null,null,null,null,null,null,"mechanical ventilation fans - balanced, extract or positive input from outside",null,null,null,null,null,null,null,null,null,null,null,0,null,"(230a)"]
[null,null,null,null,null,null,null,null,null,null,null,null,null,null,null,null,null,null,null,null,null,null,null,null,null,null,null,null,null,null,null,null,null,null,null,null,null,null,null,null,null,null,null,null,null,null,null,null,null,null,null,null,null,null,null,null,null,null,null,null,null,null,null,null,null,null,null,null,null,null,null,null,null,null,null,null,null,null,null,"Heat gains from water heating, kWh/month        0.25 × [0.85 × (45)m + (61)m + (64a)m] + 0.8 × [(46)m + (57)m + (59)m ]",null,null,null,null,null,null,null,null,null,null,null,null,null,null,null,null,null,null,null,null,null,null,null,null,null,null,null,null,null,null,null,null,null,null,null,null,null,null,null,null,null,null,null,null,null,null,null,null,null,null,null,null,null,null,null,null,null,null,null,null,null,null,null,null,null,null,null,null,null,null,null,null,null,null,null,null,null,null,null,null,null,null,null,null,null,null,null,null,null,null,null,null,null,null,null,null,null,null,null,null,null,null,null,null,null,null,"warm air heating system fans",null,null,null,null,null,null,null,null,null,null,null,0,null,"(230b)"]
[null,null,null,null,null,null,null,null,null,null,null,null,null,null,null,null,null,null,null,null,null,null,null,null,null,null,null,null,null,null,null,null,null,null,null,null,null,null,null,null,null,null,null,null,null,null,null,null,null,null,null,null,null,null,null,null,null,null,null,null,null,null,null,null,null,null,null,null,null,null,null,null,null,null,null,null,null,null,null,"(65)m =",null,81.252217934009394,71.735299610730607,76.001288294712097,66.436241907401694,64.115562475827105,57.472714530062603,56.549610144371002,58.993611761845003,59.851348835658399,67.090720234764404,71.752877292219395,80.3237627743503,null,"(65)",null,null,null,null,null,null,null,null,null,null,null,null,null,null,null,null,null,null,null,null,null,null,null,null,null,null,null,null,null,null,null,null,null,null,null,null,null,null,null,null,null,null,null,null,null,null,null,null,null,null,null,null,null,null,null,null,null,null,null,null,null,null,null,null,null,null,null,null,null,null,null,null,null,null,null,null,null,null,null,null,null,null,null,null,null,null,null,null,null,null,null,"heating circulation pump or water pump within warm air heating unit",null,null,null,null,null,null,null,null,null,null,null,115,null,"(230c)"]
[null,null,null,null,null,null,null,null,null,null,null,null,null,null,null,null,null,null,null,null,null,null,null,null,null,null,null,null,null,null,null,null,null,null,null,null,null,null,null,null,null,null,null,null,null,null,null,null,null,null,null,null,null,null,null,null,null,null,null,null,null,null,null,null,null,null,null,null,null,null,null,null,null,null,null,null,null,null,null,null,"Include (57)m in calculation of (65)m only if hot water store is in the dwelling or hot water is from heat network",null,null,null,null,null,null,null,null,null,null,null,null,null,null,null,null,null,null,null,null,null,null,null,null,null,null,null,null,null,null,null,null,null,null,null,null,null,null,null,null,null,null,null,null,null,null,null,null,null,null,null,null,null,null,null,null,null,null,null,null,null,null,null,null,null,null,null,null,null,null,null,null,null,null,null,null,null,null,null,null,null,null,null,null,null,null,null,null,null,null,null,null,null,null,null,null,null,null,null,null,null,null,null,null,null,"oil boiler auxiliary (oil pump, flue fan, etc; excludes circulation pump)",null,null,null,null,null,null,null,null,null,null,null,0,null,"(230d)"]
[null,null,null,null,null,null,null,null,null,null,null,null,null,null,null,null,null,null,null,null,null,null,null,null,null,null,null,null,null,null,null,null,null,null,null,null,null,null,null,null,null,null,null,null,null,null,null,null,null,null,null,null,null,null,null,null,null,null,null,null,null,null,null,null,null,null,null,null,null,null,null,null,null,null,null,null,null,null,null,null,"If a thermal store is present it is assumed to be inside the heated space",null,null,null,null,null,null,null,null,null,null,null,null,null,null,null,null,null,null,null,null,null,null,null,null,null,null,null,null,null,null,null,null,null,null,null,null,null,null,null,null,null,null,null,null,null,null,null,null,null,null,null,null,null,null,null,null,null,null,null,null,null,null,null,null,null,null,null,null,null,null,null,null,null,null,null,null,null,null,null,null,null,null,null,null,null,null,null,null,null,null,null,null,null,null,null,null,null,null,null,null,null,null,null,null,null,"gas boiler auxiliary (flue fan, etc; excludes circulation pump)",null,null,null,null,null,null,null,null,null,null,null,0,null,"(230e)"]
[null,null,null,null,null,null,null,null,null,null,null,null,null,null,null,null,null,null,null,null,null,null,null,null,null,null,null,null,null,null,null,null,null,null,null,null,null,null,null,null,null,null,null,null,null,null,null,null,null,null,null,null,null,null,null,null,null,null,null,null,null,null,null,null,null,null,null,null,null,null,null,null,null,null,null,null,null,null,null,null,null,null,null,null,null,null,null,null,null,null,null,null,null,null,null,null,null,null,null,null,null,null,null,null,null,null,null,null,null,null,null,null,null,null,null,null,null,null,null,null,null,null,null,null,null,null,null,null,null,null,null,null,null,null,null,null,null,null,null,null,null,null,null,null,null,null,null,null,null,null,null,null,null,null,null,null,null,null,null,null,null,null,null,null,null,null,null,null,null,null,null,null,null,null,null,null,null,null,null,null,null,null,null,null,null,null,"maintaining electric keep-hot facility for gas combi boiler",null,null,null,null,null,null,null,null,null,null,null,0,null,"(230f)"]
[null,null,null,null,null,null,null,null,null,null,null,null,null,null,null,null,null,null,null,null,null,null,null,null,null,null,null,null,null,null,null,null,null,null,null,null,null,null,null,null,null,null,null,null,null,null,null,null,null,null,null,null,null,null,null,null,null,null,null,null,null,null,null,null,null,null,null,null,null,null,null,null,null,null,null,null,null,null,null,null,null,null,null,null,null,null,null,null,null,null,null,null,null,null,null,null,null,null,null,null,null,null,null,null,null,null,null,null,null,null,null,null,null,null,null,null,null,null,null,null,null,null,null,null,null,null,null,null,null,null,null,null,null,null,null,null,null,null,null,null,null,null,null,null,null,null,null,null,null,null,null,null,null,null,null,null,null,null,null,null,null,null,null,null,null,null,null,null,null,null,null,null,null,null,null,null,null,null,null,null,null,null,null,null,null,null,"pump for solar water heating",null,null,null,null,null,null,null,null,null,null,null,0,null,"(230g)"]
[null,null,null,null,null,null,null,null,null,null,null,null,null,null,null,null,null,null,null,null,null,null,null,null,null,null,null,null,null,null,null,null,null,null,null,null,null,null,null,null,null,null,null,null,null,null,null,null,null,null,null,null,null,null,null,null,null,null,null,null,null,null,null,null,null,null,null,null,null,null,null,null,null,null,null,null,null,null,null,null,null,null,null,null,null,null,null,null,null,null,null,null,null,null,null,null,null,null,null,null,null,null,null,null,null,null,null,null,null,null,null,null,null,null,null,null,null,null,null,null,null,null,null,null,null,null,null,null,null,null,null,null,null,null,null,null,null,null,null,null,null,null,null,null,null,null,null,null,null,null,null,null,null,null,null,null,null,null,null,null,null,null,null,null,null,null,null,null,null,null,null,null,null,null,null,null,null,null,null,null,null,null,null,null,null,null,"pump for storage WWHRS (see section G3.3)",null,null,null,null,null,null,null,null,null,null,null,0,null,"(230h)"]
[null,null,null,null,null,null,null,null,null,null,null,null,null,null,null,null,null,null,null,null,null,null,null,null,null,null,null,null,null,null,null,null,null,null,null,null,null,null,null,null,null,null,null,null,null,null,null,null,null,null,null,null,null,null,null,null,null,null,null,null,null,null,null,null,null,null,null,null,null,null,null,null,null,null,null,null,null,null,null,null,null,null,null,null,null,null,null,null,null,null,null,null,null,null,null,null,null,null,null,null,null,null,null,null,null,null,null,null,null,null,null,null,null,null,null,null,null,null,null,null,null,null,null,null,null,null,null,null,null,null,null,null,null,null,null,null,null,null,null,null,null,null,null,null,null,null,null,null,null,null,null,null,null,null,null,null,null,null,null,null,null,null,null,null,null,null,null,null,null,null,null,null,null,null,null,null,null,null,null,null,null,null,null,null,null,null,"Total electricity for the above, kWh/year",null,null,null,null,null,null,null,null,null,null,null,"sum of (230a)…(230h) = ",115,"(231)"]
[]
[null,null,null,null,null,null,null,null,null,null,null,null,null,null,null,null,null,null,null,null,null,null,null,null,null,null,null,null,null,null,null,null,null,null,null,null,null,null,null,null,null,null,null,null,null,null,null,null,null,null,null,null,null,null,null,null,null,null,null,null,null,null,null,null,null,null,null,null,null,null,null,null,null,null,null,null,null,null,null,null,null,null,null,null,null,null,null,null,null,null,null,null,null,null,null,null,null,null,null,null,null,null,null,null,null,null,null,null,null,null,null,null,null,null,null,null,null,null,null,null,null,null,null,null,null,null,null,null,null,null,null,null,null,null,null,null,null,null,null,null,null,null,null,null,null,null,null,null,null,null,null,null,null,null,null,null,null,null,null,null,null,null,null,null,null,null,null,null,null,null,null,null,null,null,null,null,null,null,null,null,null,null,null,null,null,null,"Electricity for lighting (calculated in Appendix L)",null,null,null,null,null,null,null,null,null,null,null,null,527.83886822817396,"(232)"]
[]
[null,null,null,null,null,null,null,null,null,null,null,null,null,null,null,null,null,null,null,null,null,null,null,null,null,null,null,null,null,null,null,null,null,null,null,null,null,null,null,null,null,null,null,null,null,null,null,null,null,null,null,null,null,null,null,null,null,null,null,null,null,null,null,null,null,null,null,null,null,null,null,null,null,null,null,null,null,null,null,null,null,null,null,null,null,null,null,null,null,null,null,null,null,null,null,null,null,null,null,null,null,null,null,null,null,null,null,null,null,null,null,null,null,null,null,null,null,null,null,null,null,null,null,null,null,null,null,null,null,null,null,null,null,null,null,null,null,null,null,null,null,null,null,null,null,null,null,null,null,null,null,null,null,null,null,null,null,null,null,null,null,null,null,null,null,null,null,null,null,null,null,null,null,null,null,null,null,null,null,null,null,null,null,null,null,null,"Energy saving/generation technologies (Appendices M, N) - Energy used in dwelling"]
[null,null,null,null,null,null,null,null,null,null,null,null,null,null,null,null,null,null,null,null,null,null,null,null,null,null,null,null,null,null,null,null,null,null,null,null,null,null,null,null,null,null,null,null,null,null,null,null,null,null,null,null,null,null,null,null,null,null,null,null,null,null,null,null,null,null,null,null,null,null,null,null,null,null,null,null,null,null,null,null,null,null,null,null,null,null,null,null,null,null,null,null,null,null,null,null,null,null,null,null,null,null,null,null,null,null,null,null,null,null,null,null,null,null,null,null,null,null,null,null,null,null,null,null,null,null,null,null,null,null,null,null,null,null,null,null,null,null,null,null,null,null,null,null,null,null,null,null,null,null,null,null,null,null,null,null,null,null,null,null,null,null,null,null,null,null,null,null,null,null,null,null,null,null,null,null,null,null,null,null,null,null,null,null,null,null,"Jan","Feb","Mar","Apr","May","Jun","Jul","Aug","Sep","Oct","Nov","Dec"]
[null,null,null,null,null,null,null,null,null,null,null,null,null,null,null,null,null,null,null,null,null,null,null,null,null,null,null,null,null,null,null,null,null,null,null,null,null,null,null,null,null,null,null,null,null,null,null,null,null,null,null,null,null,null,null,null,null,null,null,null,null,null,null,null,null,null,null,null,null,null,null,null,null,null,null,null,null,null,null,null,null,null,null,null,null,null,null,null,null,null,null,null,null,null,null,null,null,null,null,null,null,null,null,null,null,null,null,null,null,null,null,null,null,null,null,null,null,null,null,null,null,null,null,null,null,null,null,null,null,null,null,null,null,null,null,null,null,null,null,null,null,null,null,null,null,null,null,null,null,null,null,null,null,null,null,null,null,null,null,null,null,null,null,null,null,null,null,null,null,null,null,null,null,null,null,null,null,null,null,null,null,null,null,null,null,null,"Electricity generated by PVs (Appendix M) (negative quantity)"]
[]
[null,null,null,null,null,null,null,null,null,null,null,null,null,null,null,null,null,null,null,null,null,null,null,null,null,null,null,null,null,null,null,null,null,null,null,null,null,null,null,null,null,null,null,null,null,null,null,null,null,null,null,null,null,null,null,null,null,null,null,null,null,null,null,null,null,null,null,null,null,null,null,null,null,null,null,null,null,null,null,null,null,null,null,null,null,null,null,null,null,null,null,null,null,null,null,null,null,null,null,null,null,null,null,null,null,null,null,null,null,null,null,null,null,null,null,null,null,null,null,null,null,null,null,null,null,null,null,null,null,null,null,null,null,null,null,null,null,null,null,null,null,null,null,null,null,null,null,null,null,null,null,null,null,null,null,null,null,null,null,null,null,null,null,null,null,null,null,null,null,null,null,null,null,null,null,null,null,null,null,null,null,null,null,null,null,null,null,null,null,null,null,null,null,null,null,null,null,null,null,"(233a)"]
[null,null,null,null,null,null,null,null,null,null,null,null,null,null,null,null,null,null,null,null,null,null,null,null,null,null,null,null,null,null,null,null,null,null,null,null,null,null,null,null,null,null,null,null,null,null,null,null,null,null,null,null,null,null,null,null,null,null,null,null,null,null,null,null,null,null,null,null,null,null,null,null,null,null,null,null,null,null,null,null,null,null,null,null,null,null,null,null,null,null,null,null,null,null,null,null,null,null,null,null,null,null,null,null,null,null,null,null,null,null,null,null,null,null,null,null,null,null,null,null,null,null,null,null,null,null,null,null,null,null,null,null,null,null,null,null,null,null,null,null,null,null,null,null,null,null,null,null,null,null,null,null,null,null,null,null,null,null,null,null,null,null,null,null,null,null,null,null,null,null,null,null,null,null,null,null,null,null,null,null,null,null,null,null,null,null,"Electricity generated by wind turbines (Appendix M) (negative quantity)"]
[]
[null,null,null,null,null,null,null,null,null,null,null,null,null,null,null,null,null,null,null,null,null,null,null,null,null,null,null,null,null,null,null,null,null,null,null,null,null,null,null,null,null,null,null,null,null,null,null,null,null,null,null,null,null,null,null,null,null,null,null,null,null,null,null,null,null,null,null,null,null,null,null,null,null,null,null,null,null,null,null,null,null,null,null,null,null,null,null,null,null,null,null,null,null,null,null,null,null,null,null,null,null,null,null,null,null,null,null,null,null,null,null,null,null,null,null,null,null,null,null,null,null,null,null,null,null,null,null,null,null,null,null,null,null,null,null,null,null,null,null,null,null,null,null,null,null,null,null,null,null,null,null,null,null,null,null,null,null,null,null,null,null,null,null,null,null,null,null,null,null,null,null,null,null,null,null,null,null,null,null,null,null,null,null,null,null,null,null,null,null,null,null,null,null,null,null,null,null,null,null,"(234a)"]
[null,null,null,null,null,null,null,null,null,null,null,null,null,null,null,null,null,null,null,null,null,null,null,null,null,null,null,null,null,null,null,null,null,null,null,null,null,null,null,null,null,null,null,null,null,null,null,null,null,null,null,null,null,null,null,null,null,null,null,null,null,null,null,null,null,null,null,null,null,null,null,null,null,null,null,null,null,null,null,null,null,null,null,null,null,null,null,null,null,null,null,null,null,null,null,null,null,null,null,null,null,null,null,null,null,null,null,null,null,null,null,null,null,null,null,null,null,null,null,null,null,null,null,null,null,null,null,null,null,null,null,null,null,null,null,null,null,null,null,null,null,null,null,null,null,null,null,null,null,null,null,null,null,null,null,null,null,null,null,null,null,null,null,null,null,null,null,null,null,null,null,null,null,null,null,null,null,null,null,null,null,null,null,null,null,null,"Electricity generated by hydro-electric generators (Appendix M) (negative quantity)"]
[]
[null,null,null,null,null,null,null,null,null,null,null,null,null,null,null,null,null,null,null,null,null,null,null,null,null,null,null,null,null,null,null,null,null,null,null,null,null,null,null,null,null,null,null,null,null,null,null,null,null,null,null,null,null,null,null,null,null,null,null,null,null,null,null,null,null,null,null,null,null,null,null,null,null,null,null,null,null,null,null,null,null,null,null,null,null,null,null,null,null,null,null,null,null,null,null,null,null,null,null,null,null,null,null,null,null,null,null,null,null,null,null,null,null,null,null,null,null,null,null,null,null,null,null,null,null,null,null,null,null,null,null,null,null,null,null,null,null,null,null,null,null,null,null,null,null,null,null,null,null,null,null,null,null,null,null,null,null,null,null,null,null,null,null,null,null,null,null,null,null,null,null,null,null,null,null,null,null,null,null,null,null,null,null,null,null,null,null,null,null,null,null,null,null,null,null,null,null,null,null,"(235a)"]
[null,null,null,null,null,null,null,null,null,null,null,null,null,null,null,null,null,null,null,null,null,null,null,null,null,null,null,null,null,null,null,null,null,null,null,null,null,null,null,null,null,null,null,null,null,null,null,null,null,null,null,null,null,null,null,null,null,null,null,null,null,null,null,null,null,null,null,null,null,null,null,null,null,null,null,null,null,null,null,null,null,null,null,null,null,null,null,null,null,null,null,null,null,null,null,null,null,null,null,null,null,null,null,null,null,null,null,null,null,null,null,null,null,null,null,null,null,null,null,null,null,null,null,null,null,null,null,null,null,null,null,null,null,null,null,null,null,null,null,null,null,null,null,null,null,null,null,null,null,null,null,null,null,null,null,null,null,null,null,null,null,null,null,null,null,null,null,null,null,null,null,null,null,null,null,null,null,null,null,null,null,null,null,null,null,null,"Electricity used or net electricity generated by micro-CHP (Appendix N) (negative if net generation)"]
[]
[null,null,null,null,null,null,null,null,null,null,null,null,null,null,null,null,null,null,null,null,null,null,null,null,null,null,null,null,null,null,null,null,null,null,null,null,null,null,null,null,null,null,null,null,null,null,null,null,null,null,null,null,null,null,null,null,null,null,null,null,null,null,null,null,null,null,null,null,null,null,null,null,null,null,null,null,null,null,null,null,null,null,null,null,null,null,null,null,null,null,null,null,null,null,null,null,null,null,null,null,null,null,null,null,null,null,null,null,null,null,null,null,null,null,null,null,null,null,null,null,null,null,null,null,null,null,null,null,null,null,null,null,null,null,null,null,null,null,null,null,null,null,null,null,null,null,null,null,null,null,null,null,null,null,null,null,null,null,null,null,null,null,null,null,null,null,null,null,null,null,null,null,null,null,null,null,null,null,null,null,null,null,null,null,null,null,null,null,null,null,null,null,null,null,null,null,null,null,null,"(235c)"]
[null,null,null,null,null,null,null,null,null,null,null,null,null,null,null,null,null,null,null,null,null,null,null,null,null,null,null,null,null,null,null,null,null,null,null,null,null,null,null,null,null,null,null,null,null,null,null,null,null,null,null,null,null,null,null,null,null,null,null,null,null,null,null,null,null,null,null,null,null,null,null,null,null,null,null,null,null,null,null,null,null,null,null,null,null,null,null,null,null,null,null,null,null,null,null,null,null,null,null,null,null,null,null,null,null,null,null,null,null,null,null,null,null,null,null,null,null,null,null,null,null,null,null,null,null,null,null,null,null,null,null,null,null,null,null,null,null,null,null,null,null,null,null,null,null,null,null,null,null,null,null,null,null,null,null,null,null,null,null,null,null,null,null,null,null,null,null,null,null,null,null,null,null,null,null,null,null,null,null,null,null,null,null,null,null,null,"Energy saving/generation technologies (Appendices M, N) - Energy exported"]
[null,null,null,null,null,null,null,null,null,null,null,null,null,null,null,null,null,null,null,null,null,null,null,null,null,null,null,null,null,null,null,null,null,null,null,null,null,null,null,null,null,null,null,null,null,null,null,null,null,null,null,null,null,null,null,null,null,null,null,null,null,null,null,null,null,null,null,null,null,null,null,null,null,null,null,null,null,null,null,null,null,null,null,null,null,null,null,null,null,null,null,null,null,null,null,null,null,null,null,null,null,null,null,null,null,null,null,null,null,null,null,null,null,null,null,null,null,null,null,null,null,null,null,null,null,null,null,null,null,null,null,null,null,null,null,null,null,null,null,null,null,null,null,null,null,null,null,null,null,null,null,null,null,null,null,null,null,null,null,null,null,null,null,null,null,null,null,null,null,null,null,null,null,null,null,null,null,null,null,null,null,null,null,null,null,null,"Jan","Feb","Mar","Apr","May","Jun","Jul","Aug","Sep","Oct","Nov","Dec"]
[null,null,null,null,null,null,null,null,null,null,null,null,null,null,null,null,null,null,null,null,null,null,null,null,null,null,null,null,null,null,null,null,null,null,null,null,null,null,null,null,null,null,null,null,null,null,null,null,null,null,null,null,null,null,null,null,null,null,null,null,null,null,null,null,null,null,null,null,null,null,null,null,null,null,null,null,null,null,null,null,null,null,null,null,null,null,null,null,null,null,null,null,null,null,null,null,null,null,null,null,null,null,null,null,null,null,null,null,null,null,null,null,null,null,null,null,null,null,null,null,null,null,null,null,null,null,null,null,null,null,null,null,null,null,null,null,null,null,null,null,null,null,null,null,null,null,null,null,null,null,null,null,null,null,null,null,null,null,null,null,null,null,null,null,null,null,null,null,null,null,null,null,null,null,null,null,null,null,null,null,null,null,null,null,null,null,"Electricity generated by PVs (Appendix M) (negative quantity)"]
[]
[null,null,null,null,null,null,null,null,null,null,null,null,null,null,null,null,null,null,null,null,null,null,null,null,null,null,null,null,null,null,null,null,null,null,null,null,null,null,null,null,null,null,null,null,null,null,null,null,null,null,null,null,null,null,null,null,null,null,null,null,null,null,null,null,null,null,null,null,null,null,null,null,null,null,null,null,null,null,null,null,null,null,null,null,null,null,null,null,null,null,null,null,null,null,null,null,null,null,null,null,null,null,null,null,null,null,null,null,null,null,null,null,null,null,null,null,null,null,null,null,null,null,null,null,null,null,null,null,null,null,null,null,null,null,null,null,null,null,null,null,null,null,null,null,null,null,null,null,null,null,null,null,null,null,null,null,null,null,null,null,null,null,null,null,null,null,null,null,null,null,null,null,null,null,null,null,null,null,null,null,null,null,null,null,null,null,null,null,null,null,null,null,null,null,null,null,null,null,null,"(233b)"]
[null,null,null,null,null,null,null,null,null,null,null,null,null,null,null,null,null,null,null,null,null,null,null,null,null,null,null,null,null,null,null,null,null,null,null,null,null,null,null,null,null,null,null,null,null,null,null,null,null,null,null,null,null,null,null,null,null,null,null,null,null,null,null,null,null,null,null,null,null,null,null,null,null,null,null,null,null,null,null,null,null,null,null,null,null,null,null,null,null,null,null,null,null,null,null,null,null,null,null,null,null,null,null,null,null,null,null,null,null,null,null,null,null,null,null,null,null,null,null,null,null,null,null,null,null,null,null,null,null,null,null,null,null,null,null,null,null,null,null,null,null,null,null,null,null,null,null,null,null,null,null,null,null,null,null,null,null,null,null,null,null,null,null,null,null,null,null,null,null,null,null,null,null,null,null,null,null,null,null,null,null,null,null,null,null,null,"Electricity generated by wind turbines (Appendix M) (negative quantity)"]
[]
[null,null,null,null,null,null,null,null,null,null,null,null,null,null,null,null,null,null,null,null,null,null,null,null,null,null,null,null,null,null,null,null,null,null,null,null,null,null,null,null,null,null,null,null,null,null,null,null,null,null,null,null,null,null,null,null,null,null,null,null,null,null,null,null,null,null,null,null,null,null,null,null,null,null,null,null,null,null,null,null,null,null,null,null,null,null,null,null,null,null,null,null,null,null,null,null,null,null,null,null,null,null,null,null,null,null,null,null,null,null,null,null,null,null,null,null,null,null,null,null,null,null,null,null,null,null,null,null,null,null,null,null,null,null,null,null,null,null,null,null,null,null,null,null,null,null,null,null,null,null,null,null,null,null,null,null,null,null,null,null,null,null,null,null,null,null,null,null,null,null,null,null,null,null,null,null,null,null,null,null,null,null,null,null,null,null,null,null,null,null,null,null,null,null,null,null,null,null,null,"(234b)"]
[null,null,null,null,null,null,null,null,null,null,null,null,null,null,null,null,null,null,null,null,null,null,null,null,null,null,null,null,null,null,null,null,null,null,null,null,null,null,null,null,null,null,null,null,null,null,null,null,null,null,null,null,null,null,null,null,null,null,null,null,null,null,null,null,null,null,null,null,null,null,null,null,null,null,null,null,null,null,null,null,null,null,null,null,null,null,null,null,null,null,null,null,null,null,null,null,null,null,null,null,null,null,null,null,null,null,null,null,null,null,null,null,null,null,null,null,null,null,null,null,null,null,null,null,null,null,null,null,null,null,null,null,null,null,null,null,null,null,null,null,null,null,null,null,null,null,null,null,null,null,null,null,null,null,null,null,null,null,null,null,null,null,null,null,null,null,null,null,null,null,null,null,null,null,null,null,null,null,null,null,null,null,null,null,null,null,"Electricity generated by hydro-electric generators (Appendix M) (negative quantity)"]
[]
[null,null,null,null,null,null,null,null,null,null,null,null,null,null,null,null,null,null,null,null,null,null,null,null,null,null,null,null,null,null,null,null,null,null,null,null,null,null,null,null,null,null,null,null,null,null,null,null,null,null,null,null,null,null,null,null,null,null,null,null,null,null,null,null,null,null,null,null,null,null,null,null,null,null,null,null,null,null,null,null,null,null,null,null,null,null,null,null,null,null,null,null,null,null,null,null,null,null,null,null,null,null,null,null,null,null,null,null,null,null,null,null,null,null,null,null,null,null,null,null,null,null,null,null,null,null,null,null,null,null,null,null,null,null,null,null,null,null,null,null,null,null,null,null,null,null,null,null,null,null,null,null,null,null,null,null,null,null,null,null,null,null,null,null,null,null,null,null,null,null,null,null,null,null,null,null,null,null,null,null,null,null,null,null,null,null,null,null,null,null,null,null,null,null,null,null,null,null,null,"(235b)"]
[null,null,null,null,null,null,null,null,null,null,null,null,null,null,null,null,null,null,null,null,null,null,null,null,null,null,null,null,null,null,null,null,null,null,null,null,null,null,null,null,null,null,null,null,null,null,null,null,null,null,null,null,null,null,null,null,null,null,null,null,null,null,null,null,null,null,null,null,null,null,null,null,null,null,null,null,null,null,null,null,null,null,null,null,null,null,null,null,null,null,null,null,null,null,null,null,null,null,null,null,null,null,null,null,null,null,null,null,null,null,null,null,null,null,null,null,null,null,null,null,null,null,null,null,null,null,null,null,null,null,null,null,null,null,null,null,null,null,null,null,null,null,null,null,null,null,null,null,null,null,null,null,null,null,null,null,null,null,null,null,null,null,null,null,null,null,null,null,null,null,null,null,null,null,null,null,null,null,null,null,null,null,null,null,null,null,"Electricity used or net electricity generated by micro-CHP (Appendix N) (negative if net generation)"]
[]
[null,null,null,null,null,null,null,null,null,null,null,null,null,null,null,null,null,null,null,null,null,null,null,null,null,null,null,null,null,null,null,null,null,null,null,null,null,null,null,null,null,null,null,null,null,null,null,null,null,null,null,null,null,null,null,null,null,null,null,null,null,null,null,null,null,null,null,null,null,null,null,null,null,null,null,null,null,null,null,null,null,null,null,null,null,null,null,null,null,null,null,null,null,null,null,null,null,null,null,null,null,null,null,null,null,null,null,null,null,null,null,null,null,null,null,null,null,null,null,null,null,null,null,null,null,null,null,null,null,null,null,null,null,null,null,null,null,null,null,null,null,null,null,null,null,null,null,null,null,null,null,null,null,null,null,null,null,null,null,null,null,null,null,null,null,null,null,null,null,null,null,null,null,null,null,null,null,null,null,null,null,null,null,null,null,null,null,null,null,null,null,null,null,null,null,null,null,null,null,"(235d)"]
[]
[null,null,null,null,null,null,null,null,null,null,null,null,null,null,null,null,null,null,null,null,null,null,null,null,null,null,null,null,null,null,null,null,null,null,null,null,null,null,null,null,null,null,null,null,null,null,null,null,null,null,null,null,null,null,null,null,null,null,null,null,null,null,null,null,null,null,null,null,null,null,null,null,null,null,null,null,null,null,null,null,null,null,null,null,null,null,null,null,null,null,null,null,null,null,null,null,null,null,null,null,null,null,null,null,null,null,null,null,null,null,null,null,null,null,null,null,null,null,null,null,null,null,null,null,null,null,null,null,null,null,null,null,null,null,null,null,null,null,null,null,null,null,null,null,null,null,null,null,null,null,null,null,null,null,null,null,null,null,null,null,null,null,null,null,null,null,null,null,null,null,null,null,null,null,null,null,null,null,null,null,null,null,null,null,null,null,"Appendix Q items: annual energy (items not already included on a monthly basis)",null,null,null,null,null,null,null,null,null,null,"Fuel","kWh/year"]
[null,null,null,null,null,null,null,null,null,null,null,null,null,null,null,null,null,null,null,null,null,null,null,null,null,null,null,null,null,null,null,null,null,null,null,null,null,null,null,null,null,null,null,null,null,null,null,null,null,null,null,null,null,null,null,null,null,null,null,null,null,null,null,null,null,null,null,null,null,null,null,null,null,null,null,null,null,null,null,null,null,null,null,null,null,null,null,null,null,null,null,null,null,null,null,null,null,null,null,null,null,null,null,null,null,null,null,null,null,null,null,null,null,null,null,null,null,null,null,null,null,null,null,null,null,null,null,null,null,null,null,null,null,null,null,null,null,null,null,null,null,null,null,null,null,null,null,null,null,null,null,null,null,null,null,null,null,null,null,null,null,null,null,null,null,null,null,null,null,null,null,null,null,null,null,null,null,null,null,null,null,null,null,null,null,null,"Appendix Q, <item 1 description>"]
[null,null,null,null,null,null,null,null,null,null,null,null,null,null,null,null,null,null,null,null,null,null,null,null,null,null,null,null,null,null,null,null,null,null,null,null,null,null,null,null,null,null,null,null,null,null,null,null,null,null,null,null,null,null,null,null,null,null,null,null,null,null,null,null,null,null,null,null,null,null,null,null,null,null,null,null,null,null,null,null,null,null,null,null,null,null,null,null,null,null,null,null,null,null,null,null,null,null,null,null,null,null,null,null,null,null,null,null,null,null,null,null,null,null,null,null,null,null,null,null,null,null,null,null,null,null,null,null,null,null,null,null,null,null,null,null,null,null,null,null,null,null,null,null,null,null,null,null,null,null,null,null,null,null,null,null,null,null,null,null,null,null,null,null,null,null,null,null,null,null,null,null,null,null,null,null,null,null,null,null,null,null,null,null,null,null,"    energy saved or generated (enter as negative quantity)",null,null,null,null,null,null,null,null,null,null,null,null,"(236a)"]
[null,null,null,null,null,null,null,null,null,null,null,null,null,null,null,null,null,null,null,null,null,null,null,null,null,null,null,null,null,null,null,null,null,null,null,null,null,null,null,null,null,null,null,null,null,null,null,null,null,null,null,null,null,null,null,null,null,null,null,null,null,null,null,null,null,null,null,null,null,null,null,null,null,null,null,null,null,null,null,null,null,null,null,null,null,null,null,null,null,null,null,null,null,null,null,null,null,null,null,null,null,null,null,null,null,null,null,null,null,null,null,null,null,null,null,null,null,null,null,null,null,null,null,null,null,null,null,null,null,null,null,null,null,null,null,null,null,null,null,null,null,null,null,null,null,null,null,null,null,null,null,null,null,null,null,null,null,null,null,null,null,null,null,null,null,null,null,null,null,null,null,null,null,null,null,null,null,null,null,null,null,null,null,null,null,null,"    energy used (positive quantity)",null,null,null,null,null,null,null,null,null,null,null,null,"(237a)"]
[]
[null,null,null,null,null,null,null,null,null,null,null,null,null,null,null,null,null,null,null,null,null,null,null,null,null,null,null,null,null,null,null,null,null,null,null,null,null,null,null,null,null,null,null,null,null,null,null,null,null,null,null,null,null,null,null,null,null,null,null,null,null,null,null,null,null,null,null,null,null,null,null,null,null,null,null,null,null,null,null,null,null,null,null,null,null,null,null,null,null,null,null,null,null,null,null,null,null,null,null,null,null,null,null,null,null,null,null,null,null,null,null,null,null,null,null,null,null,null,null,null,null,null,null,null,null,null,null,null,null,null,null,null,null,null,null,null,null,null,null,null,null,null,null,null,null,null,null,null,null,null,null,null,null,null,null,null,null,null,null,null,null,null,null,null,null,null,null,null,null,null,null,null,null,null,null,null,null,null,null,null,null,null,null,null,null,null,"Appendix Q, <item 2 description>"]
[null,null,null,null,null,null,null,null,null,null,null,null,null,null,null,null,null,null,null,null,null,null,null,null,null,null,null,null,null,null,null,null,null,null,null,null,null,null,null,null,null,null,null,null,null,null,null,null,null,null,null,null,null,null,null,null,null,null,null,null,null,null,null,null,null,null,null,null,null,null,null,null,null,null,null,null,null,null,null,null,null,null,null,null,null,null,null,null,null,null,null,null,null,null,null,null,null,null,null,null,null,null,null,null,null,null,null,null,null,null,null,null,null,null,null,null,null,null,null,null,null,null,null,null,null,null,null,null,null,null,null,null,null,null,null,null,null,null,null,null,null,null,null,null,null,null,null,null,null,null,null,null,null,null,null,null,null,null,null,null,null,null,null,null,null,null,null,null,null,null,null,null,null,null,null,null,null,null,null,null,null,null,null,null,null,null,"    energy saved or generated (enter as negative quantity)",null,null,null,null,null,null,null,null,null,null,null,null,"(236b)"]
[null,null,null,null,null,null,null,null,null,null,null,null,null,null,null,null,null,null,null,null,null,null,null,null,null,null,null,null,null,null,null,null,null,null,null,null,null,null,null,null,null,null,null,null,null,null,null,null,null,null,null,null,null,null,null,null,null,null,null,null,null,null,null,null,null,null,null,null,null,null,null,null,null,null,null,null,null,null,null,null,null,null,null,null,null,null,null,null,null,null,null,null,null,null,null,null,null,null,null,null,null,null,null,null,null,null,null,null,null,null,null,null,null,null,null,null,null,null,null,null,null,null,null,null,null,null,null,null,null,null,null,null,null,null,null,null,null,null,null,null,null,null,null,null,null,null,null,null,null,null,null,null,null,null,null,null,null,null,null,null,null,null,null,null,null,null,null,null,null,null,null,null,null,null,null,null,null,null,null,null,null,null,null,null,null,null,"    energy used (positive quantity)",null,null,null,null,null,null,null,null,null,null,null,null,"(237b)"]
[null,null,null,null,null,null,null,null,null,null,null,null,null,null,null,null,null,null,null,null,null,null,null,null,null,null,null,null,null,null,null,null,null,null,null,null,null,null,null,null,null,null,null,null,null,null,null,null,null,null,null,null,null,null,null,null,null,null,null,null,null,null,null,null,null,null,null,null,null,null,null,null,null,null,null,null,null,null,null,null,null,null,null,null,null,null,null,null,null,null,null,null,null,null,null,null,null,null,null,null,null,null,null,null,null,null,null,null,null,null,null,null,null,null,null,null,null,null,null,null,null,null,null,null,null,null,null,null,null,null,null,null,null,null,null,null,null,null,null,null,null,null,null,null,null,null,null,null,null,null,null,null,null,null,null,null,null,null,null,null,null,null,null,null,null,null,null,null,null,null,null,null,null,null,null,null,null,null,null,null,null,null,null,null,null,null,"(continue this list if additional items)"]
[null,null,null,null,null,null,null,null,null,null,null,null,null,null,null,null,null,null,null,null,null,null,null,null,null,null,null,null,null,null,null,null,null,null,null,null,null,null,null,null,null,null,null,null,null,null,null,null,null,null,null,null,null,null,null,null,null,null,null,null,null,null,null,null,null,null,null,null,null,null,null,null,null,null,null,null,null,null,null,null,null,null,null,null,null,null,null,null,null,null,null,null,null,null,null,null,null,null,null,null,null,null,null,null,null,null,null,null,null,null,null,null,null,null,null,null,null,null,null,null,null,null,null,null,null,null,null,null,null,null,null,null,null,null,null,null,null,null,null,null,null,null,null,null,null,null,null,null,null,null,null,null,null,null,null,null,null,null,null,null,null,null,null,null,null,null,null,null,null,null,null,null,null,null,null,null,null,null,null,null,null,null,null,null,null,null,"Total delivered energy for all uses",null,null,null,null,null,null,null,null,null,null,"(211)…(221) + (231) + (232)…(237b) = ",13514.4814513861,"(238)"]

{"sheet":"Authorization","index":3,"n_rows":7,"n_cols":1,"rows_kept":7,"cut":false,"hidden":false,"merged":[]}
["This Excel workbook uses the SAP 10 API calculation provided at www.netzeroapis.com"]
[]
["Please enter your API authorization token in the cell below:"]
[]
[]
["Please see the information at www.netzeroapis.com to request an authorization token:"]
["https://www.netzeroapis.com/redoc#section/Authorization"]

{"sheet":"XMLSchema_Info","index":4,"n_rows":608,"n_cols":109,"rows_kept":608,"cut":false,"hidden":false,"merged":[]}
["element_name","parent_name","grandparent_name","has_text_value","data_type","min_occurs","max_occurs","documentation","number_of_codes","code_0","code_1","code_2","code_3","code_4","code_5","code_6","code_7","code_8","code_9","code_10","code_11","code_12","code_13","code_14","code_15","code_16","code_17","code_18","code_19","code_20","code_21","code_22","code_23","code_24","code_25","code_26","code_27","code_28","code_29","code_30","code_31","code_32","code_33","code_34","code_35","code_36","code_37","code_38","code_39","code_40","code_41","code_42","code_43","code_44","code_45","code_46","code_47","code_48","code_49","code_50","code_51","code_52","code_53","code_54","code_55","code_56","code_57","code_58","code_59","code_60","code_61","code_62","code_63","code_64","code_65","code_66","code_67","code_68","code_69","code_70","code_71","code_72","code_73","code_74","code_75","code_76","code_77","code_78","code_79","code_80","code_81","code_82","code_83","code_84","code_85","code_86","code_87","code_88","code_89","code_90","code_91","code_92","code_93","code_94","code_95","code_96","code_97","code_98","code_99"]
["SAP-Compliance-Report",null,null,false,null,1,1," ",0]
["SAP-Report","SAP-Compliance-Report",null,false,null,1,1,"The SAP report corresponding to the compliance report. ",0]
["Schema-Version-Original","SAP-Report","SAP-Compliance-Report",true,"str",1,1,"The schema version that the data conformed to when it was lodged. ",0]
["Schema-Version-Current","SAP-Report","SAP-Compliance-Report",true,"str",0,1,"The schema version to which the data conforms. This node is inserted by the register when a retrieval is requested. It must not be present in a lodgement being sent to the register. ",0]
["SAP-Version","SAP-Report","SAP-Compliance-Report",true,"str",1,1,"SAP version that was used for the calculation. ",8,"9.80 - SAP 2005 version 9.80, dated October 2005","9.81 - SAP version 9.81, dated January 2008","9.82 - SAP version 9.82, dated Jun 2008","9.83 - SAP version 9.83, dated Jun 2009","9.90 - SAP version 9.90, dated Mar 2010","9.91 - SAP version 9.91, dated Jan 2012","9.92 - SAP version 9.92, dated Oct 2013","10.2 - SAP version 10.2, dated Oct 2020"]
["SAP-Data-Version","SAP-Report","SAP-Compliance-Report",true,"str",1,1,"Version of SAP that was used to define the input data for the calculation. ",8,"9.80 - SAP 2005 version 9.80, dated October 2005","9.81 - SAP version 9.81, dated January 2008","9.82 - SAP version 9.82, dated Jun 2008","9.83 - SAP version 9.83, dated Jun 2009","9.90 - SAP version 9.90, dated Mar 2010","9.91 - SAP version 9.91, dated Jan 2012","9.92 - SAP version 9.92, dated Oct 2013","10.2 - SAP version 10.2, dated Oct 2020"]
["PCDF-Revision-Number","SAP-Report","SAP-Compliance-Report",true,"int",0,1,"Revision Number of the PCDF file used for the calculations. ",0]
["Calculation-Software-Name","SAP-Report","SAP-Compliance-Report",true,"str",1,1,"Name of the software used to perform the SAP calculation. ",0]
["Calculation-Software-Version","SAP-Report","SAP-Compliance-Report",true,"str",1,1,"Version of the software used to perform the SAP calculation. ",0]
["User-Interface-Name","SAP-Report","SAP-Compliance-Report",true,"str",0,1," ",0]
["User-Interface-Version","SAP-Report","SAP-Compliance-Report",true,"str",0,1," ",0]
["Report-Header","SAP-Report","SAP-Compliance-Report",false,null,1,1," Report Header contains all the identification and searchable details for the Report.",0]
["RRN","Report-Header","SAP-Report",true,"str",1,1,"Report Reference Number is the unique report Identifier that the report will be publicly known by. The RRN is allocated to the Report at the point that it is registered and will be algorithmically derived from the natural key characteristics of the Home Condition Report i.e. The Unique Property Reference Number (UPRN) and Inspection Date. ",0]
["Inspection-Date","Report-Header","SAP-Report",true,"fromisoformat",1,1,"The date that the inspection was actually carried out by the Home Inspector. ",0]
["Report-Type","Report-Header","SAP-Report",true,"str",1,1,"The type of Home Inspection that was carried out. Initially the only allowed type will be a Home Condition Report inspection but this may be extended in the future to cover Energy Assessment Only inspections. ",4,"1 - Home Condition Report","2 - RdSAP Energy Performance Certificate","3 - SAP Energy Performance Certificate","4 - Interim RdSAP Energy Performance Certificate (to be superseded by SAP EPC)"]
["Completion-Date","Report-Header","SAP-Report",true,"fromisoformat",1,1,"The date that the Home Inspector completed the report. This will be after the Inspection Date but generally before the Registration Date. ",0]
["Registration-Date","Report-Header","SAP-Report",true,"fromisoformat",1,1,"The date that the report was submitted to the HCR Registration Organisation for lodging in the HCR Register. ",0]
["Status","Report-Header","SAP-Report",true,"str",1,1,"The Status of the Report. A Home Condition Report can have a number of distinct states depending on whereabouts in its overall lifecycle the HCR is - see Home Condition Report Statechart for more details. ",7,"cancelled - Cancelled","entered - entered on the register","appeal - under appeal","removed - removed","rejected - rejected","under investigation - under investigation","not for issue - not for issue"]
["Language-Code","Report-Header","SAP-Report",true,"str",1,1,"The language that the report is written in. ",2,"1 - English","2 - Welsh"]
["Tenure","Report-Header","SAP-Report",true,"str",1,1," ",4,"1 - owner-occupied","2 - rented (social)","3 - rented (private)","ND - unknown"]
["Transaction-Type","Report-Header","SAP-Report",true,"str",1,1," ",11,"1 - marketed sale","2 - non marketed sale","3 - rental (social) - this is for backwards compatibility only and should not be used","4 - rental (private) - this is for backwards compatibility only and should not be used","5 - none of the above","6 - new dwelling","7 - not recorded - this is for backwards compatibility only and should not be used","8 - rental","9 - assessment for green deal","10 - following green deal","11 - FiT application"]
["Seller-Commission-Report","Report-Header","SAP-Report",true,"str",1,1,"Indicates that the HCR was commissioned by the Seller of the Property or their Agent. This is required in order to differentiate these reports from Buyer commisioned reports which are not eligible for inclusion in a Home Information Pack ",2,"Y - Yes","N - No"]
["Property-Type","Report-Header","SAP-Report",true,"str",1,1,"Describes the type of Property that is being inspected. This should be the same as the Property-Type recorded in the Property-Details section. ",5,"0 - House","1 - Bungalow","2 - Flat","3 - Maisonette","4 - Park home"]
["Home-Inspector","Report-Header","SAP-Report",false,null,1,1," A Certified Home Inspector is a person certified by a Certification Scheme - that is they exist on the Home Inspector Register - as being qualified to carry out a Home Inspection and produce a Home Condition Report. The exact criteria for fit + proper are laid down in regulations and the Business Standards and it is the responsibility of the Certification Scheme to carry out sufficient checks to ensure those criteria are adhered to. Although covered by a different regulatory regime a Home Inspector and Energy Assessor serve synonymous roles in the product of a Home Condition Report or Energy Performance Certificate respectively.",0]
["Name","Home-Inspector","Report-Header",true,"str",1,1,"The name by which the Home Inspector is registered. This is a structured name containing prefix, first name + surname. ",0]
["Notify-Lodgement","Home-Inspector","Report-Header",true,"str",0,1,"Indicates whether the assessor wants to be notified that a the report has been lodged in the register ",2,"Y - Yes","N - No"]
["Contact-Address","Home-Inspector","Report-Header",false,null,1,1,"The address that any written correspondence can be sent to. This is not the same as the Registered Address because it may, of course, be a Post Office Box. An address is composed of a number of structured elements such as Postcode, Post-Town, Street etc.",0]
["Address-Line-1","Contact-Address","Home-Inspector",true,"str",1,1," ",0]
["Address-Line-2","Contact-Address","Home-Inspector",true,"str",0,1," ",0]
["Address-Line-3","Contact-Address","Home-Inspector",true,"str",0,1," ",0]
["Post-Town","Contact-Address","Home-Inspector",true,"str",1,1," ",0]
["Postcode","Contact-Address","Home-Inspector",true,"str",1,1,"The Postcode for the Address ",0]
["Web-Site","Home-Inspector","Report-Header",true,"str",0,1," ",0]
["E-Mail","Home-Inspector","Report-Header",true,"str",0,1,"the E-Mail address that the Authorised User can be contacted at. ",0]
["Fax","Home-Inspector","Report-Header",true,"str",0,1," ",0]
["Telephone","Home-Inspector","Report-Header",true,"str",0,1," ",0]
["Company-Name","Home-Inspector","Report-Header",true,"str",1,1,"The Name of the Company that the assessor is employed by. ",0]
["Scheme-Name","Home-Inspector","Report-Header",true,"str",1,1," ",0]
["Scheme-Web-Site","Home-Inspector","Report-Header",true,"str",1,1," ",0]
["Identification-Number","Home-Inspector","Report-Header",false,null,1,1," ",0]
["Certificate-Number","Identification-Number","Home-Inspector",true,"str",1,1,"The unique identifier assigned to the assessor by the scheme by which they can be identified throughout their membership of the scheme. ",0]
["Membership-Number","Identification-Number","Home-Inspector",true,"str",1,1,"For Scottish DEAs only ",0]
["Property","Report-Header","SAP-Report",false,null,1,1," A discrete identifiable possession, such as a piece of real-estate, to which its owner has legal title. For the Home Information Pack legislation the types of property are restricted to residential properties. It should be observed that \"a property is a property is a property\" and all real-estate properties, whether residential or commercial or whether being sold for the first or the nth time will have a very similar conceptual structure and similar rules and constraints. As such the broad description of a Property can be regarded as a framework, containing a set of extension points, that can be expanded as necessary to cover additional detail.",0]
["Address","Property","Report-Header",false,null,1,1,"Address for the property. An address is composed of a number of structured elements such as Postcode, Post-Town, Street etc.",0]
["Address-Line-1","Address","Property",true,"str",1,1," ",0]
["Address-Line-2","Address","Property",true,"str",0,1," ",0]
["Address-Line-3","Address","Property",true,"str",0,1," ",0]
["Post-Town","Address","Property",true,"str",1,1," ",0]
["Postcode","Address","Property",true,"str",1,1,"The Postcode for the Address ",0]
["UPRN","Property","Report-Header",true,"str",0,1,"Unique Property Reference Number ",0]
["Site-Reference","Property","Report-Header",true,"str",0,1,"A site reference ",0]
["Plot-Reference","Property","Report-Header",true,"str",0,1,"A plot reference ",0]
["Region-Code","Report-Header","SAP-Report",true,"str",0,1,"Region within the UK. ",24,"1 - Borders","2 - East Anglia","3 - East Pennines","4 - East Scotland","5 - Highland","6 - Midlands","7 - North East England","8 - North East Scotland","9 - North West England / South West Scotland","10 - Northern Ireland","11 - Orkney","12 - Severn Valley","13 - Shetland","14 - South East England","15 - South West England","16 - Southern England","17 - Thames Valley","18 - Wales","19 - West Pennines","20 - West Scotland","21 - Western Isles","22 - Jersey","23 - Guernsey","24 - Isle of Man"]
["Country-Code","Report-Header","SAP-Report",true,"str",0,1,"Country within the UK. ",5,"EAW - England and Wales, for backwards compatibility only.","ENG - England","WLS - Wales","SCT - Scotland","NIR - Northern Ireland"]
["Related-Party-Disclosure","Report-Header","SAP-Report",false,null,1,1," ",0]
["Related-Party-Disclosure-Text","Related-Party-Disclosure","Report-Header",true,"str",1,1,"For backward compatibility only. String value with a language code for natural-language text.",0]
["Related-Party-Disclosure-Number","Related-Party-Disclosure","Report-Header",true,"str",1,1,"Code indicating any potential conflicts of interest or commercial relationships with other parties. ",7,"1 - No related party","2 - Relative of homeowner or of occupier of the property","3 - Residing at the property","4 - Financial interest in the property","5 - Owner or Director of the organisation dealing with the property transaction","6 - Employed by the professional dealing with the property transaction","7 - Relative of the professional dealing with the property transaction"]
["Energy-Assessment","SAP-Report","SAP-Compliance-Report",false,null,1,1," Energy Efficiency Assessment Report is an inspection report whose purpose is to assess the energy efficiency of the inspected property and provide energy ratings for the significant heat-loss features of the property. The report also identifies a number of potential improvements that may be made to the property in order to increase the energy efficiency.",0]
["Assessment-Date","Energy-Assessment","SAP-Report",true,"fromisoformat",1,1,"Date of assessment. ",0]
["Property-Summary","Energy-Assessment","SAP-Report",false,null,1,1," ",0]
["Walls","Property-Summary","Energy-Assessment",false,null,1,"unbounded"," ",0]
["Description","Walls","Property-Summary",true,"str",0,1,"Overall description of the property feature String value with a language code for natural-language text.",0]
["Energy-Efficiency-Rating","Walls","Property-Summary",true,"str",1,1,"Overall summary of the energy efficiency of the property feature. ",6,"0 - N/A","1 - Very Poor","2 - Poor","3 - Average","4 - Good","5 - Very Good"]
["Environmental-Efficiency-Rating","Walls","Property-Summary",true,"str",1,1,"Summary of the environmental efficiency of the property feature ",6,"0 - N/A","1 - Very Poor","2 - Poor","3 - Average","4 - Good","5 - Very Good"]
["Roof","Property-Summary","Energy-Assessment",false,null,1,"unbounded"," ",0]
["Description","Roof","Property-Summary",true,"str",0,1,"Overall description of the property feature String value with a language code for natural-language text.",0]
["Energy-Efficiency-Rating","Roof","Property-Summary",true,"str",1,1,"Overall summary of the energy efficiency of the property feature. ",6,"0 - N/A","1 - Very Poor","2 - Poor","3 - Average","4 - Good","5 - Very Good"]
["Environmental-Efficiency-Rating","Roof","Property-Summary",true,"str",1,1,"Summary of the environmental efficiency of the property feature ",6,"0 - N/A","1 - Very Poor","2 - Poor","3 - Average","4 - Good","5 - Very Good"]
["Floor","Property-Summary","Energy-Assessment",false,null,1,"unbounded"," ",0]
["Description","Floor","Property-Summary",true,"str",0,1,"Overall description of the property feature String value with a language code for natural-language text.",0]
["Energy-Efficiency-Rating","Floor","Property-Summary",true,"str",1,1,"Overall summary of the energy efficiency of the property feature. ",6,"0 - N/A","1 - Very Poor","2 - Poor","3 - Average","4 - Good","5 - Very Good"]
["Environmental-Efficiency-Rating","Floor","Property-Summary",true,"str",1,1,"Summary of the environmental efficiency of the property feature ",6,"0 - N/A","1 - Very Poor","2 - Poor","3 - Average","4 - Good","5 - Very Good"]
["Windows","Property-Summary","Energy-Assessment",false,null,1,1," ",0]
["Description","Windows","Property-Summary",true,"str",0,1,"Overall description of the property feature String value with a language code for natural-language text.",0]
["Energy-Efficiency-Rating","Windows","Property-Summary",true,"str",1,1,"Overall summary of the energy efficiency of the property feature. ",6,"0 - N/A","1 - Very Poor","2 - Poor","3 - Average","4 - Good","5 - Very Good"]
["Environmental-Efficiency-Rating","Windows","Property-Summary",true,"str",1,1,"Summary of the environmental efficiency of the property feature ",6,"0 - N/A","1 - Very Poor","2 - Poor","3 - Average","4 - Good","5 - Very Good"]
["Main-Heating","Property-Summary","Energy-Assessment",false,null,1,2," ",0]
["Description","Main-Heating","Property-Summary",true,"str",0,1,"Overall description of the property feature String value with a language code for natural-language text.",0]
["Energy-Efficiency-Rating","Main-Heating","Property-Summary",true,"str",1,1,"Overall summary of the energy efficiency of the property feature. ",6,"0 - N/A","1 - Very Poor","2 - Poor","3 - Average","4 - Good","5 - Very Good"]
["Environmental-Efficiency-Rating","Main-Heating","Property-Summary",true,"str",1,1,"Summary of the environmental efficiency of the property feature ",6,"0 - N/A","1 - Very Poor","2 - Poor","3 - Average","4 - Good","5 - Very Good"]
["Main-Heating-Controls","Property-Summary","Energy-Assessment",false,null,1,2," ",0]
["Description","Main-Heating-Controls","Property-Summary",true,"str",0,1,"Overall description of the property feature String value with a language code for natural-language text.",0]
["Energy-Efficiency-Rating","Main-Heating-Controls","Property-Summary",true,"str",1,1,"Overall summary of the energy efficiency of the property feature. ",6,"0 - N/A","1 - Very Poor","2 - Poor","3 - Average","4 - Good","5 - Very Good"]
["Environmental-Efficiency-Rating","Main-Heating-Controls","Property-Summary",true,"str",1,1,"Summary of the environmental efficiency of the property feature ",6,"0 - N/A","1 - Very Poor","2 - Poor","3 - Average","4 - Good","5 - Very Good"]
["Secondary-Heating","Property-Summary","Energy-Assessment",false,null,1,1," ",0]
["Description","Secondary-Heating","Property-Summary",true,"str",0,1,"Overall description of the property feature String value with a language code for natural-language text.",0]
["Energy-Efficiency-Rating","Secondary-Heating","Property-Summary",true,"str",1,1,"Overall summary of the energy efficiency of the property feature. ",6,"0 - N/A","1 - Very Poor","2 - Poor","3 - Average","4 - Good","5 - Very Good"]
["Environmental-Efficiency-Rating","Secondary-Heating","Property-Summary",true,"str",1,1,"Summary of the environmental efficiency of the property feature ",6,"0 - N/A","1 - Very Poor","2 - Poor","3 - Average","4 - Good","5 - Very Good"]
["Hot-Water","Property-Summary","Energy-Assessment",false,null,1,1," ",0]
["Description","Hot-Water","Property-Summary",true,"str",0,1,"Overall description of the property feature String value with a language code for natural-language text.",0]
["Energy-Efficiency-Rating","Hot-Water","Property-Summary",true,"str",1,1,"Overall summary of the energy efficiency of the property feature. ",6,"0 - N/A","1 - Very Poor","2 - Poor","3 - Average","4 - Good","5 - Very Good"]
["Environmental-Efficiency-Rating","Hot-Water","Property-Summary",true,"str",1,1,"Summary of the environmental efficiency of the property feature ",6,"0 - N/A","1 - Very Poor","2 - Poor","3 - Average","4 - Good","5 - Very Good"]
["Lighting","Property-Summary","Energy-Assessment",false,null,1,1," ",0]
["Description","Lighting","Property-Summary",true,"str",0,1,"Overall description of the property feature String value with a language code for natural-language text.",0]
["Energy-Efficiency-Rating","Lighting","Property-Summary",true,"str",1,1,"Overall summary of the energy efficiency of the property feature. ",6,"0 - N/A","1 - Very Poor","2 - Poor","3 - Average","4 - Good","5 - Very Good"]
["Environmental-Efficiency-Rating","Lighting","Property-Summary",true,"str",1,1,"Summary of the environmental efficiency of the property feature ",6,"0 - N/A","1 - Very Poor","2 - Poor","3 - Average","4 - Good","5 - Very Good"]
["Air-Tightness","Property-Summary","Energy-Assessment",false,null,0,1," ",0]
["Description","Air-Tightness","Property-Summary",true,"str",0,1,"Overall description of the property feature String value with a language code for natural-language text.",0]
["Energy-Efficiency-Rating","Air-Tightness","Property-Summary",true,"str",1,1,"Overall summary of the energy efficiency of the property feature. ",6,"0 - N/A","1 - Very Poor","2 - Poor","3 - Average","4 - Good","5 - Very Good"]
["Environmental-Efficiency-Rating","Air-Tightness","Property-Summary",true,"str",1,1,"Summary of the environmental efficiency of the property feature ",6,"0 - N/A","1 - Very Poor","2 - Poor","3 - Average","4 - Good","5 - Very Good"]
["Has-Fixed-Air-Conditioning","Property-Summary","Energy-Assessment",true,"bool",0,1,"Fixed air conditioning? ",4,"true - True","1 - True","false - False","0 - False"]
["Has-Hot-Water-Cylinder","Property-Summary","Energy-Assessment",true,"bool",0,1,"Hot water cylinder? ",4,"true - True","1 - True","false - False","0 - False"]
["Has-Heated-Separate-Conservatory","Property-Summary","Energy-Assessment",true,"bool",0,1,"Heated separate conservatory? ",4,"true - True","1 - True","false - False","0 - False"]
["Dwelling-Type","Property-Summary","Energy-Assessment",true,"str",0,1,"Is a string such as Detached house or Top-floor flat String value with a language code for natural-language text.",0]
["Total-Floor-Area","Property-Summary","Energy-Assessment",true,"int",0,1,"Is a number such as 125 ",0]
["Multiple-Glazed-Percentage","Property-Summary","Energy-Assessment",true,"float",1,1,"Fraction of windows that are multiply glazed to nearest 1%. ",0]
["Multiple-Glazed-Percentage-NR","Property-Summary","Energy-Assessment",true,"str",1,1,"For backward compatibility only, do not use. ",0]
["Is-Zero-Carbon-Home","Property-Summary","Energy-Assessment",true,"bool",0,1,"Is dwelling a Zero Carbon Home? ",4,"true - True","1 - True","false - False","0 - False"]
["Energy-Use","Energy-Assessment","SAP-Report",false,null,1,1,"Calculated results from the energy assessment. Part of an Energy Report summarising the results of the various energy calculations made by the Home Inspector.",0]
["DER","Energy-Use","Energy-Assessment",true,"float",0,1,"The DER of the Property ",0]
["TER","Energy-Use","Energy-Assessment",true,"float",0,1,"The TER of the Property ",0]
["DPER","Energy-Use","Energy-Assessment",true,"float",0,1,"The DPER of the Property ",0]
["TPER","Energy-Use","Energy-Assessment",true,"float",0,1,"The TPER of the Property ",0]
["DFEE","Energy-Use","Energy-Assessment",true,"float",0,1,"The DFEE of the Property ",0]
["TFEE","Energy-Use","Energy-Assessment",true,"float",0,1,"The TFEE of the Property ",0]
["Energy-Rating-Current","Energy-Use","Energy-Assessment",true,"int",1,1,"The Current Energy Rating of the Property ",0]
["Energy-Rating-Potential","Energy-Use","Energy-Assessment",true,"int",1,1,"The overall Energy Rating for the Property being assessed. ",0]
["Energy-Rating-Average","Energy-Use","Energy-Assessment",true,"int",1,1,"Average SAP rating for the country concerned. 0 if unknown or not applicable ",0]
["Environmental-Impact-Current","Energy-Use","Energy-Assessment",true,"int",1,1,"The estimated current Environmental Impact Rating of the property ",0]
["Environmental-Impact-Potential","Energy-Use","Energy-Assessment",true,"int",1,1,"The estimated potential Environmental Impact Rating of the property ",0]
["Energy-Consumption-Current","Energy-Use","Energy-Assessment",true,"float",1,1,"Estimated total energy consumption for the Property in a 12 month period. Value is Kilowatt Hours per Square Metre (kWh/m2) ",0]
["Energy-Consumption-Potential","Energy-Use","Energy-Assessment",true,"float",1,1,"Estimated total energy consumption for the Property in a 12 month period. Value is Kilowatt Hours per Square Metre (kWh/m2) ",0]
["CO2-Emissions-Current","Energy-Use","Energy-Assessment",true,"float",1,1,"CO2 emissions per year in tonnes/year. ",0]
["CO2-Emissions-Current-Per-Floor-Area","Energy-Use","Energy-Assessment",true,"float",1,1,"CO2 emissions per square metre floor area per year in kg/m2. ",0]
["CO2-Emissions-Potential","Energy-Use","Energy-Assessment",true,"float",1,1,"Estimated value in Tonnes per Year of the total CO2 emissions produced by the Property in 12 month period. ",0]
["Lighting-Cost-Current","Energy-Use","Energy-Assessment",true,"float",1,1,"The current estimated cost of Lighting for the property Extension of a Decimal value for use with monetary values where a currency code needs to be specified. The currency code is actually metadata about the value so, in line with good XML practice, the Currency Code is declared as an XML-Attribute of the Money datatype rather than as a separate XML-Element. The currency attribute should then include a list of valid currencies codes that are supported.",0]
["Lighting-Cost-Potential","Energy-Use","Energy-Assessment",true,"float",1,1,"The current estimated cost of Lighting for the property Extension of a Decimal value for use with monetary values where a currency code needs to be specified. The currency code is actually metadata about the value so, in line with good XML practice, the Currency Code is declared as an XML-Attribute of the Money datatype rather than as a separate XML-Element. The currency attribute should then include a list of valid currencies codes that are supported.",0]
["Heating-Cost-Current","Energy-Use","Energy-Assessment",true,"float",1,1,"The current estimated cost of Heating for the property Extension of a Decimal value for use with monetary values where a currency code needs to be specified. The currency code is actually metadata about the value so, in line with good XML practice, the Currency Code is declared as an XML-Attribute of the Money datatype rather than as a separate XML-Element. The currency attribute should then include a list of valid currencies codes that are supported.",0]
["Heating-Cost-Potential","Energy-Use","Energy-Assessment",true,"float",1,1,"The current estimated cost of Heating for the property Extension of a Decimal value for use with monetary values where a currency code needs to be specified. The currency code is actually metadata about the value so, in line with good XML practice, the Currency Code is declared as an XML-Attribute of the Money datatype rather than as a separate XML-Element. The currency attribute should then include a list of valid currencies codes that are supported.",0]
["Hot-Water-Cost-Current","Energy-Use","Energy-Assessment",true,"float",1,1,"|The current estimated cost of Hot Water for the property Extension of a Decimal value for use with monetary values where a currency code needs to be specified. The currency code is actually metadata about the value so, in line with good XML practice, the Currency Code is declared as an XML-Attribute of the Money datatype rather than as a separate XML-Element. The currency attribute should then include a list of valid currencies codes that are supported.",0]
["Hot-Water-Cost-Potential","Energy-Use","Energy-Assessment",true,"float",1,1,"|The current estimated cost of Hot Water for the property Extension of a Decimal value for use with monetary values where a currency code needs to be specified. The currency code is actually metadata about the value so, in line with good XML practice, the Currency Code is declared as an XML-Attribute of the Money datatype rather than as a separate XML-Element. The currency attribute should then include a list of valid currencies codes that are supported.",0]
["Suggested-Improvements","Energy-Assessment","SAP-Report",false,null,0,1,"Improvement measures listed on the EPC. Part of an Energy Report that describes the a set of improvements that the Home Inspector considers would contribute to the overall energy rating of the property.",0]
["Improvement","Suggested-Improvements","Energy-Assessment",false,null,1,"unbounded"," ",0]
["Sequence","Improvement","Suggested-Improvements",true,"int",1,1,"Sequence of the Suggested Improvements within the set of Suggested Improvements. This is used to order the Recommendations on the output HCR / EPC so that the cumulative Ratings make sense. The Improved Energy Ratings that result from carrying out a Suggested Improvement are cumulative and assume that the improvements have been installed in the order they appear in the list. Hence they must be sequenced. ",0]
["Improvement-Category","Improvement","Suggested-Improvements",true,"str",1,1,"The category of improvement. This identifies where on the report the recommendation is printed. ",6,"1 - Lower cost - this is for backwards compatibility only and should not be used","2 - Higher cost - this is for backwards compatibility only and should not be used","3 - Further measure - this is for backwards compatibility only and should not be used","4 - Deselected. This is for backwards compatibility only and should not be used.","5 - Normal measure","6 - Alternative measure"]
["Improvement-Type","Improvement","Suggested-Improvements",true,"str",1,1,"Suggested work to be carried out on the Property to improve its energy efficiency. This should be a enumerated list of acceptable improvements but it hasn't yet been defined. ",37,"A - Loft insulation","A2 - Flat roof insulation","A3 - Room-in-roof insulation","B - Cavity wall insulation","C - Hot water cylinder insulation","D - Draughtproofing","E - Low energy lights","F - Cylinder thermostat","G - Heating controls for wet central heating system","H - Heating controls for warm air system","I - Upgrade boiler, same fuel","J - Biomass boiler","J2 - Biomass boiler as alternative improvement","K - Biomass room heater with boiler","L - New or replacement fan-assisted storage heaters","L2 - New or replacement high heat retention storage heaters","M - Replacement warm-air unit","N - Solar water heating","O - Replacement double glazed windows","O3 - Replacement double glazing units","P - Secondary glazing","Q - Solid wall insulation","Q2 - External insulation with cavity wall insulation","R - Condensing oil boiler","S - Change heating to Band A gas condensing boiler (no fuel switch)","T - Change heating to Band A gas condensing boiler (fuel switch)","T2 - Flue gas heat recovery","U - Photovoltaics","V - Wind turbine (roof mounted)","V2 - Wind turbine (on mast)","W - Floor insulation","X - Insulated doors","Y - Instantaneous waste water heat recovery","Y2 - Storage waste water heat recovery","Z1 - Air or ground source heat pump","Z2 - Air or ground source heat pump with underfloor heating","Z3 - Micro-CHP"]
["Typical-Saving","Improvement","Suggested-Improvements",true,"float",1,1,"Typical savings (in British Pounds) per year if the suggested improvement is carried out. 0 if not assessed Extension of a Decimal value for use with monetary values where a currency code needs to be specified. The currency code is actually metadata about the value so, in line with good XML practice, the Currency Code is declared as an XML-Attribute of the Money datatype rather than as a separate XML-Element. The currency attribute should then include a list of valid currencies codes that are supported.",0]
["Energy-Performance-Rating","Improvement","Suggested-Improvements",true,"int",1,1,"The estimated Energy performance rating of the Property after the Suggested Improvement has been carried out providing any preceding Suggested Improvement has also been carried out. 0 if not assessed ",0]
["Environmental-Impact-Rating","Improvement","Suggested-Improvements",true,"int",1,1,"The estimated Environmental Impact rating of the Property after the Suggested Improvement has been carried out providing any preceding Suggested Improvement has also been carried out. 0 if not assessed ",0]
["Improvement-Details","Improvement","Suggested-Improvements",false,null,1,1," ",0]
["Improvement-Texts","Improvement-Details","Improvement",false,null,1,1,"For backward compatability only ",0]
["Improvement-Summary","Improvement-Texts","Improvement-Details",true,"str",0,1,"A short description of the suggested improvement. String value with a language code for natural-language text.",0]
["Improvement-Heading","Improvement-Texts","Improvement-Details",true,"str",0,1,"Text to precede the improvement description. If this field is not provided the 'Improvement-Summary' is used instead. String value with a language code for natural-language text.",0]
["Improvement-Description","Improvement-Texts","Improvement-Details",true,"str",1,1,"Detailed description of the suggested improvement. String value with a language code for natural-language text.",0]
["Improvement-Number","Improvement-Details","Improvement",true,"str",1,1," ",54,"1 - Insulate hot water cylinder with 80 mm jacket","2 - Increase hot water cylinder insulation","3 - Add additional 80 mm jacket to hot water cylinder","4 - Hot water cylinder thermostat","5 - Increase loft insulation to 270 mm","6 - Cavity wall insulation","7 - Internal or external wall insulation","8 - Replace single glazed windows with low-E double glazing","9 - Secondary glazing to single glazed windows","10 - Draught proofing","11 - Heating controls (programmer, room thermostat and TRVs)","12 - Heating controls (room thermostat and TRVs)","13 - Heating controls (thermostatic radiator valves)","14 - Heating controls (room thermostat)","15 - Heating controls (programmer and TRVs)","16 - Heating controls (time and temperature zone control)","17 - Heating controls (programmer and room thermostat)","18 - Heating controls (room thermostat)","19 - Solar water heating","20 - Replace boiler with new condensing boiler","21 - Replace boiler with new condensing boiler","22 - Replace boiler with biomass boiler","23 - Wood pellet stove with boiler and radiators","24 - Fan assisted storage heaters and dual immersion cylinder","25 - Fan assisted storage heaters","26 - Replacement warm air unit","27 - Change heating to gas condensing boiler","28 - Condensing oil boiler with radiators","29 - Change heating to gas condensing boiler","30 - Fan assisted storage heaters and dual immersion cylinder","31 - Fan-assisted storage heaters","32 - Change heating to gas condensing boiler","34 - Solar photovoltaic panels, 2.5 kWp","35 - Low energy lighting for all fixed outlets","36 - Replace heating unit with condensing unit","37 - Condensing boiler (separate from the range cooker)","38 - Condensing boiler (separate from the range cooker)","39 - Wood pellet stove with boiler and radiators","40 - Change room heaters to condensing boiler","41 - Change room heaters to condensing boiler","42 - Replace heating unit with mains gas condensing unit","43 - Condensing oil boiler with radiators","44 - Wind turbine","45 - Flat roof insulation","46 - Room-in-roof insulation","47 - Floor insulation","48 - High performance external doors","49 - Heat recovery system for mixer showers","50 - Flue gas heat recovery device in conjunction with boiler","51 - Air or ground source heat pump","52 - Air or ground source heat pump with underfloor heating","53 - Micro CHP","54 - Biomass boiler (Exempted Appliance if in Smoke Control Area)","55 - External insulation with cavity wall insulation"]
["Indicative-Cost","Improvement","Suggested-Improvements",true,"str",0,1," ",0]
["Green-Deal-Category","Improvement","Suggested-Improvements",true,"str",0,1," ",4,"1 - 1. Not eligible for Green Deal","2 - 2. Eligible with additional finance","3 - 3. Eligible without additional finance","NI - Not assessed. Use for alternative measures and for new dwelling EPCs"]
["LZC-Energy-Sources","Energy-Assessment","SAP-Report",false,null,0,1," Details of low and zero carbon energy source(s) for the property, if any.",0]
["LZC-Energy-Source","LZC-Energy-Sources","Energy-Assessment",true,"str",1,"unbounded","Low and zero carbon energy source(s) for the property. ",17,"1 - Biofuel main heating","2 - Biofuel community heating","3 - Biofuel community heating for some of heat generation","4 - Biofuel secondary heating","5 - Geothermal heat source","6 - Community combined heat and power","7 - Ground source heat pump","8 - Water source heat pump","9 - Air source heat pump","10 - Solar water heating","11 - Solar photovoltaics","12 - Wind turbine","13 - Community heat pump","14 - Hydro-electric generation","15 - Micro-CHP","16 - Exhaust air heat pump","17 - Solar-assisted heat pump"]
["Renewable-Heat-Incentive","Energy-Assessment","SAP-Report",false,null,0,1," ",0]
["RHI-New-Dwelling","Renewable-Heat-Incentive","Energy-Assessment",false,null,1,1," ",0]
["Space-Heating","RHI-New-Dwelling","Renewable-Heat-Incentive",true,"float",1,1,"Space heating requirement. ",0]
["Water-Heating","RHI-New-Dwelling","Renewable-Heat-Incentive",true,"float",1,1,"Water heating requirement. ",0]
["RHI-Existing-Dwelling","Renewable-Heat-Incentive","Energy-Assessment",false,null,1,1," ",0]
["Space-Heating-Existing-Dwelling","RHI-Existing-Dwelling","Renewable-Heat-Incentive",true,"float",1,1,"Space heating requirement for existing dwelling. ",0]
["Space-Heating-With-Loft-Insulation","RHI-Existing-Dwelling","Renewable-Heat-Incentive",true,"float",0,1,"Space heating requirement after implementation of loft insulation recommendation, omit if loft insulation not recommended. For backwards compatibility only, do not use ",0]
["Space-Heating-With-Cavity-Insulation","RHI-Existing-Dwelling","Renewable-Heat-Incentive",true,"float",0,1,"Space heating requirement after implementation of cavity insulation recommendation, omit if cavity insulation not recommended. For backwards compatibility only, do not use ",0]
["Space-Heating-With-Loft-And-Cavity-Insulation","RHI-Existing-Dwelling","Renewable-Heat-Incentive",true,"float",0,1,"Space heating requirement after implementation of loft and cavity insulation recommendations, same as existing dwelling if neither is recommended. For backwards compatibility only, do not use ",0]
["Water-Heating","RHI-Existing-Dwelling","Renewable-Heat-Incentive",true,"float",1,1,"Water heating requirement. ",0]
["Impact-Of-Loft-Insulation","RHI-Existing-Dwelling","Renewable-Heat-Incentive",true,"int",0,1,"Reduction in space heating requirement with loft insulation (as negative value). Omit if not applicable ",0]
["Impact-Of-Cavity-Insulation","RHI-Existing-Dwelling","Renewable-Heat-Incentive",true,"int",0,1,"Reduction in space heating requirement with cavity insulation (as negative value). Omit if not applicable ",0]
["Impact-Of-Solid-Wall-Insulation","RHI-Existing-Dwelling","Renewable-Heat-Incentive",true,"int",0,1,"Reduction in space heating requirement with solid wall insulation (as negative value). Omit if not applicable ",0]
["Green-Deal-Package","Energy-Assessment","SAP-Report",false,null,0,1,"Improvements that can form a Green Deal package ",0]
["Green-Deal-Improvement","Green-Deal-Package","Energy-Assessment",false,null,1,"unbounded","Improvements from Suggested-Improvements in the Green Deal package ",0]
["Improvement-Type","Green-Deal-Improvement","Green-Deal-Package",true,"str",1,1," ",37,"A - Loft insulation","A2 - Flat roof insulation","A3 - Room-in-roof insulation","B - Cavity wall insulation","C - Hot water cylinder insulation","D - Draughtproofing","E - Low energy lights","F - Cylinder thermostat","G - Heating controls for wet central heating system","H - Heating controls for warm air system","I - Upgrade boiler, same fuel","J - Biomass boiler","J2 - Biomass boiler as alternative improvement","K - Biomass room heater with boiler","L - New or replacement fan-assisted storage heaters","L2 - New or replacement high heat retention storage heaters","M - Replacement warm-air unit","N - Solar water heating","O - Replacement double glazed windows","O3 - Replacement double glazing units","P - Secondary glazing","Q - Solid wall insulation","Q2 - External insulation with cavity wall insulation","R - Condensing oil boiler","S - Change heating to Band A gas condensing boiler (no fuel switch)","T - Change heating to Band A gas condensing boiler (fuel switch)","T2 - Flue gas heat recovery","U - Photovoltaics","V - Wind turbine (roof mounted)","V2 - Wind turbine (on mast)","W - Floor insulation","X - Insulated doors","Y - Instantaneous waste water heat recovery","Y2 - Storage waste water heat recovery","Z1 - Air or ground source heat pump","Z2 - Air or ground source heat pump with underfloor heating","Z3 - Micro-CHP"]
["Improvement-Number","Green-Deal-Improvement","Green-Deal-Package",true,"str",1,1," ",54,"1 - Insulate hot water cylinder with 80 mm jacket","2 - Increase hot water cylinder insulation","3 - Add additional 80 mm jacket to hot water cylinder","4 - Hot water cylinder thermostat","5 - Increase loft insulation to 270 mm","6 - Cavity wall insulation","7 - Internal or external wall insulation","8 - Replace single glazed windows with low-E double glazing","9 - Secondary glazing to single glazed windows","10 - Draught proofing","11 - Heating controls (programmer, room thermostat and TRVs)","12 - Heating controls (room thermostat and TRVs)","13 - Heating controls (thermostatic radiator valves)","14 - Heating controls (room thermostat)","15 - Heating controls (programmer and TRVs)","16 - Heating controls (time and temperature zone control)","17 - Heating controls (programmer and room thermostat)","18 - Heating controls (room thermostat)","19 - Solar water heating","20 - Replace boiler with new condensing boiler","21 - Replace boiler with new condensing boiler","22 - Replace boiler with biomass boiler","23 - Wood pellet stove with boiler and radiators","24 - Fan assisted storage heaters and dual immersion cylinder","25 - Fan assisted storage heaters","26 - Replacement warm air unit","27 - Change heating to gas condensing boiler","28 - Condensing oil boiler with radiators","29 - Change heating to gas condensing boiler","30 - Fan assisted storage heaters and dual immersion cylinder","31 - Fan-assisted storage heaters","32 - Change heating to gas condensing boiler","34 - Solar photovoltaic panels, 2.5 kWp","35 - Low energy lighting for all fixed outlets","36 - Replace heating unit with condensing unit","37 - Condensing boiler (separate from the range cooker)","38 - Condensing boiler (separate from the range cooker)","39 - Wood pellet stove with boiler and radiators","40 - Change room heaters to condensing boiler","41 - Change room heaters to condensing boiler","42 - Replace heating unit with mains gas condensing unit","43 - Condensing oil boiler with radiators","44 - Wind turbine","45 - Flat roof insulation","46 - Room-in-roof insulation","47 - Floor insulation","48 - High performance external doors","49 - Heat recovery system for mixer showers","50 - Flue gas heat recovery device in conjunction with boiler","51 - Air or ground source heat pump","52 - Air or ground source heat pump with underfloor heating","53 - Micro CHP","54 - Biomass boiler (Exempted Appliance if in Smoke Control Area)","55 - External insulation with cavity wall insulation"]
["Electricity-Saving","Green-Deal-Package","Energy-Assessment",true,"float",1,1,"Total electricity saving for the package Extension of a Decimal value for use with monetary values where a currency code needs to be specified. The currency code is actually metadata about the value so, in line with good XML practice, the Currency Code is declared as an XML-Attribute of the Money datatype rather than as a separate XML-Element. The currency attribute should then include a list of valid currencies codes that are supported.",0]
["Gas-Saving","Green-Deal-Package","Energy-Assessment",true,"float",1,1,"Total gas saving for the package Extension of a Decimal value for use with monetary values where a currency code needs to be specified. The currency code is actually metadata about the value so, in line with good XML practice, the Currency Code is declared as an XML-Attribute of the Money datatype rather than as a separate XML-Element. The currency attribute should then include a list of valid currencies codes that are supported.",0]
["Other-Fuel-Saving","Green-Deal-Package","Energy-Assessment",true,"float",1,1,"Total other saving for the package Extension of a Decimal value for use with monetary values where a currency code needs to be specified. The currency code is actually metadata about the value so, in line with good XML practice, the Currency Code is declared as an XML-Attribute of the Money datatype rather than as a separate XML-Element. The currency attribute should then include a list of valid currencies codes that are supported.",0]
["Alternative-Improvements","Energy-Assessment","SAP-Report",false,null,0,1,"Alternative improvements to some of those given in Suggested-Improvements Part of an Energy Report that describes the a set of improvements that the Home Inspector considers would contribute to the overall energy rating of the property.",0]
["Improvement","Alternative-Improvements","Energy-Assessment",false,null,1,"unbounded"," ",0]
["Sequence","Improvement","Alternative-Improvements",true,"int",1,1,"Sequence of the Suggested Improvements within the set of Suggested Improvements. This is used to order the Recommendations on the output HCR / EPC so that the cumulative Ratings make sense. The Improved Energy Ratings that result from carrying out a Suggested Improvement are cumulative and assume that the improvements have been installed in the order they appear in the list. Hence they must be sequenced. ",0]
["Improvement-Category","Improvement","Alternative-Improvements",true,"str",1,1,"The category of improvement. This identifies where on the report the recommendation is printed. ",6,"1 - Lower cost - this is for backwards compatibility only and should not be used","2 - Higher cost - this is for backwards compatibility only and should not be used","3 - Further measure - this is for backwards compatibility only and should not be used","4 - Deselected. This is for backwards compatibility only and should not be used.","5 - Normal measure","6 - Alternative measure"]
["Improvement-Type","Improvement","Alternative-Improvements",true,"str",1,1,"Suggested work to be carried out on the Property to improve its energy efficiency. This should be a enumerated list of acceptable improvements but it hasn't yet been defined. ",37,"A - Loft insulation","A2 - Flat roof insulation","A3 - Room-in-roof insulation","B - Cavity wall insulation","C - Hot water cylinder insulation","D - Draughtproofing","E - Low energy lights","F - Cylinder thermostat","G - Heating controls for wet central heating system","H - Heating controls for warm air system","I - Upgrade boiler, same fuel","J - Biomass boiler","J2 - Biomass boiler as alternative improvement","K - Biomass room heater with boiler","L - New or replacement fan-assisted storage heaters","L2 - New or replacement high heat retention storage heaters","M - Replacement warm-air unit","N - Solar water heating","O - Replacement double glazed windows","O3 - Replacement double glazing units","P - Secondary glazing","Q - Solid wall insulation","Q2 - External insulation with cavity wall insulation","R - Condensing oil boiler","S - Change heating to Band A gas condensing boiler (no fuel switch)","T - Change heating to Band A gas condensing boiler (fuel switch)","T2 - Flue gas heat recovery","U - Photovoltaics","V - Wind turbine (roof mounted)","V2 - Wind turbine (on mast)","W - Floor insulation","X - Insulated doors","Y - Instantaneous waste water heat recovery","Y2 - Storage waste water heat recovery","Z1 - Air or ground source heat pump","Z2 - Air or ground source heat pump with underfloor heating","Z3 - Micro-CHP"]
["Typical-Saving","Improvement","Alternative-Improvements",true,"float",1,1,"Typical savings (in British Pounds) per year if the suggested improvement is carried out. 0 if not assessed Extension of a Decimal value for use with monetary values where a currency code needs to be specified. The currency code is actually metadata about the value so, in line with good XML practice, the Currency Code is declared as an XML-Attribute of the Money datatype rather than as a separate XML-Element. The currency attribute should then include a list of valid currencies codes that are supported.",0]
["Energy-Performance-Rating","Improvement","Alternative-Improvements",true,"int",1,1,"The estimated Energy performance rating of the Property after the Suggested Improvement has been carried out providing any preceding Suggested Improvement has also been carried out. 0 if not assessed ",0]
["Environmental-Impact-Rating","Improvement","Alternative-Improvements",true,"int",1,1,"The estimated Environmental Impact rating of the Property after the Suggested Improvement has been carried out providing any preceding Suggested Improvement has also been carried out. 0 if not assessed ",0]
["Improvement-Details","Improvement","Alternative-Improvements",false,null,1,1," ",0]
["Improvement-Texts","Improvement-Details","Improvement",false,null,1,1,"For backward compatability only ",0]
["Improvement-Summary","Improvement-Texts","Improvement-Details",true,"str",0,1,"A short description of the suggested improvement. String value with a language code for natural-language text.",0]
["Improvement-Heading","Improvement-Texts","Improvement-Details",true,"str",0,1,"Text to precede the improvement description. If this field is not provided the 'Improvement-Summary' is used instead. String value with a language code for natural-language text.",0]
["Improvement-Description","Improvement-Texts","Improvement-Details",true,"str",1,1,"Detailed description of the suggested improvement. String value with a language code for natural-language text.",0]
["Improvement-Number","Improvement-Details","Improvement",true,"str",1,1," ",54,"1 - Insulate hot water cylinder with 80 mm jacket","2 - Increase hot water cylinder insulation","3 - Add additional 80 mm jacket to hot water cylinder","4 - Hot water cylinder thermostat","5 - Increase loft insulation to 270 mm","6 - Cavity wall insulation","7 - Internal or external wall insulation","8 - Replace single glazed windows with low-E double glazing","9 - Secondary glazing to single glazed windows","10 - Draught proofing","11 - Heating controls (programmer, room thermostat and TRVs)","12 - Heating controls (room thermostat and TRVs)","13 - Heating controls (thermostatic radiator valves)","14 - Heating controls (room thermostat)","15 - Heating controls (programmer and TRVs)","16 - Heating controls (time and temperature zone control)","17 - Heating controls (programmer and room thermostat)","18 - Heating controls (room thermostat)","19 - Solar water heating","20 - Replace boiler with new condensing boiler","21 - Replace boiler with new condensing boiler","22 - Replace boiler with biomass boiler","23 - Wood pellet stove with boiler and radiators","24 - Fan assisted storage heaters and dual immersion cylinder","25 - Fan assisted storage heaters","26 - Replacement warm air unit","27 - Change heating to gas condensing boiler","28 - Condensing oil boiler with radiators","29 - Change heating to gas condensing boiler","30 - Fan assisted storage heaters and dual immersion cylinder","31 - Fan-assisted storage heaters","32 - Change heating to gas condensing boiler","34 - Solar photovoltaic panels, 2.5 kWp","35 - Low energy lighting for all fixed outlets","36 - Replace heating unit with condensing unit","37 - Condensing boiler (separate from the range cooker)","38 - Condensing boiler (separate from the range cooker)","39 - Wood pellet stove with boiler and radiators","40 - Change room heaters to condensing boiler","41 - Change room heaters to condensing boiler","42 - Replace heating unit with mains gas condensing unit","43 - Condensing oil boiler with radiators","44 - Wind turbine","45 - Flat roof insulation","46 - Room-in-roof insulation","47 - Floor insulation","48 - High performance external doors","49 - Heat recovery system for mixer showers","50 - Flue gas heat recovery device in conjunction with boiler","51 - Air or ground source heat pump","52 - Air or ground source heat pump with underfloor heating","53 - Micro CHP","54 - Biomass boiler (Exempted Appliance if in Smoke Control Area)","55 - External insulation with cavity wall insulation"]
["Indicative-Cost","Improvement","Alternative-Improvements",true,"str",0,1," ",0]
["Green-Deal-Category","Improvement","Alternative-Improvements",true,"str",0,1," ",4,"1 - 1. Not eligible for Green Deal","2 - 2. Eligible with additional finance","3 - 3. Eligible without additional finance","NI - Not assessed. Use for alternative measures and for new dwelling EPCs"]
["Addendum","Energy-Assessment","SAP-Report",false,null,0,1," ",0]
["Cavity-Fill-Recommended","Addendum","Energy-Assessment",true,"bool",0,1,"Cavity fill is recommended ",4,"true - True","1 - True","false - False","0 - False"]
["Stone-Walls","Addendum","Energy-Assessment",true,"bool",0,1,"Stone walls present, not insulated ",4,"true - True","1 - True","false - False","0 - False"]
["System-Build","Addendum","Energy-Assessment",true,"bool",0,1,"System build present ",4,"true - True","1 - True","false - False","0 - False"]
["Access-Issues","Addendum","Energy-Assessment",true,"bool",0,1,"Dwelling has access issues for cavity wall insulation. Include only when at least one of Cavity-Fill-Recommended, Stone-Walls, System-Build is also present ",4,"true - True","1 - True","false - False","0 - False"]
["High-Exposure","Addendum","Energy-Assessment",true,"bool",0,1,"Dwelling may be exposed to wind-driven rain. Include only when at least one of Cavity-Fill-Recommended, Stone-Walls, System-Build is also present ",4,"true - True","1 - True","false - False","0 - False"]
["Narrow-Cavities","Addendum","Energy-Assessment",true,"bool",0,1,"Dwelling may have narrow cavities. Include only when Cavity-Fill-Recommended is also present ",4,"true - True","1 - True","false - False","0 - False"]
["SAP10-Data","SAP-Report","SAP-Compliance-Report",false,null,1,1," These are the specific data-items collected by the HI / EA needed to perform the SAP calculation.",0]
["Data-Type","SAP10-Data","SAP-Report",true,"str",1,1,"Type of SAP data that has been collected. ",6,"1 - new dwelling as designed","2 - new dwelling as built","3 - new extension to existing dwelling","4 - new dwelling created by change of use","5 - existing dwelling","6 - other"]
["SAP-Property-Details","SAP10-Data","SAP-Report",false,null,1,1," Various measurements a particular Property.",0]
["Property-Type","SAP-Property-Details","SAP10-Data",true,"str",1,1,"The type of Property, such as House, Flat, Mansion, Maisonette etc. ",5,"0 - House","1 - Bungalow","2 - Flat","3 - Maisonette","4 - Park home"]
["Built-Form","SAP-Property-Details","SAP10-Data",true,"str",0,1,"The building type of the Property e.g. Detached, Semi-Detached, Terrace etc. Together with the Property Type, the Built Form provides a structured description of the property. ",6,"1 - Detached","2 - Semi-Detached","3 - End-Terrace","4 - Mid-Terrace","5 - Enclosed End-Terrace","6 - Enclosed Mid-Terrace"]
["Living-Area","SAP-Property-Details","SAP10-Data",true,"float",1,1,"The size of the living area in square metres. The living area is the room marked on a plan as the lounge or living room, or the largest public room (irrespective of usage by particular occupants), together with any rooms not separated from the lounge or living room by doors, and including any cupboards directly accessed from the lounge or living room. Living area does not, however, extend over more than one storey, even when stairs enter the living area directly. ",0]
["Lowest-Storey-Area","SAP-Property-Details","SAP10-Data",true,"float",1,1,"The Area of the lowest storey in square meters including unheated or communal areas such as garages or corridors. ",0]
["Orientation","SAP-Property-Details","SAP10-Data",true,"str",1,1,"The orientation of the front of the property. ",10,"0 - unknown or unspecified","1 - North","2 - North East","3 - East","4 - South East","5 - South","6 - South West","7 - West","8 - North West","9 - Horizontal (windows and roof windows only)"]
["Conservatory-Type","SAP-Property-Details","SAP10-Data",true,"str",1,1,"Type of conservatory. ",4,"1 - no conservatory","2 - separated unheated conservatory","3 - separated heated conservatory","4 - not separated"]
["Terrain-Type","SAP-Property-Details","SAP10-Data",true,"str",1,1,"Terrain type. Needed for wind-turbines and for applying measures. ",3,"1 - urban","2 - suburban","3 - rural"]
["Has-Special-Feature","SAP-Property-Details","SAP10-Data",true,"bool",0,1,"For backwards compatibility only, do not use. ",4,"true - True","1 - True","false - False","0 - False"]
["Special-Feature-Description","SAP-Property-Details","SAP10-Data",true,"str",0,1,"For backwards compatibility only, do not use. String value with a language code for natural-language text.",0]
["Energy-Saved-Or-Generated","SAP-Property-Details","SAP10-Data",true,"float",0,1,"For backwards compatibility only, do not use. ",0]
["Saved-Or-Generated-Fuel","SAP-Property-Details","SAP10-Data",true,"str",0,1,"For backwards compatibility only, do not use. ",43,"1 - Gas: mains gas","2 - Gas: bulk LPG","3 - Gas: bottled LPG","4 - Oil: heating oil","7 - Gas: biogas","8 - LNG","9 - LPG subject to Special Condition 18","10 - Solid fuel: dual fuel appliance (mineral and wood)","11 - Solid fuel: house coal","12 - Solid fuel: manufactured smokeless fuel","15 - Solid fuel: anthracite","20 - Solid fuel: wood logs","21 - Solid fuel: wood chips","22 - Solid fuel: wood pellets (in bags, for secondary heating)","23 - Solid fuel: wood pellets (bulk supply in bags, for main heating)","36 - Electricity: electricity sold to grid","37 - Electricity: electricity displaced from grid","39 - Electricity: electricity, unspecified tariff","41 - Community heating schemes: heat from electric heat pump","42 - Community heating schemes: heat from boilers - waste combustion","43 - Community heating schemes: heat from boilers - biomass","44 - Community heating schemes: heat from boilers - biogas","45 - Community heating schemes: waste heat from power stations","46 - Community heating schemes: geothermal heat source","47 - Community heating schemes: high grade heat recovered from process","48 - Community heating schemes: heat from CHP","49 - Community heating schemes: low grade heat recovered from process","50 - Community heating schemes: electricity for pumping in distribution network","51 - Community heating schemes: heat from mains gas","52 - Community heating schemes: heat from LPG","53 - Community heating schemes: heat from oil","54 - Community heating schemes: heat from coal","55 - Community heating schemes: heat from B30D","56 - Community heating schemes: heat from boilers that can use mineral oil or biodiesel","57 - Community heating schemes: heat from boilers using biodiesel from any biomass source","58 - Community heating schemes: biodiesel from vegetable oil only","71 - biodiesel from any biomass source","72 - biodiesel from used cooking oil only","73 - biodiesel from vegetable oil only","74 - appliances able to use mineral oil or liquid biofuel","75 - B30K","76 - bioethanol from any biomass source","99 - Fuel data from pcdb"]
["Energy-Used","SAP-Property-Details","SAP10-Data",true,"float",0,1,"For backwards compatibility only, do not use. ",0]
["Energy-Used-Fuel","SAP-Property-Details","SAP10-Data",true,"str",0,1,"For backwards compatibility only, do not use. ",43,"1 - Gas: mains gas","2 - Gas: bulk LPG","3 - Gas: bottled LPG","4 - Oil: heating oil","7 - Gas: biogas","8 - LNG","9 - LPG subject to Special Condition 18","10 - Solid fuel: dual fuel appliance (mineral and wood)","11 - Solid fuel: house coal","12 - Solid fuel: manufactured smokeless fuel","15 - Solid fuel: anthracite","20 - Solid fuel: wood logs","21 - Solid fuel: wood chips","22 - Solid fuel: wood pellets (in bags, for secondary heating)","23 - Solid fuel: wood pellets (bulk supply in bags, for main heating)","36 - Electricity: electricity sold to grid","37 - Electricity: electricity displaced from grid","39 - Electricity: electricity, unspecified tariff","41 - Community heating schemes: heat from electric heat pump","42 - Community heating schemes: heat from boilers - waste combustion","43 - Community heating schemes: heat from boilers - biomass","44 - Community heating schemes: heat from boilers - biogas","45 - Community heating schemes: waste heat from power stations","46 - Community heating schemes: geothermal heat source","47 - Community heating schemes: high grade heat recovered from process","48 - Community heating schemes: heat from CHP","49 - Community heating schemes: low grade heat recovered from process","50 - Community heating schemes: electricity for pumping in distribution network","51 - Community heating schemes: heat from mains gas","52 - Community heating schemes: heat from LPG","53 - Community heating schemes: heat from oil","54 - Community heating schemes: heat from coal","55 - Community heating schemes: heat from B30D","56 - Community heating schemes: heat from boilers that can use mineral oil or biodiesel","57 - Community heating schemes: heat from boilers using biodiesel from any biomass source","58 - Community heating schemes: biodiesel from vegetable oil only","71 - biodiesel from any biomass source","72 - biodiesel from used cooking oil only","73 - biodiesel from vegetable oil only","74 - appliances able to use mineral oil or liquid biofuel","75 - B30K","76 - bioethanol from any biomass source","99 - Fuel data from pcdb"]
["Is-In-Smoke-Control-Area","SAP-Property-Details","SAP10-Data",true,"str",1,1,"Is property in a smoke control area? Only if a solid fuel appliance is used. ",3,"false - ","true - ","unknown - "]
["Cold-Water-Source","SAP-Property-Details","SAP10-Data",true,"str",1,1,"What is the cold water source? Either mains or header tank. ",2,"1 - mains","2 - header tank"]
["Windows-Overshading","SAP-Property-Details","SAP10-Data",true,"str",1,1,"Average amount of overshading of windows. ",4,"1 - very little","2 - average or unknown","3 - more than average","4 - heavy"]
["Thermal-Mass-Parameter","SAP-Property-Details","SAP10-Data",true,"float",0,1,"Average thermal mass parameter for the dwelling in kJ/m2K. If omitted it is calculated using the kappa values of each element. ",0]
["Additional-Allowable-Electricity-Generation","SAP-Property-Details","SAP10-Data",true,"float",0,1,"Additional allowable electricity generation applicable to this dwelling in kWh per square metre; only if Zero Carbon Home assessment. ",0]
["Gas-Smart-Meter-Present","SAP-Property-Details","SAP10-Data",true,"bool",1,1," ",4,"true - True","1 - True","false - False","0 - False"]
["Electricity-Smart-Meter-Present","SAP-Property-Details","SAP10-Data",true,"bool",1,1," ",4,"true - True","1 - True","false - False","0 - False"]
["Is-Dwelling-Export-Capable","SAP-Property-Details","SAP10-Data",true,"bool",1,1," ",4,"true - True","1 - True","false - False","0 - False"]
["PV-Connection","SAP-Property-Details","SAP10-Data",true,"str",0,1," ",3,"0 - not applicable (FGHRS)","1 - not connected to dwelling's electricity meter","2 - connected to dwelling's electricity meter"]
["PV-Diverter","SAP-Property-Details","SAP10-Data",true,"bool",0,1,"Diverter present. ",4,"true - True","1 - True","false - False","0 - False"]
["Battery-Capacity","SAP-Property-Details","SAP10-Data",true,"float",0,1,"Battery capacity if diverter present. ",0]
["Is-Wind-Turbine-Connected-To-Dwelling-Meter","SAP-Property-Details","SAP10-Data",true,"bool",0,1,"Whether the wind turbine is connected to the Dwelling's meter. ",4,"true - True","1 - True","false - False","0 - False"]
["SAP-Heating","SAP-Property-Details","SAP10-Data",false,null,1,1," Details of the means by which the Main Building is heated.",0]
["Water-Heating-Code","SAP-Heating","SAP-Property-Details",true,"int",1,1,"The type of Water Heating present in the Property. ",0]
["Water-Fuel-Type","SAP-Heating","SAP-Property-Details",true,"str",0,1,"The type of fuel used to power the central heating e.g. Gas, Electricity. Not used if water system is main or secondary system. ",43,"1 - Gas: mains gas","2 - Gas: bulk LPG","3 - Gas: bottled LPG","4 - Oil: heating oil","7 - Gas: biogas","8 - LNG","9 - LPG subject to Special Condition 18","10 - Solid fuel: dual fuel appliance (mineral and wood)","11 - Solid fuel: house coal","12 - Solid fuel: manufactured smokeless fuel","15 - Solid fuel: anthracite","20 - Solid fuel: wood logs","21 - Solid fuel: wood chips","22 - Solid fuel: wood pellets (in bags, for secondary heating)","23 - Solid fuel: wood pellets (bulk supply in bags, for main heating)","36 - Electricity: electricity sold to grid","37 - Electricity: electricity displaced from grid","39 - Electricity: electricity, unspecified tariff","41 - Community heating schemes: heat from electric heat pump","42 - Community heating schemes: heat from boilers - waste combustion","43 - Community heating schemes: heat from boilers - biomass","44 - Community heating schemes: heat from boilers - biogas","45 - Community heating schemes: waste heat from power stations","46 - Community heating schemes: geothermal heat source","47 - Community heating schemes: high grade heat recovered from process","48 - Community heating schemes: heat from CHP","49 - Community heating schemes: low grade heat recovered from process","50 - Community heating schemes: electricity for pumping in distribution network","51 - Community heating schemes: heat from mains gas","52 - Community heating schemes: heat from LPG","53 - Community heating schemes: heat from oil","54 - Community heating schemes: heat from coal","55 - Community heating schemes: heat from B30D","56 - Community heating schemes: heat from boilers that can use mineral oil or biodiesel","57 - Community heating schemes: heat from boilers using biodiesel from any biomass source","58 - Community heating schemes: biodiesel from vegetable oil only","71 - biodiesel from any biomass source","72 - biodiesel from used cooking oil only","73 - biodiesel from vegetable oil only","74 - appliances able to use mineral oil or liquid biofuel","75 - B30K","76 - bioethanol from any biomass source","99 - Fuel data from pcdb"]
["Has-Hot-Water-Cylinder","SAP-Heating","SAP-Property-Details",true,"bool",0,1,"Hot water cylinder? ",4,"true - True","1 - True","false - False","0 - False"]
["Secondary-Heating-Category","SAP-Heating","SAP-Property-Details",true,"str",1,1,"Category of heating system for the secondary heating system. ",2,"1 - none","10 - room heaters"]
["Secondary-Heating-Data-Source","SAP-Heating","SAP-Property-Details",true,"str",0,1,"Source of secondary heating system data; only if secondary heating system. ",2,"2 - from manufacturer declaration","3 - from SAP table"]
["Secondary-Heating-Efficiency","SAP-Heating","SAP-Property-Details",true,"float",0,1," ",0]
["Secondary-Heating-Commisioning-Certificate","SAP-Heating","SAP-Property-Details",true,"str",0,1,"Secondary heating system commisioning certificate number. ",0]
["Secondary-Heating-Installation-Engineer","SAP-Heating","SAP-Property-Details",true,"str",0,1,"Secondary heating installation engineer registration reference. ",0]
["Secondary-Heating-Code","SAP-Heating","SAP-Property-Details",true,"int",0,1,"Type of secondary heating present in the property; only if required and if heating data source is SAP table. ",0]
["Secondary-Fuel-Type","SAP-Heating","SAP-Property-Details",true,"str",0,1,"The type of fuel used to power the secondary heating e.g. Gas, Electricity; only if required. ",43,"1 - Gas: mains gas","2 - Gas: bulk LPG","3 - Gas: bottled LPG","4 - Oil: heating oil","7 - Gas: biogas","8 - LNG","9 - LPG subject to Special Condition 18","10 - Solid fuel: dual fuel appliance (mineral and wood)","11 - Solid fuel: house coal","12 - Solid fuel: manufactured smokeless fuel","15 - Solid fuel: anthracite","20 - Solid fuel: wood logs","21 - Solid fuel: wood chips","22 - Solid fuel: wood pellets (in bags, for secondary heating)","23 - Solid fuel: wood pellets (bulk supply in bags, for main heating)","36 - Electricity: electricity sold to grid","37 - Electricity: electricity displaced from grid","39 - Electricity: electricity, unspecified tariff","41 - Community heating schemes: heat from electric heat pump","42 - Community heating schemes: heat from boilers - waste combustion","43 - Community heating schemes: heat from boilers - biomass","44 - Community heating schemes: heat from boilers - biogas","45 - Community heating schemes: waste heat from power stations","46 - Community heating schemes: geothermal heat source","47 - Community heating schemes: high grade heat recovered from process","48 - Community heating schemes: heat from CHP","49 - Community heating schemes: low grade heat recovered from process","50 - Community heating schemes: electricity for pumping in distribution network","51 - Community heating schemes: heat from mains gas","52 - Community heating schemes: heat from LPG","53 - Community heating schemes: heat from oil","54 - Community heating schemes: heat from coal","55 - Community heating schemes: heat from B30D","56 - Community heating schemes: heat from boilers that can use mineral oil or biodiesel","57 - Community heating schemes: heat from boilers using biodiesel from any biomass source","58 - Community heating schemes: biodiesel from vegetable oil only","71 - biodiesel from any biomass source","72 - biodiesel from used cooking oil only","73 - biodiesel from vegetable oil only","74 - appliances able to use mineral oil or liquid biofuel","75 - B30K","76 - bioethanol from any biomass source","99 - Fuel data from pcdb"]
["Secondary-Heating-PCDF-Fuel-Index","SAP-Heating","SAP-Property-Details",true,"int",0,1,"PCDF index number of the fuel type, only if Secondary-Fuel-Type is 99 (fuel from database). ",0]
["Secondary-Heating-Flue-Type","SAP-Heating","SAP-Property-Details",true,"str",0,1,"Secondary flue type; only if secondary efficiency is manufacturer declaration and if there is a flue. ",5,"1 - open flue","2 - balanced flue","3 - chimney","4 - omitted (boiler is in an outhouse, so its flue arrangements are not relevant)","5 - unknown (there is a flue, but its type could not be determined)"]
["Thermal-Store","SAP-Heating","SAP-Property-Details",true,"str",0,1,"The type of thermal store; not used if main heating system is community heating scheme. ",3,"1 - none","2 - hot water only","3 - integrated"]
["Has-Fixed-Air-Conditioning","SAP-Heating","SAP-Property-Details",true,"bool",0,1,"Fixed air conditioning? ",4,"true - True","1 - True","false - False","0 - False"]
["Immersion-Heating-Type","SAP-Heating","SAP-Property-Details",true,"str",0,1,"The type of immersion heating; only if immersion. ",2,"1 - Dual","2 - Single"]
["Is-Heat-Pump-Assisted-By-Immersion","SAP-Heating","SAP-Property-Details",true,"bool",0,1,"Is heat pump assisted by immersion? Applicable only to hot water only heat pumps ",4,"true - True","1 - True","false - False","0 - False"]
["Is-Heat-Pump-Installed-To-MIS","SAP-Heating","SAP-Property-Details",true,"bool",0,1,"Is heat pump installed to MIS standard? Only if water heating from hot water only heat pump. ",4,"true - True","1 - True","false - False","0 - False"]
["Is-Immersion-For-Summer-Use","SAP-Heating","SAP-Property-Details",true,"bool",0,1,"Immersion for summer use? Only if main heating is solid fuel fire or room heater with boiler. ",4,"true - True","1 - True","false - False","0 - False"]
["Is-Secondary-Heating-HETAS-Approved","SAP-Heating","SAP-Property-Details",true,"bool",0,1,"Secondary heating appliance is HETAS approved? Only if solid fuel. ",4,"true - True","1 - True","false - False","0 - False"]
["Hot-Water-Store-Manufacturer","SAP-Heating","SAP-Property-Details",true,"str",0,1,"Store Manufacturer name. ",0]
["Hot-Water-Store-Model","SAP-Heating","SAP-Property-Details",true,"str",0,1,"Store Model name. ",0]
["Hot-Water-Store-Commissioning-Certificate","SAP-Heating","SAP-Property-Details",true,"str",0,1,"Store comissioning certificate number. ",0]
["Hot-Water-Store-Installer-Engineer-Registration","SAP-Heating","SAP-Property-Details",true,"str",0,1,"Store installer engineer registration number. ",0]
["Hot-Water-Store-Size","SAP-Heating","SAP-Property-Details",true,"float",0,1,"Hot water store size in litres; if there is a hot water store. Store refers to hot water store type which can be cylinder (if thermal store is \"none\"), hot-water only thermal store or integrated thermal store. Not applicable if (a) combi boiler whose data source database or (b) instantaneous combi boiler or (c) combi boiler from SAP table or (d) instantaneous water heater. ",0]
["Hot-Water-Store-Heat-Transfer-Area","SAP-Heating","SAP-Property-Details",true,"float",0,1,"Used when a heat pump is associated with a separate and specified hot water vessel. ",0]
["Hot-Water-Store-Heat-Loss-Source","SAP-Heating","SAP-Property-Details",true,"str",0,1,"The source of the hot water store heat loss information; if there is a hot water store. Not applicable if (a) combi boiler whose data source database or (b) instantaneous combi boiler or (c) combi boiler from SAP table or (d) instantaneous water heater. ",2,"2 - from manufacturer declaration","3 - from SAP table"]
["Hot-Water-Store-Heat-Loss","SAP-Heating","SAP-Property-Details",true,"float",0,1,"Hot water store declared loss in kWh/day; only if there is a hot water store and if manufacturer declared loss. Not applicable if (a) combi boiler whose data source database or (b) instantaneous combi boiler or (c) combi boiler from SAP table or (d) instantaneous water heater. ",0]
["Hot-Water-Store-Insulation-Type","SAP-Heating","SAP-Property-Details",true,"str",0,1,"Hot water store insulation; only if there is a hot water store and if loss from SAP table. Not applicable if (a) combi boiler whose data source database or (b) instantaneous combi boiler or (c) combi boiler from SAP table or (d) instantaneous water heater. ",2,"1 - factory-applied","2 - loose jacket"]
["Hot-Water-Store-Insulation-Thickness","SAP-Heating","SAP-Property-Details",true,"float",0,1,"Hot water store insulation thickness in mm; only if there is a hot water store and if loss from SAP table. Not applicable if (a) combi boiler whose data source database or (b) instantaneous combi boiler or (c) combi boiler from SAP table or (d) instantaneous water heater. ",0]
["Is-Thermal-Store-Near-Boiler","SAP-Heating","SAP-Property-Details",true,"bool",0,1,"Thermal store connected to boiler by no more than 1.5 m of insulated pipework? Only if thermal store. Not applicable if combi boiler or instantaneous water heater. ",4,"true - True","1 - True","false - False","0 - False"]
["Is-Thermal-Store-Or-CPSU-In-Airing-Cupboard","SAP-Heating","SAP-Property-Details",true,"bool",0,1,"Thermal store or CPSU in airing cupboard? Only if (a) boiler with integrated or hot-water-only thermal store, or (b) main heating is CPSU. ",4,"true - True","1 - True","false - False","0 - False"]
["Has-Cylinder-Thermostat","SAP-Heating","SAP-Property-Details",true,"bool",0,1,"Hot water cylinder thermostat? Not applicable if combi boiler or instantaneous water heater. ",4,"true - True","1 - True","false - False","0 - False"]
["Is-Cylinder-In-Heated-Space","SAP-Heating","SAP-Property-Details",true,"bool",0,1,"Hot water cylinder in heated space? Not applicable if combi boiler or instantaneous water heater. ",4,"true - True","1 - True","false - False","0 - False"]
["Is-Hot-Water-Separately-Timed","SAP-Heating","SAP-Property-Details",true,"bool",0,1,"Hot water separately timed? Not applicable if combi boiler or instantaneous water heater. ",4,"true - True","1 - True","false - False","0 - False"]
["Hot-Water-Controls-Manufacturer","SAP-Heating","SAP-Property-Details",true,"str",0,1," ",0]
["Hot-Water-Controls-Model","SAP-Heating","SAP-Property-Details",true,"str",0,1," ",0]
["SAP-Community-Heating-Systems","SAP-Heating","SAP-Property-Details",false,null,0,1," Community heating systems used by the property.",0]
["SAP-Community-Heating-System","SAP-Community-Heating-Systems","SAP-Heating",false,null,1,2," Details of a community system which heats the Main Building.",0]
["Community-Heating-Name","SAP-Community-Heating-System","SAP-Community-Heating-Systems",true,"str",0,1,"The name of the community heating system ",0]
["Community-Heating-CO2-Emission-Factor","SAP-Community-Heating-System","SAP-Community-Heating-Systems",true,"float",0,1,"the community heating CO2 emission factor ",0]
["Community-Heating-Primary-Energy-Factor","SAP-Community-Heating-System","SAP-Community-Heating-Systems",true,"float",0,1,"The community heating Primary Energy Factor ",0]
["Community-Heating-Use","SAP-Community-Heating-System","SAP-Community-Heating-Systems",true,"str",1,1,"Specifies what kind of heating the community system is used for. ",3,"1 - space heating only","2 - water heating only","3 - space and water heating"]
["Is-Community-Heating-Cylinder-In-Dwelling","SAP-Community-Heating-System","SAP-Community-Heating-Systems",true,"bool",0,1,"Community heating, cylinder in dwelling? ",4,"true - True","1 - True","false - False","0 - False"]
["Is-HIU-In-Dwelling","SAP-Community-Heating-System","SAP-Community-Heating-Systems",true,"bool",0,1,"Community heating, HIU in dwelling? ",4,"true - True","1 - True","false - False","0 - False"]
["HIU-Index-Number","SAP-Community-Heating-System","SAP-Community-Heating-Systems",true,"int",0,1,"Heat Interface Unit index number, if present. ",0]
["Community-Heating-Distribution-Type","SAP-Community-Heating-System","SAP-Community-Heating-Systems",true,"str",0,1,"Community heating distribution ",5,"5 - calculated","6 - unknown","7 - Network not compliant with Code of Practice","8 - Network compliant with Code of Practice","9 - Two adjoining dwellings"]
["Community-Heat-Sources","SAP-Community-Heating-System","SAP-Community-Heating-Systems",false,null,0,1,"To be provided when there is no Heat-Network-Index-Number. ",0]
["Community-Heat-Source","Community-Heat-Sources","SAP-Community-Heating-System",false,null,1,5," ",0]
["Heat-Source-Type","Community-Heat-Source","Community-Heat-Sources",true,"str",1,1," ",5,"1 - CHP","2 - boilers","3 - heat pump","4 - waste heat","5 - geothermal"]
["Heat-Fraction","Community-Heat-Source","Community-Heat-Sources",true,"float",1,1,"Fraction of heat for the system provided by this heat source. ",0]
["Fuel-Type","Community-Heat-Source","Community-Heat-Sources",true,"str",1,1," ",43,"1 - Gas: mains gas","2 - Gas: bulk LPG","3 - Gas: bottled LPG","4 - Oil: heating oil","7 - Gas: biogas","8 - LNG","9 - LPG subject to Special Condition 18","10 - Solid fuel: dual fuel appliance (mineral and wood)","11 - Solid fuel: house coal","12 - Solid fuel: manufactured smokeless fuel","15 - Solid fuel: anthracite","20 - Solid fuel: wood logs","21 - Solid fuel: wood chips","22 - Solid fuel: wood pellets (in bags, for secondary heating)","23 - Solid fuel: wood pellets (bulk supply in bags, for main heating)","36 - Electricity: electricity sold to grid","37 - Electricity: electricity displaced from grid","39 - Electricity: electricity, unspecified tariff","41 - Community heating schemes: heat from electric heat pump","42 - Community heating schemes: heat from boilers - waste combustion","43 - Community heating schemes: heat from boilers - biomass","44 - Community heating schemes: heat from boilers - biogas","45 - Community heating schemes: waste heat from power stations","46 - Community heating schemes: geothermal heat source","47 - Community heating schemes: high grade heat recovered from process","48 - Community heating schemes: heat from CHP","49 - Community heating schemes: low grade heat recovered from process","50 - Community heating schemes: electricity for pumping in distribution network","51 - Community heating schemes: heat from mains gas","52 - Community heating schemes: heat from LPG","53 - Community heating schemes: heat from oil","54 - Community heating schemes: heat from coal","55 - Community heating schemes: heat from B30D","56 - Community heating schemes: heat from boilers that can use mineral oil or biodiesel","57 - Community heating schemes: heat from boilers using biodiesel from any biomass source","58 - Community heating schemes: biodiesel from vegetable oil only","71 - biodiesel from any biomass source","72 - biodiesel from used cooking oil only","73 - biodiesel from vegetable oil only","74 - appliances able to use mineral oil or liquid biofuel","75 - B30K","76 - bioethanol from any biomass source","99 - Fuel data from pcdb"]
["PCDF-Fuel-Index","Community-Heat-Source","Community-Heat-Sources",true,"int",0,1," ",0]
["Heat-Efficiency","Community-Heat-Source","Community-Heat-Sources",true,"float",1,1,"Heat efficiency in %. ",0]
["Power-Efficiency","Community-Heat-Source","Community-Heat-Sources",true,"float",0,1,"Power efficiency in %. Include when heat source is CHP. ",0]
["Description","Community-Heat-Source","Community-Heat-Sources",true,"str",0,1," ",0]
["CHP-Electricity-Generation","Community-Heat-Source","Community-Heat-Sources",true,"str",0,1,"CHP Electricity generation options from table 12f. ",9,"81 - New CHP, export only.","82 - New CHP, flexible operation.","83 - New CHP, standard.","84 - Existing CHP (2015+), export only.","85 - Existing CHP (2015+), flexible operation.","86 - Existing CHP (2015+),standard.","87 - Existing CHP (pre-2015), export only.","88 - Existing CHP (pre-2015), flexible operation.","89 - Existing CHP (pre-2015), standard."]
["Community-Heating-Distribution-Loss-Factor","SAP-Community-Heating-System","SAP-Community-Heating-Systems",true,"float",0,1,"Used when Community-Heating-Distribution-Type is calculated. ",0]
["Charging-Linked-To-Heat-Use","SAP-Community-Heating-System","SAP-Community-Heating-Systems",true,"bool",0,1,"Used for hot-water-only systems. ",4,"true - True","1 - True","false - False","0 - False"]
["Heat-Network-Index-Number","SAP-Community-Heating-System","SAP-Community-Heating-Systems",true,"int",0,1,"Index number of heat network, if applicable. ",0]
["Sub-Network-Name","SAP-Community-Heating-System","SAP-Community-Heating-Systems",true,"str",0,1,"The name by which the sub community heat network is known. ",0]
["Heat-Network-Existing","SAP-Community-Heating-System","SAP-Community-Heating-Systems",true,"bool",0,1,"Whether the heat network is existing or new. ",4,"true - True","1 - True","false - False","0 - False"]
["Heat-Network-Assessed-As-New","SAP-Community-Heating-System","SAP-Community-Heating-Systems",true,"bool",0,1,"Whether the heat network is assessed as a new heat network (post June 2022) for Eng with a standalone gas boiler notional building. ",4,"true - True","1 - True","false - False","0 - False"]
["Main-Heating-Details","SAP-Heating","SAP-Property-Details",false,null,1,1," ",0]
["Main-Heating","Main-Heating-Details","SAP-Heating",false,null,1,2," ",0]
["Main-Heating-Number","Main-Heating","Main-Heating-Details",true,"int",1,1,"Identifies the main heating as system 1 or system 2. System 1 must always be present, system 2 is included only when there are two systems. ",0]
["Main-Heating-Category","Main-Heating","Main-Heating-Details",true,"str",1,1,"Category of heating system for the main heating system. ",11,"1 - none","2 - boiler with radiators or underfloor heating","3 - micro-cogeneration","4 - heat pump with radiators or underfloor heating","5 - heat pump with warm air distribution","6 - community heating system","7 - electric storage heaters","8 - electric underfloor heating","9 - warm air system (not heat pump)","10 - room heaters","11 - other system"]
["Main-Heating-Data-Source","Main-Heating","Main-Heating-Details",true,"str",1,1,"Source of main heating system data. ",3,"1 - from database","2 - from manufacturer declaration","3 - from SAP table"]
["Main-Heating-Index-Number","Main-Heating","Main-Heating-Details",true,"int",0,1,"The ID of the heating system from the product database, if system from database. ",0]
["Main-Heating-Manufacturer","Main-Heating","Main-Heating-Details",true,"str",0,1," ",0]
["Main-Heating-Model","Main-Heating","Main-Heating-Details",true,"str",0,1," ",0]
["Main-Heating-Commissioning-Certificate","Main-Heating","Main-Heating-Details",true,"str",0,1," ",0]
["Main-Heating-Installation-Engineer","Main-Heating","Main-Heating-Details",true,"str",0,1,"Main heating installation engineer registration reference. ",0]
["Is-Condensing-Boiler","Main-Heating","Main-Heating-Details",true,"bool",0,1,"Is the boiler a condensing boiler? If boiler efficiency is manufacturer declaration. ",4,"true - True","1 - True","false - False","0 - False"]
["Condensing-Boiler-Heat-Distribution","Main-Heating","Main-Heating-Details",true,"int",0,1,"The temperature distribution of the condensing boiler. ",0]
["Heat-Pump-Heat-Distribution","Main-Heating","Main-Heating-Details",true,"int",0,1,"The temperature distribution of the heat pump, for wet systems only. ",0]
["Gas-Or-Oil-Boiler-Type","Main-Heating","Main-Heating-Details",true,"str",0,1,"Boiler type; if boiler efficiency is manufacturer declaration and fuel is gas or oil. ",4,"1 - regular","2 - combi","3 - CPSU","4 - range cooker"]
["Combi-Boiler-Type","Main-Heating","Main-Heating-Details",true,"str",0,1,"Combi boiler type; if it is a combi boiler and boiler efficiency is manufacturer declaration. ",10,"1 - instantaneous, no store or keep hot","2 - primary storage","3 - secondary storage","4 - CPSU","5 - untimed keep-hot by fuel","6 - timed keep hot by fuel","7 - untimed keep-hot by electricity","8 - timed keep hot by electricity","9 - untimed keep-hot by fuel and electricity","10 - timed keep hot by fuel and electricity"]
["Case-Heat-Emission","Main-Heating","Main-Heating-Details",true,"float",0,1,"Case heat emission at full load in kW; if it is a range cooker boiler and boiler efficiency is manufacturer declaration. ",0]
["Heat-Transfer-To-Water","Main-Heating","Main-Heating-Details",true,"float",0,1,"Heat transfer to water at full load in kW; if it is a range cooker boiler and boiler efficiency is manufacturer declaration. ",0]
["Solid-Fuel-Boiler-Type","Main-Heating","Main-Heating-Details",true,"str",0,1,"Boiler type; if boiler efficiency is manufacturer declaration and fuel is solid. ",4,"1 - independent","2 - open fire","3 - closed room heater","4 - range cooker"]
["Main-Heating-Code","Main-Heating","Main-Heating-Details",true,"int",0,1,"Main heating code; when heating data source is SAP table. ",0]
["Main-Fuel-Type","Main-Heating","Main-Heating-Details",true,"str",0,1,"The type of fuel used to power the central heating e.g. Gas, Electricity; not used if main heating system is community heating scheme. ",43,"1 - Gas: mains gas","2 - Gas: bulk LPG","3 - Gas: bottled LPG","4 - Oil: heating oil","7 - Gas: biogas","8 - LNG","9 - LPG subject to Special Condition 18","10 - Solid fuel: dual fuel appliance (mineral and wood)","11 - Solid fuel: house coal","12 - Solid fuel: manufactured smokeless fuel","15 - Solid fuel: anthracite","20 - Solid fuel: wood logs","21 - Solid fuel: wood chips","22 - Solid fuel: wood pellets (in bags, for secondary heating)","23 - Solid fuel: wood pellets (bulk supply in bags, for main heating)","36 - Electricity: electricity sold to grid","37 - Electricity: electricity displaced from grid","39 - Electricity: electricity, unspecified tariff","41 - Community heating schemes: heat from electric heat pump","42 - Community heating schemes: heat from boilers - waste combustion","43 - Community heating schemes: heat from boilers - biomass","44 - Community heating schemes: heat from boilers - biogas","45 - Community heating schemes: waste heat from power stations","46 - Community heating schemes: geothermal heat source","47 - Community heating schemes: high grade heat recovered from process","48 - Community heating schemes: heat from CHP","49 - Community heating schemes: low grade heat recovered from process","50 - Community heating schemes: electricity for pumping in distribution network","51 - Community heating schemes: heat from mains gas","52 - Community heating schemes: heat from LPG","53 - Community heating schemes: heat from oil","54 - Community heating schemes: heat from coal","55 - Community heating schemes: heat from B30D","56 - Community heating schemes: heat from boilers that can use mineral oil or biodiesel","57 - Community heating schemes: heat from boilers using biodiesel from any biomass source","58 - Community heating schemes: biodiesel from vegetable oil only","71 - biodiesel from any biomass source","72 - biodiesel from used cooking oil only","73 - biodiesel from vegetable oil only","74 - appliances able to use mineral oil or liquid biofuel","75 - B30K","76 - bioethanol from any biomass source","99 - Fuel data from pcdb"]
["PCDF-Fuel-Index","Main-Heating","Main-Heating-Details",true,"int",0,1,"PCDF index number of the fuel type, only if Main-Fuel-Type is 99 (fuel from database). ",0]
["Main-Heating-Control","Main-Heating","Main-Heating-Details",true,"int",1,1,"Type of Main Control for the Heating System. ",0]
["Heat-Emitter-Type","Main-Heating","Main-Heating-Details",true,"str",0,1,"Identifies the means by which the central heating system (if present) emits heat; only when wet system (radiators or underfloor). ",4,"1 - radiators","2 - underfloor","3 - both radiators and underfloor","4 - fan coil units"]
["Underfloor-Heat-Emitter-Type","Main-Heating","Main-Heating-Details",true,"str",0,1,"Means by which an underfloor heating system (if present) emits heat; only when wet system (underfloor). ",3,"1 - in concrete slab","2 - in screed above insulation","3 - in timber floor"]
["Main-Heating-Flue-Type","Main-Heating","Main-Heating-Details",true,"str",0,1,"The type of main heating flue; only if flued appliance. ",5,"1 - open flue","2 - balanced flue","3 - chimney","4 - omitted (boiler is in an outhouse, so its flue arrangements are not relevant)","5 - unknown (there is a flue, but its type could not be determined)"]
["Is-Flue-Fan-Present","Main-Heating","Main-Heating-Details",true,"bool",0,1,"Indicates whether the heating system contains a fan flue; only if boiler. ",4,"true - True","1 - True","false - False","0 - False"]
["Is-Central-Heating-Pump-In-Heated-Space","Main-Heating","Main-Heating-Details",true,"bool",0,1,"Central heating pump in heated space? Only when wet system (radiators or underfloor). ",4,"true - True","1 - True","false - False","0 - False"]
["Is-Oil-Pump-In-Heated-Space","Main-Heating","Main-Heating-Details",true,"bool",0,1,"Oil pump in heated space? Only if oil boiler. ",4,"true - True","1 - True","false - False","0 - False"]
["Is-Interlocked-System","Main-Heating","Main-Heating-Details",true,"bool",0,1,"Interlocked system? Only when wet system (radiators or underfloor). ",4,"true - True","1 - True","false - False","0 - False"]
["Has-Separate-Delayed-Start","Main-Heating","Main-Heating-Details",true,"bool",0,1,"True if there is a delayed start control separate from a controller in the database. ",4,"true - True","1 - True","false - False","0 - False"]
["Boiler-Fuel-Feed","Main-Heating","Main-Heating-Details",true,"str",0,1,"The type of boiler fuel feed; only if solid fuel boiler with manufacturer declaration. ",4,"1 - gravity","2 - manual","3 - screw","4 - other"]
["Is-Main-Heating-HETAS-Approved","Main-Heating","Main-Heating-Details",true,"bool",0,1,"Main heating appliance is HETAS approved? Only if solid fuel. ",4,"true - True","1 - True","false - False","0 - False"]
["Electric-CPSU-Operating-Temperature","Main-Heating","Main-Heating-Details",true,"float",0,1,"Electric CPSU operating temperature in Celcius; only if main heating is electric CPSU. ",0]
["Main-Heating-Fraction","Main-Heating","Main-Heating-Details",true,"float",1,1,"Fraction of main heating provided by this system, is 1 if only one main system. ",0]
["Burner-Control","Main-Heating","Main-Heating-Details",true,"str",0,1," ",5,"1 - unknown","2 - on/off (gas and oil burners)","3 - modulating (gas and oil boilers)","4 - manual (solid fuel boilers)","5 - electrical (solid fuel boilers)"]
["Efficiency-Type","Main-Heating","Main-Heating-Details",true,"str",0,1," ",4,"1 - not gas or oil boiler","2 - SEDBUK(2005)","3 - SEDBUK(2009)","4 - winter and summer"]
["Main-Heating-Efficiency-Winter","Main-Heating","Main-Heating-Details",true,"float",0,1,"To be used if main heating data is manufacturer declaration and Efficiency-Type is winter and summer. ",0]
["Main-Heating-Efficiency-Summer","Main-Heating","Main-Heating-Details",true,"float",0,1,"To be used if main heating data is manufacturer declaration and Efficiency-Type is winter and summer. ",0]
["Main-Heating-Efficiency","Main-Heating","Main-Heating-Details",true,"float",0,1,"If main heating is any system other than heat network. ",0]
["Main-Heating-System-Type","Main-Heating","Main-Heating-Details",true,"str",0,1,"Main heating system type or technology, for e.g., combi boiler, air source heat pump, etc. ",0]
["Has-FGHRS","Main-Heating","Main-Heating-Details",true,"bool",0,1,"Flue Gas Heat Recovery System. ",4,"true - True","1 - True","false - False","0 - False"]
["FGHRS-Index-Number","Main-Heating","Main-Heating-Details",true,"int",0,1,"FGHRS index number; only if FGHRS. ",0]
["FGHRS-Energy-Source","Main-Heating","Main-Heating-Details",false,null,0,1," Details of the main Electricity supply to the Property.",0]
["PV-Arrays","FGHRS-Energy-Source","Main-Heating",false,null,0,1," ",0]
["PV-Array","PV-Arrays","FGHRS-Energy-Source",false,null,1,3," ",0]
["Peak-Power","PV-Array","PV-Arrays",true,"float",1,1,"Peak kW of photovoltaics (PVs) (kWp); 0.0 if none. ",0]
["Orientation","PV-Array","PV-Arrays",true,"str",0,1,"PV orientation; only if peak kWp > 0. ",10,"1 - North","2 - North East","3 - East","4 - South East","5 - South","6 - South West","7 - West","8 - North West","ND - To be used when the pitch is horizontal","NR - not recorded - for backwards compatibility only; do not use"]
["Pitch","PV-Array","PV-Arrays",true,"str",0,1,"PV pitch; only if peak kWp > 0. ",5,"1 - horizontal","2 - 30 degrees","3 - 45 degrees","4 - 60 degrees","5 - vertical"]
["Overshading","PV-Array","PV-Arrays",true,"str",0,1,"PV overshading; only if peak kWp > 0 and no MCS certificate. ",6,"1 - none or very little","2 - modest","3 - significant","4 - heavy","5 - severe","ND - for backwards compatability only; do not use"]
["MCS-Certificate","PV-Array","PV-Arrays",true,"bool",0,1,"Does the installation have a MCS certificate. ",4,"true - True","1 - True","false - False","0 - False"]
["MCS-Certificate-Reference","PV-Array","PV-Arrays",true,"str",0,1,"MCS certificate reference number ",0]
["PV-Panel-Manufacturer-Name","PV-Array","PV-Arrays",true,"str",0,1,"Manufacturer of PV panels ",0]
["Overshading-MCS","PV-Array","PV-Arrays",true,"float",0,1,"Overshading factor calculated according to MCS. ",0]
["Wind-Turbines","FGHRS-Energy-Source","Main-Heating",false,null,0,1," ",0]
["Wind-Turbine","Wind-Turbines","FGHRS-Energy-Source",false,null,1,99," ",0]
["Wind-Turbine-Manufacturer-Name","Wind-Turbine","Wind-Turbines",true,"str",0,1,"Wind turbine manufacturer name. ",0]
["Wind-Turbine-Certificate","Wind-Turbine","Wind-Turbines",true,"str",0,1,"Wind turbine certificate. ",0]
["Wind-Turbine-Rotor-Diameter","Wind-Turbine","Wind-Turbines",true,"float",1,1,"Wind turbine rotor diameter in metres; only if wind turbine. ",0]
["Wind-Turbine-Hub-Height","Wind-Turbine","Wind-Turbines",true,"float",1,1,"Wind turbine hub height above building in metres; only if wind turbine. ",0]
["Electricity-Tariff","FGHRS-Energy-Source","Main-Heating",true,"str",1,1,"Type of electricity tariff. ",6,"1 - standard tariff","2 - off-peak 7 hour","3 - off-peak 10 hour","4 - 24 hour","5 - off-peak 18 hour","ND - not applicable"]
["Hydro-Electric-Generation","FGHRS-Energy-Source","Main-Heating",true,"float",0,1,"Electricity generated by hydro-electric generator, in kWh/year. To be provided if Hydro-Electric-Generation-Month is not provided. ",0]
["Hydro-Electric-Certificate","FGHRS-Energy-Source","Main-Heating",true,"str",0,1,"Reference to certification of hydro electric output. ",0]
["Hydro-Electric-Generation-Months","FGHRS-Energy-Source","Main-Heating",false,null,0,1,"Electricity generated by hydro-electric generator, in kWh/month. To be provided if Hydro-Electric-Generation is not provided. ",0]
["Hydro-Electric-Generation-Month","Hydro-Electric-Generation-Months","FGHRS-Energy-Source",false,null,12,12," ",0]
["Hydro-Month","Hydro-Electric-Generation-Month","Hydro-Electric-Generation-Months",true,"str",1,1," ",12,"Jan - ","Feb - ","Mar - ","Apr - ","May - ","Jun - ","Jul - ","Aug - ","Sep - ","Oct - ","Nov - ","Dec - "]
["Hydro-Value","Hydro-Electric-Generation-Month","Hydro-Electric-Generation-Months",true,"float",1,1,"Hydro electricity in kWh in month. ",0]
["Is-Hydro-Output-Connected-To-Dwelling-Meter","FGHRS-Energy-Source","Main-Heating",true,"bool",0,1,"Whether the hydro-electric station is connected to dwelling's electricity meter ",4,"true - True","1 - True","false - False","0 - False"]
["Main-Heating-Declared-Values","Main-Heating","Main-Heating-Details",false,null,0,1," ",0]
["Efficiency","Main-Heating-Declared-Values","Main-Heating",true,"float",1,1," ",0]
["Make-Model","Main-Heating-Declared-Values","Main-Heating",true,"str",1,1," ",0]
["Test-Method","Main-Heating-Declared-Values","Main-Heating",true,"str",1,1," ",0]
["Storage-Heaters","Main-Heating","Main-Heating-Details",false,null,0,1," ",0]
["Storage-Heater","Storage-Heaters","Main-Heating",false,null,1,4," ",0]
["Number-Of-Heaters","Storage-Heater","Storage-Heaters",true,"int",1,1,"The number of storage heaters with this index number. ",0]
["Index-Number","Storage-Heater","Storage-Heaters",true,"int",1,1,"The index number of the heater from the product database. ",0]
["High-Heat-Retention","Storage-Heater","Storage-Heaters",true,"bool",1,1,"Whether heater is high heat retention type. ",4,"true - True","1 - True","false - False","0 - False"]
["Emitter-Temperature","Main-Heating","Main-Heating-Details",true,"str",0,1,"Gas and oil boilers and heat pump from database: 0, 1, 3 or 4 Other heat pump 0, 2 or 4. Other systems NA. ",6,"0 - unknown","1 - over 45degC","2 - over 35degC","3 - over 35degC and less than or equal to 45degC","4 - less than or equal to 35degC","NA - not applicable for the heating system"]
["MCS-Installed-Heat-Pump","Main-Heating","Main-Heating-Details",true,"bool",0,1,"Whether heat pump was installed under the Microgeneration Certification Scheme. ",4,"true - True","1 - True","false - False","0 - False"]
["Central-Heating-Pump-Age","Main-Heating","Main-Heating-Details",true,"str",0,1,"Included for systems with a central heating pump, i.e. wet system. ",3,"0 - unknown","1 - 2012 or earlier","2 - 2013 or later"]
["Control-Index-Number","Main-Heating","Main-Heating-Details",true,"int",0,1,"The ID of the controller from the product database. ",0]
["Heating-Controller-Function","Main-Heating","Main-Heating-Details",true,"str",0,1," ",0]
["Heating-Controller-Ecodesign-Class","Main-Heating","Main-Heating-Details",true,"str",0,1," ",0]
["Heating-Controller-Manufacturer","Main-Heating","Main-Heating-Details",true,"str",0,1," ",0]
["Heating-Controller-Model","Main-Heating","Main-Heating-Details",true,"str",0,1," ",0]
["SAP-Heating-Design-Water-Use","SAP-Heating","SAP-Property-Details",true,"str",0,1," ",1,"1 - <= 125 litres per person per day"]
["Main-Heating-Systems-Interaction","SAP-Heating","SAP-Property-Details",true,"str",0,1," ",2,"1 - both main heating systems provide heat to the whole property","2 - the main heating systems are separate and heat different parts of the property"]
["Secondary-Heating-Declared-Values","SAP-Heating","SAP-Property-Details",false,null,0,1,"Use when manufacturer's declared values. ",0]
["Efficiency","Secondary-Heating-Declared-Values","SAP-Heating",true,"float",1,1," ",0]
["Make-Model","Secondary-Heating-Declared-Values","SAP-Heating",true,"str",1,1," ",0]
["Test-Method","Secondary-Heating-Declared-Values","SAP-Heating",true,"str",1,1," ",0]
["Primary-Pipework-Insulation","SAP-Heating","SAP-Property-Details",true,"str",0,1,"Not applicable to combi boiler or instantaneous water heater. ",4,"1 - not insulated","2 - first 1 metre from cylinder insulated","3 - all accessible pipework insulated","4 - fully insulated"]
["Solar-Heating-Details","SAP-Heating","SAP-Property-Details",false,null,0,1," ",0]
["Solar-Heating-Collector-Manufacturer","Solar-Heating-Details","SAP-Heating",true,"str",0,1,"Panel manufacturer ",0]
["Solar-Heating-Certificate","Solar-Heating-Details","SAP-Heating",true,"str",0,1,"Solar heating certificate ",0]
["Solar-Panel-Aperture-Area","Solar-Heating-Details","SAP-Heating",true,"float",1,1,"Panel aperture area in square metres. ",0]
["Solar-Panel-Collector-Type","Solar-Heating-Details","SAP-Heating",true,"str",1,1,"Type of solar panel collector. ",4,"1 - unglazed","2 - flat panel","3 - evacuated tube","ND - for backwards compatability only; do not use"]
["Solar-Panel-Collector-Data-Source","Solar-Heating-Details","SAP-Heating",true,"str",1,1,"Source of solar panel collector data. ",3,"1 - default","2 - declared values","ND - for backwards compatability only; do not use"]
["Solar-Panel-Collector-Zero-Loss-Efficiency","Solar-Heating-Details","SAP-Heating",true,"float",0,1,"Collector zero-loss efficiency; only if declared values. ",0]
["Solar-Panel-Collector-Heat-Loss-Rate","Solar-Heating-Details","SAP-Heating",true,"float",0,1,"Collector heat loss rate; for backward compatibility only, do not use. ",0]
["Solar-Panel-Collector-Linear-Heat-Loss-Coefficient","Solar-Heating-Details","SAP-Heating",true,"float",0,1,"Collector linear heat loss coefficient; only if declared values. ",0]
["Solar-Panel-Collector-Second-Order-Heat-Loss-Coefficient","Solar-Heating-Details","SAP-Heating",true,"float",0,1,"Collector 2nd order heat loss coefficient; only if declared values. ",0]
["Solar-Panel-Collector-Orientation","Solar-Heating-Details","SAP-Heating",true,"str",1,1,"Collector orientation. ",10,"1 - North","2 - North East","3 - East","4 - South East","5 - South","6 - South West","7 - West","8 - North West","ND - To be used when the pitch is horizontal","NR - not recorded - for backwards compatibility only; do not use"]
["Solar-Panel-Collector-Pitch","Solar-Heating-Details","SAP-Heating",true,"int",1,1," ",0]
["Solar-Panel-Collector-Overshading","Solar-Heating-Details","SAP-Heating",true,"str",1,1," ",6,"1 - none or very little","2 - modest","3 - significant","4 - heavy","5 - severe","ND - for backwards compatability only; do not use"]
["Has-Solar-Powered-Pump","Solar-Heating-Details","SAP-Heating",true,"bool",1,1," ",4,"true - True","1 - True","false - False","0 - False"]
["Is-Solar-Store-Combined-Cylinder","Solar-Heating-Details","SAP-Heating",true,"bool",1,1," ",4,"true - True","1 - True","false - False","0 - False"]
["Solar-Store-Volume","Solar-Heating-Details","SAP-Heating",true,"float",1,1,"Dedicated solar store volume in litres. ",0]
["Collector-Loop-Efficiency","Solar-Heating-Details","SAP-Heating",true,"float",0,1,"Collector loop efficiency; only if declared values. ",0]
["Incidence-Angle-Modifier","Solar-Heating-Details","SAP-Heating",true,"float",0,1,"Incidence angle modifier; only if declared values. ",0]
["Is-Community-Solar","Solar-Heating-Details","SAP-Heating",true,"bool",1,1," ",4,"true - True","1 - True","false - False","0 - False"]
["Service-Provision","Solar-Heating-Details","SAP-Heating",true,"str",1,1," ",3,"1 - space and water heating","2 - space heating only","3 - water heating only"]
["Overall-Heat-Loss","Solar-Heating-Details","SAP-Heating",true,"float",0,1,"Overall heat loss coefficient of system; only if declared values. ",0]
["Instantaneous-WWHRS","SAP-Heating","SAP-Property-Details",false,null,0,1,"Waste Water Heat Recovery System. ",0]
["WWHRS-Index-Number1","Instantaneous-WWHRS","SAP-Heating",true,"int",1,1," ",0]
["WWHRS-Index-Number2","Instantaneous-WWHRS","SAP-Heating",true,"int",0,1,"Omit if no second system. ",0]
["WWHRS-Efficiency1","Instantaneous-WWHRS","SAP-Heating",true,"float",0,1," ",0]
["WWHRS-Manufacturer1","Instantaneous-WWHRS","SAP-Heating",true,"str",0,1," ",0]
["WWHRS-Model1","Instantaneous-WWHRS","SAP-Heating",true,"str",0,1," ",0]
["WWHRS-Efficiency2","Instantaneous-WWHRS","SAP-Heating",true,"float",0,1," ",0]
["WWHRS-Manufacturer2","Instantaneous-WWHRS","SAP-Heating",true,"str",0,1," ",0]
["WWHRS-Model2","Instantaneous-WWHRS","SAP-Heating",true,"str",0,1," ",0]
["Storage-WWHRS","SAP-Heating","SAP-Property-Details",false,null,0,1," ",0]
["WWHRS-Index-Number","Storage-WWHRS","SAP-Heating",true,"int",1,1," ",0]
["WWHRS-Store-Volume","Storage-WWHRS","SAP-Heating",true,"float",1,1,"Dedicated store volume in litres. ",0]
["Storage-WWHRS-Efficiency","Storage-WWHRS","SAP-Heating",true,"float",0,1," ",0]
["Storage-WWHRS-Manufacturer","Storage-WWHRS","SAP-Heating",true,"str",0,1," ",0]
["Storage-WWHRS-Model","Storage-WWHRS","SAP-Heating",true,"str",0,1," ",0]
["Shower-Outlets","SAP-Heating","SAP-Property-Details",false,null,0,1," Shower outlets present in the dwelling. If there are more than 5 then only include the 5 with the highest flow rates used.",0]
["Shower-Outlet","Shower-Outlets","SAP-Heating",false,null,1,5," Various details for each shower outlet.",0]
["Shower-Outlet-Type","Shower-Outlet","Shower-Outlets",true,"str",1,1,"Hot water type for this shower outlet. ",5,"1 - Vented hot water system","2 - Vented hot water system + pump","3 - Unvented hot water system","4 - Instantaneous electric shower","5 - Part G 2015 compliant"]
["Shower-Flow-Rate","Shower-Outlet","Shower-Outlets",true,"float",0,1,"The flow rate. Only when a shower is not instantaneous electric. Leave blank if NO flow limiter fitted. ",0]
["Shower-Power","Shower-Outlet","Shower-Outlets",true,"float",0,1,"The shower power, only if shower outlet type is instantaneous electric. ",0]
["Shower-WWHRS","Shower-Outlet","Shower-Outlets",true,"str",1,1,"The WWHRS with which the shower is connected. If shower outlet type is instantaneous electric shower then only a storage WWHRS can be selected or none. ",4,"1 - none","2 - Instantaneous WWHRS 1","3 - Instantaneous WWHRS 2","4 - Storage WWHRS"]
["Number-Baths","SAP-Heating","SAP-Property-Details",true,"int",0,1," ",0]
["Number-Baths-WWHRS","SAP-Heating","SAP-Property-Details",true,"int",0,1," ",0]
["SAP-Energy-Source","SAP-Property-Details","SAP10-Data",false,null,0,1," Details of the main Electricity supply to the Property.",0]
["PV-Arrays","SAP-Energy-Source","SAP-Property-Details",false,null,0,1," ",0]
["PV-Array","PV-Arrays","SAP-Energy-Source",false,null,1,3," ",0]
["Peak-Power","PV-Array","PV-Arrays",true,"float",1,1,"Peak kW of photovoltaics (PVs) (kWp); 0.0 if none. ",0]
["Orientation","PV-Array","PV-Arrays",true,"str",0,1,"PV orientation; only if peak kWp > 0. ",10,"1 - North","2 - North East","3 - East","4 - South East","5 - South","6 - South West","7 - West","8 - North West","ND - To be used when the pitch is horizontal","NR - not recorded - for backwards compatibility only; do not use"]
["Pitch","PV-Array","PV-Arrays",true,"str",0,1,"PV pitch; only if peak kWp > 0. ",5,"1 - horizontal","2 - 30 degrees","3 - 45 degrees","4 - 60 degrees","5 - vertical"]
["Overshading","PV-Array","PV-Arrays",true,"str",0,1,"PV overshading; only if peak kWp > 0 and no MCS certificate. ",6,"1 - none or very little","2 - modest","3 - significant","4 - heavy","5 - severe","ND - for backwards compatability only; do not use"]
["MCS-Certificate","PV-Array","PV-Arrays",true,"bool",0,1,"Does the installation have a MCS certificate. ",4,"true - True","1 - True","false - False","0 - False"]
["MCS-Certificate-Reference","PV-Array","PV-Arrays",true,"str",0,1,"MCS certificate reference number ",0]
["PV-Panel-Manufacturer-Name","PV-Array","PV-Arrays",true,"str",0,1,"Manufacturer of PV panels ",0]
["Overshading-MCS","PV-Array","PV-Arrays",true,"float",0,1,"Overshading factor calculated according to MCS. ",0]
["Wind-Turbines","SAP-Energy-Source","SAP-Property-Details",false,null,0,1," ",0]
["Wind-Turbine","Wind-Turbines","SAP-Energy-Source",false,null,1,99," ",0]
["Wind-Turbine-Manufacturer-Name","Wind-Turbine","Wind-Turbines",true,"str",0,1,"Wind turbine manufacturer name. ",0]
["Wind-Turbine-Certificate","Wind-Turbine","Wind-Turbines",true,"str",0,1,"Wind turbine certificate. ",0]
["Wind-Turbine-Rotor-Diameter","Wind-Turbine","Wind-Turbines",true,"float",1,1,"Wind turbine rotor diameter in metres; only if wind turbine. ",0]
["Wind-Turbine-Hub-Height","Wind-Turbine","Wind-Turbines",true,"float",1,1,"Wind turbine hub height above building in metres; only if wind turbine. ",0]
["Electricity-Tariff","SAP-Energy-Source","SAP-Property-Details",true,"str",1,1,"Type of electricity tariff. ",6,"1 - standard tariff","2 - off-peak 7 hour","3 - off-peak 10 hour","4 - 24 hour","5 - off-peak 18 hour","ND - not applicable"]
["Hydro-Electric-Generation","SAP-Energy-Source","SAP-Property-Details",true,"float",0,1,"Electricity generated by hydro-electric generator, in kWh/year. To be provided if Hydro-Electric-Generation-Month is not provided. ",0]
["Hydro-Electric-Certificate","SAP-Energy-Source","SAP-Property-Details",true,"str",0,1,"Reference to certification of hydro electric output. ",0]
["Hydro-Electric-Generation-Months","SAP-Energy-Source","SAP-Property-Details",false,null,0,1,"Electricity generated by hydro-electric generator, in kWh/month. To be provided if Hydro-Electric-Generation is not provided. ",0]
["Hydro-Electric-Generation-Month","Hydro-Electric-Generation-Months","SAP-Energy-Source",false,null,12,12," ",0]
["Hydro-Month","Hydro-Electric-Generation-Month","Hydro-Electric-Generation-Months",true,"str",1,1," ",12,"Jan - ","Feb - ","Mar - ","Apr - ","May - ","Jun - ","Jul - ","Aug - ","Sep - ","Oct - ","Nov - ","Dec - "]
["Hydro-Value","Hydro-Electric-Generation-Month","Hydro-Electric-Generation-Months",true,"float",1,1,"Hydro electricity in kWh in month. ",0]
["Is-Hydro-Output-Connected-To-Dwelling-Meter","SAP-Energy-Source","SAP-Property-Details",true,"bool",0,1,"Whether the hydro-electric station is connected to dwelling's electricity meter ",4,"true - True","1 - True","false - False","0 - False"]
["SAP-Building-Parts","SAP-Property-Details","SAP10-Data",false,null,1,1," Details of the significant building parts that comprise the main habitable building in the property. The main habitable area generally consists of a single main building but can over time be extended to include extensions such as new wings and additional storeys. For the purpose of calculating the overall Energy Assessment for the property details of each distinct Building Part, such as its construction, have to be gathered because different materials have different insulation ratings (obviously) which affects the overall rating.",0]
["SAP-Building-Part","SAP-Building-Parts","SAP-Property-Details",false,null,1,"unbounded"," A permanent structure that forms part of the Property and is built primarily for human habitation. A Building Part is usually made up of one or more Storey's and may contain a number of Internal Structural Features. An extension is also a Building Part.",0]
["Building-Part-Number","SAP-Building-Part","SAP-Building-Parts",true,"int",1,1,"An integer value which uniquely identifies the building part in the property. The value \"1\" must be assigned to the main dwelling. ",0]
["Identifier","SAP-Building-Part","SAP-Building-Parts",true,"str",0,1,"Identifier for the Building part - generally only required if there are more that one Building Parts of the same type e.g. \"West Wing\" and \"East Wing\" Extensions A string containing a unique identifier for something. The underlying assumption is that each instance of a class or entity will have a unique identifier assigned to it which can then be assigned to any referencing entity as a reference to the entity instance. This is a very similar concept to XML ID datatype but is locally defined because of the need to extend the datatype with domain specific attributes.",0]
["Construction-Year","SAP-Building-Part","SAP-Building-Parts",true,"int",0,1,"The year when this building part was constructed. Not used if 'Construction-Age-Band' is used. ",0]
["Construction-Age-Band","SAP-Building-Part","SAP-Building-Parts",true,"str",0,1,"The age band when this building part was constructed. Not used if 'Construction-Year' is used. ",12,"A - England and Wales: before 1900; Scotland: before 1919; Northern Ireland: before 1919","B - England and Wales: 1900-1929; Scotland: 1919-1929; Northern Ireland: 1919-1929","C - England and Wales: 1930-1949; Scotland: 1930-1949; Northern Ireland: 1930-1949","D - England and Wales: 1950-1966; Scotland: 1950-1964; Northern Ireland: 1950-1973","E - England and Wales: 1967-1975; Scotland: 1965-1975; Northern Ireland: 1974-1977","F - England and Wales: 1976-1982; Scotland: 1976-1983; Northern Ireland: 1978-1985","G - England and Wales: 1983-1990; Scotland: 1984-1991; Northern Ireland: 1986-1991","H - England and Wales: 1991-1995; Scotland: 1992-1998; Northern Ireland: 1992-1999","I - England and Wales: 1996-2002; Scotland: 1999-2002; Northern Ireland: 2000-2006","J - England and Wales: 2003-2006; Scotland: 2003-2007; Northern Ireland: not applicable","K - England and Wales: 2007-2011; Scotland: 2008-2011; Northern Ireland: 2007-2013","L - England and Wales: 2012 onwards; Scotland: 2012 onwards; Northern Ireland: 2014 onwards"]
["SAP-Openings","SAP-Building-Part","SAP-Building-Parts",false,null,0,1," Exposed openings that make up a particular Building-Part.",0]
["SAP-Opening","SAP-Openings","SAP-Building-Part",false,null,1,"unbounded"," Various measurements for each exposed opening that makes up a particular Building-Part.",0]
["Name","SAP-Opening","SAP-Openings",true,"str",1,1,"Unique name which identifies this opening. Can be just a number, e.g. \"1\". However, an opening cannot have the same name as a wall. ",0]
["Type","SAP-Opening","SAP-Openings",true,"str",1,1,"The name of the SAP-Opening-Type for this opening. ",0]
["Location","SAP-Opening","SAP-Openings",true,"str",1,1,"Name of the wall or roof which contains the opening. ",0]
["Orientation","SAP-Opening","SAP-Openings",true,"str",1,1,"Compass direction in which the opening faces. ",10,"0 - unknown or unspecified","1 - North","2 - North East","3 - East","4 - South East","5 - South","6 - South West","7 - West","8 - North West","9 - Horizontal (windows and roof windows only)"]
["Width","SAP-Opening","SAP-Openings",true,"float",1,1,"The width of the opening in metres. If the Width field is used to record the opening area, set the Height to 1. ",0]
["Height","SAP-Opening","SAP-Openings",true,"float",1,1,"The height of the opening in metres. If the Height field is used to record the opening area, set the Width to 1. ",0]
["Pitch","SAP-Opening","SAP-Openings",true,"int",0,1,"Pitch of roof containing roof window. ",0]
["SAP-Roofs","SAP-Building-Part","SAP-Building-Parts",false,null,0,1," Exposed roofs that make up a particular Building-Part.",0]
["SAP-Roof","SAP-Roofs","SAP-Building-Part",false,null,1,"unbounded"," Various measurements for each exposed roof that makes up a particular Building-Part.",0]
["Name","SAP-Roof","SAP-Roofs",true,"str",1,1,"Unique name which identifies this roof. Can be just a number, e.g. \"1\". However, a roof cannot have the same name as a wall. ",0]
["Description","SAP-Roof","SAP-Roofs",true,"str",0,1,"Descriptive notes about the roof. String value with a language code for natural-language text.",0]
["Roof-Type","SAP-Roof","SAP-Roofs",true,"str",1,1," ",2,"2 - exposed roof","4 - party ceiling"]
["Total-Roof-Area","SAP-Roof","SAP-Roofs",true,"float",1,1,"Total roof area in square metres, inclusive of any openings. ",0]
["U-Value","SAP-Roof","SAP-Roofs",true,"float",1,1,"Exposed roof U-value. ",0]
["Kappa-Value","SAP-Roof","SAP-Roofs",true,"float",0,1,"Heat capacity per unit area in kJ/m2K. ",0]
["SAP-Floor-Dimensions","SAP-Building-Part","SAP-Building-Parts",false,null,0,1," Storeys that make up a particular Building-Part.",0]
["SAP-Floor-Dimension","SAP-Floor-Dimensions","SAP-Building-Part",false,null,1,"unbounded"," Various measurements for the floor of a particular storey.",0]
["Name","SAP-Floor-Dimension","SAP-Floor-Dimensions",true,"str",0,1,"A name describing the floor dimensioned. ",0]
["Storey","SAP-Floor-Dimension","SAP-Floor-Dimensions",true,"str",1,1,"Building storey on which the floor is located. ",9,"-1 - Lower ground","0 - Ground","1 - 1st","2 - 2nd","3 - 3rd","4 - 4th","5 - 5th","6 - 6th","99 - Roof rooms"]
["Description","SAP-Floor-Dimension","SAP-Floor-Dimensions",true,"str",0,1,"Descriptive notes about the floor. String value with a language code for natural-language text.",0]
["Floor-Type","SAP-Floor-Dimension","SAP-Floor-Dimensions",true,"str",1,1,"Type of floor (exposure). ",4,"1 - basement floor","2 - ground floor","3 - upper floor (if heat loss area > 0, this area is an exposed floor)","4 - party floor"]
["Total-Floor-Area","SAP-Floor-Dimension","SAP-Floor-Dimensions",true,"float",1,1,"The total floor area of the storey in square metres. ",0]
["Storey-Height","SAP-Floor-Dimension","SAP-Floor-Dimensions",true,"float",1,1,"Average height of the storey in metres. ",0]
["Heat-Loss-Area","SAP-Floor-Dimension","SAP-Floor-Dimensions",true,"float",1,1,"The estimated total heat loss area for the floor in square metres. ",0]
["U-Value","SAP-Floor-Dimension","SAP-Floor-Dimensions",true,"float",1,1,"Heat loss floor U-value. ",0]
["Kappa-Value","SAP-Floor-Dimension","SAP-Floor-Dimensions",true,"float",0,1,"Heat capacity of floor per unit area in kJ/m2K. ",0]
["Kappa-Value-From-Below","SAP-Floor-Dimension","SAP-Floor-Dimensions",true,"float",0,1,"Heat capacity of ceiling below. Applies to the non-heat-loss area of an upper floor. ",0]
["SAP-Thermal-Bridges","SAP-Building-Part","SAP-Building-Parts",false,null,0,1," Thermal bridges that make up a particular Building-Part.",0]
["Thermal-Bridge-Code","SAP-Thermal-Bridges","SAP-Building-Part",true,"str",1,1,"Code which indicates how the thermal bridge data has been recorded. ",5,"1 - default","2 - 2002 regulations. For backwards compatibility only, do not use.","3 - accredited. For backwards compatibility only, do not use.","4 - user defined (global y-value)","5 - user defined (individual values)"]
["User-Defined-Y-Value","SAP-Thermal-Bridges","SAP-Building-Part",true,"float",0,1,"Global y-value for all thermal bridges in watts per square metre per kelvin; only if thermal bridge code is: user defined (global y-value) ",0]
["Calculation-Reference","SAP-Thermal-Bridges","SAP-Building-Part",true,"str",0,1,"Reference to the details of the calculation of the global y-value; only if thermal bridging is user defined global y-value. ",0]
["SAP-Thermal-Bridge","SAP-Thermal-Bridges","SAP-Building-Part",false,null,0,"unbounded"," Various measurements for each thermal bridge that makes up a particular Building-Part.",0]
["Thermal-Bridge-Type","SAP-Thermal-Bridge","SAP-Thermal-Bridges",true,"str",1,1,"Code to indicate a particular type of thermal bridge; only if thermal bridge code is: user defined (individual values). ",47,"ND - not defined (for backward compatibility only, do not use)","E1 - Steel lintel with perforated steel base plate","E2 - Other lintels (including other steel lintels)","E3 - Sill","E4 - Jamb","E5 - Ground floor (normal)","E6 - Intermediate floor within a dwelling","E7 - Party floor between dwellings (in blocks of flats)","E8 - Balcony within a dwelling, wall insulation continuous","E9 - Balcony between dwellings, wall insulation continuous","E10 - Eaves (insulation at ceiling level)","E11 - Eaves (insulation at rafter level)","E12 - Gable (insulation at ceiling level)","E13 - Gable (insulation at rafter level)","E14 - Flat roof","E15 - Flat roof with parapet","E16 - Corner (normal)","E17 - Corner (inverted - internal area greater than external area)","E18 - Party wall between dwellings","E19 - Ground floor (inverted)","E20 - Exposed floor (normal)","E21 - Exposed floor (inverted)","E22 - Basement floor","E23 - Balcony within or between dwellings, balcony support penetrates wall insulation","E24 - Eaves (insulation at ceiling level - inverted)","E25 - Staggered party wall between dwellings","P1 - Ground floor","P2 - Intermediate floor within a dwelling","P3 - Intermediate floor between dwellings (in blocks of flats)","P4 - Roof (insulation at ceiling level)","P5 - Roof (insulation at rafter level)","P6 - Ground floor (inverted)","P7 - Exposed floor (normal)","P8 - Exposed floor (inverted)","R1 - Head of roof window","R2 - Sill of roof window","R3 - Jamb of roof window","R4 - Ridge (vaulted ceiling)","R5 - Ridge (inverted)","R6 - Flat ceiling","R7 - Flat ceiling (inverted)","R8 - Roof to wall (rafter)","R9 - Roof to wall (flat ceiling)","R10 - All other roof or room-in-roof junctions","R11 - Upstands or kerbs of rooflights","O1 - other type 1","O2 - other type 2"]
["Length","SAP-Thermal-Bridge","SAP-Thermal-Bridges",true,"float",1,1,"Length of the thermal bridge in metres; only if thermal bridge code is: user defined (individual values). ",0]
["Psi-Value","SAP-Thermal-Bridge","SAP-Thermal-Bridges",true,"float",1,1,"Linear thermal transmittance (psi-value); only if thermal bridging is user defined individual values. ",0]
["Psi-Value-Source","SAP-Thermal-Bridge","SAP-Thermal-Bridges",true,"str",1,1," ",4,"1 - calculated by person with suitable expertise","2 - government-approved scheme","3 - not government-approved scheme","4 - SAP table default"]
["Psi-Value-Calculation-Reference","SAP-Thermal-Bridge","SAP-Thermal-Bridges",true,"str",0,1,"Reference to the details of the calculation of the psi-value. ",0]
["SAP-Walls","SAP-Building-Part","SAP-Building-Parts",false,null,0,1," Exposed walls that make up a particular Storey.",0]
["SAP-Wall","SAP-Walls","SAP-Building-Part",false,null,1,"unbounded"," Various measurements for each wall of a particular storey.",0]
["Name","SAP-Wall","SAP-Walls",true,"str",1,1,"Unique name which identifies this wall within its storey. Can be just a number, e.g. \"1\". However, a wall cannot have the same name as an opening or a roof. ",0]
["Description","SAP-Wall","SAP-Walls",true,"str",0,1,"Descriptive notes about the wall. String value with a language code for natural-language text.",0]
["Wall-Type","SAP-Wall","SAP-Walls",true,"str",1,1,"Type of wall (exposure). ",5,"1 - basement wall","2 - exposed wall","3 - sheltered wall","4 - party wall","5 - internal wall"]
["Total-Wall-Area","SAP-Wall","SAP-Walls",true,"float",1,1,"Total wall area in square metres, inclusive of any openings. ",0]
["U-Value","SAP-Wall","SAP-Walls",true,"float",1,1,"Exposed wall U-value. ",0]
["Is-Curtain-Walling","SAP-Wall","SAP-Walls",true,"bool",0,1,"Whether the wall is curtain walling, i.e. a facade construction consisting of a frame of aluminium vertical and horizontal members, infilled with glazing units and opaque panels. ",4,"true - True","1 - True","false - False","0 - False"]
["Kappa-Value","SAP-Wall","SAP-Walls",true,"float",0,1,"Heat capacity per unit area in kJ/m2K. ",0]
["SAP-Opening-Types","SAP-Property-Details","SAP10-Data",false,null,0,1," Types of exposed openings that make up a particular property. Opening types are used to capture common features shared by multiple openings, to avoid having to record the same data explicitly for each opening.",0]
["SAP-Opening-Type","SAP-Opening-Types","SAP-Property-Details",false,null,1,"unbounded"," Various measurements for a particular type of exposed opening that makes up a particular property. Opening types are used to capture common features shared by multiple openings, to avoid having to record the same data explicitly for each opening.",0]
["Name","SAP-Opening-Type","SAP-Opening-Types",true,"str",1,1,"Unique name which identifies this opening type. Can be just a number, e.g. \"1\". ",0]
["Description","SAP-Opening-Type","SAP-Opening-Types",true,"str",0,1,"Descriptive notes about the opening type. String value with a language code for natural-language text.",0]
["Data-Source","SAP-Opening-Type","SAP-Opening-Types",true,"str",1,1,"The source of the data for this type of opening. ",3,"2 - manufacturer declaration","3 - SAP table","4 - BFRC data"]
["Type","SAP-Opening-Type","SAP-Opening-Types",true,"str",1,1,"The (physical) type of opening that this opening type represents. ",6,"1 - solid door","2 - semi-glazed door","3 - door to corridor","4 - window","5 - roof window","6 - rooflight"]
["Glazing-Type","SAP-Opening-Type","SAP-Opening-Types",true,"str",0,1,"The type of glazing; if U-value is from BFRC or manufacturer declaration, give as one of - single - double - triple. ",13,"1 - not applicable (non-glazed door)","2 - single","3 - double","4 - double low-E hard 0.2","5 - double low-E hard 0.15","6 - double low-E soft 0.1","7 - double low-E soft 0.05","8 - triple","9 - triple low-E hard 0.2","10 - triple low-E hard 0.15","11 - triple low-E soft 0.1","12 - triple low-E soft 0.05","13 - secondary glazing"]
["Glazing-Gap","SAP-Opening-Type","SAP-Opening-Types",true,"str",0,1,"Gap between glass panes; only if SAP table and double, triple glazed or secondary glazing. ",3,"1 - 6 mm","2 - 12 mm","3 - 16 mm or more"]
["IsArgonFilled","SAP-Opening-Type","SAP-Opening-Types",true,"bool",0,1,"Is the opening argon-filled? Only if SAP table. ",4,"true - True","1 - True","false - False","0 - False"]
["IsKryptonFilled","SAP-Opening-Type","SAP-Opening-Types",true,"bool",0,1,"Is the opening krypton-filled? Only if SAP table. ",4,"true - True","1 - True","false - False","0 - False"]
["Frame-Type","SAP-Opening-Type","SAP-Opening-Types",true,"str",0,1,"The type of frame, only if data source is SAP table and it is a window, roof window or half-glazed door. ",9,"1 - wood","2 - PVC","3 - metal no break","4 - metal 4 mm break","5 - metal 8 mm break","6 - metal 12 mm break","7 - metal 20 mm break","8 - metal 32 mm break","9 - unknown"]
["Solar-Transmittance","SAP-Opening-Type","SAP-Opening-Types",true,"float",0,1,"The solar transmittance; not if a door. ",0]
["Frame-Factor","SAP-Opening-Type","SAP-Opening-Types",true,"float",0,1,"The frame factor; not if a door. ",0]
["U-Value","SAP-Opening-Type","SAP-Opening-Types",true,"float",1,1,"The U-value. For rooflights, the U-value should be in the horizontal plane. ",0]
["SAP-Ventilation","SAP-Property-Details","SAP10-Data",false,null,0,1," Details of the means by which the building is ventilated",0]
["Closed-Flues-Count","SAP-Ventilation","SAP-Property-Details",true,"int",1,1,"The number of Closed Flues or chimneys in the Property. ",0]
["Open-Flues-Count","SAP-Ventilation","SAP-Property-Details",true,"int",1,1,"The number of Open Flues in the Property. ",0]
["Boilers-Flues-Count","SAP-Ventilation","SAP-Property-Details",true,"int",1,1,"The number of Boiler Flues or chimneys in the Property. ",0]
["Other-Flues-Count","SAP-Ventilation","SAP-Property-Details",true,"int",1,1,"The number of Other Flues or chimneys in the Property. ",0]
["Open-Chimneys-Count","SAP-Ventilation","SAP-Property-Details",true,"int",1,1,"The number of Open Chimneys in the Property. ",0]
["Blocked-Chimneys-Count","SAP-Ventilation","SAP-Property-Details",true,"int",1,1,"The number of Blocked Chimneys in the Property. ",0]
["Fans-Vents-Count","SAP-Ventilation","SAP-Property-Details",true,"int",0,1,"For backward compatibility only, do not use. ",0]
["Flueless-Gas-Fires-Count","SAP-Ventilation","SAP-Property-Details",true,"int",1,1,"The number of flueless gas fires in the Property. ",0]
["Pressure-Test","SAP-Ventilation","SAP-Property-Details",true,"str",1,1,"Whether there has been a pressure test, or whether an assumed value is used for the air permeability. ",7,"1 - yes (new dwelling, value measured in this dwelling)","2 - yes (new dwelling, design value)","3 - no test, value assumed for calculation (new dwelling)","4 - no test, SAP algorithm used (existing dwelling)","5 - average for other dwellings of the same type (new dwelling)","6 - yes (existing dwelling)","7 - yes (measured value) - low-pressure pulse"]
["Pressure-Test-Certificate-Number","SAP-Ventilation","SAP-Property-Details",true,"str",0,1,"The pressure test certificate number or test engineer reference. ",0]
["Air-Permeability","SAP-Ventilation","SAP-Property-Details",true,"float",0,1,"Air permeability; only if pressure test (yes or assumed). ",0]
["Ground-Floor-Type","SAP-Ventilation","SAP-Property-Details",true,"str",0,1,"The type of ground floor; nly if no pressure test. ",3,"1 - not suspended timber","2 - suspended timber, sealed","3 - suspended timber, unsealed"]
["Wall-Type","SAP-Ventilation","SAP-Property-Details",true,"str",0,1,"The construction of the walls; only if no pressure test. ",2,"1 - steel or timber frame","2 - other"]
["Has-Draught-Lobby","SAP-Ventilation","SAP-Property-Details",true,"bool",0,1,"Is there a draft lobby? Only if no pressure test. ",4,"true - True","1 - True","false - False","0 - False"]
["DraughtStripping","SAP-Ventilation","SAP-Property-Details",true,"float",0,1,"Draughtstripping percentage; only if no pressure test. ",0]
["Sheltered-Sides-Count","SAP-Ventilation","SAP-Property-Details",true,"int",1,1,"The number of sheltered sides in the Property. ",0]
["Ventilation-Type","SAP-Ventilation","SAP-Property-Details",true,"str",1,1,"The type of ventilation. ",10,"1 - natural with intermittent extract fans","2 - natural with passive vents","3 - positive input from loft","4 - positive input from outside","5 - mechanical extract, centralised (MEV c)","6 - mechanical extract, decentralised (MEV dc)","7 - balanced without heat recovery (MV)","8 - balanced with heat recovery (MVHR)","9 - natural with intermittent extract fans and/or passive vents. For backwards compatibility only, do not use.","10 - natural with intermittent extract fans and passive vents"]
["Mechanical-Ventilation-Data-Source","SAP-Ventilation","SAP-Property-Details",true,"str",0,1,"Source of mechanical ventilation data; only if mechanical ventilation. ",3,"1 - from database","2 - from manufacturer declaration","3 - from SAP table"]
["Mechanical-Vent-System-Index-Number","SAP-Ventilation","SAP-Property-Details",true,"int",0,1,"Mechanical vent system index number; if mechanical vent data from database (MEV c, MEV dc, MV, MVHR). ",0]
["Mechanical-Vent-Commissioning-Certificate-Number","SAP-Ventilation","SAP-Property-Details",true,"str",0,1,"Mechanical ventilation Commissioning certificate number . ",0]
["Mechanical-Vent-Installation-Engineer","SAP-Ventilation","SAP-Property-Details",true,"str",0,1,"Mechanical ventilation installation engineer registration reference. ",0]
["Mechanical-Vent-System-Make-Model","SAP-Ventilation","SAP-Property-Details",true,"str",0,1,"Mechanical ventilation system make and model. ",0]
["Wet-Rooms-Count","SAP-Ventilation","SAP-Property-Details",true,"int",0,1,"Number of wet rooms, including the kitchen; if mech vent data from manufacturer declaration or database (MEV c, MV, MVHR). ",0]
["Mechanical-Vent-Specific-Fan-Power","SAP-Ventilation","SAP-Property-Details",true,"float",0,1,"Mechanical vent specific fan power in watts per (litres per second); if mechanical vent data (PIV from outside, MEV c or dc, MV, MVHR). ",0]
["Mechanical-Vent-Heat-Recovery-Efficiency","SAP-Ventilation","SAP-Property-Details",true,"float",0,1,"Mechanical vent heat recovery efficiency percentage; if mechanical vent (MVHR). ",0]
["Mechanical-Vent-Duct-Type","SAP-Ventilation","SAP-Property-Details",true,"str",0,1,"Mechanical vent duct type; if MEV c, MV or MVHR. ",3,"1 - flexible","2 - rigid","3 - semi-rigid"]
["Mechanical-Vent-Duct-Insulation","SAP-Ventilation","SAP-Property-Details",true,"str",0,1,"Mechanical vent duct insulation; if MVHR. ",2,"1 - not insulated","2 - insulated"]
["Mechanical-Vent-Duct-Insulation-Level","SAP-Ventilation","SAP-Property-Details",true,"str",0,1,"Mechanical vent duct insulation; if MVHR. ",2,"1 - level 1","2 - level 2"]
["Mechanical-Vent-Duct-Placement","SAP-Ventilation","SAP-Property-Details",true,"str",0,1,"Mechanical ventilation duct insulation; if MVHR. ",2,"1 - inside heated envelope","2 - outside heated envelope"]
["Mechanical-Vent-Measured-Installation","SAP-Ventilation","SAP-Property-Details",true,"bool",0,1,"Mechanical ventilation SPF measured in situ; if MVHR or balanced. ",4,"true - True","1 - True","false - False","0 - False"]
["Kitchen-Room-Fans-Count","SAP-Ventilation","SAP-Property-Details",true,"int",0,1,"MEV dc, number of fans in room, kitchen; if mechanical vent data from database or manufacturer declaration (MEV dc). ",0]
["Kitchen-Room-Fans-Specific-Power","SAP-Ventilation","SAP-Property-Details",true,"float",0,1,"MEV dc, specific fan power of fans in room, kitchen, in watts per (litres per second); if mechanical vent data from manufacturer declaration (MEV dc). ",0]
["Non-Kitchen-Room-Fans-Count","SAP-Ventilation","SAP-Property-Details",true,"int",0,1,"MEV dc, number of fans in room, rooms other than kitchen; if mechanical vent data from database or manufacturer declaration (MEV dc). ",0]
["Non-Kitchen-Room-Fans-Specific-Power","SAP-Ventilation","SAP-Property-Details",true,"float",0,1,"MEV dc, specific fan power of fans in room, rooms other than kitchen, in watts per (litres per second); if mechanical vent data from manufacturer declaration (MEV dc). ",0]
["Kitchen-Duct-Fans-Count","SAP-Ventilation","SAP-Property-Details",true,"int",0,1,"MEV dc, number of fans via duct, kitchen; if mechanical vent data from database or manufacturer declaration (MEV dc). ",0]
["Kitchen-Duct-Fans-Specific-Power","SAP-Ventilation","SAP-Property-Details",true,"float",0,1,"MEV dc, specific fan power of fans via duct, kitchen, in watts per (litres per second); if mechanical vent data from manufacturer declaration (MEV dc). ",0]
["Non-Kitchen-Duct-Fans-Count","SAP-Ventilation","SAP-Property-Details",true,"int",0,1,"MEV dc, number of fans via duct, rooms other than kitchen; if mechanical vent data from database or manufacturer declaration (MEV dc). ",0]
["Non-Kitchen-Duct-Fans-Specific-Power","SAP-Ventilation","SAP-Property-Details",true,"float",0,1,"MEV dc, specific fan power of fans via duct, rooms other than kitchen, in watts per (litres per second); if mechanical vent data from manufacturer declaration (MEV dc). ",0]
["Kitchen-Wall-Fans-Count","SAP-Ventilation","SAP-Property-Details",true,"int",0,1,"MEV dc, number of fans through wall, kitchen; if mechanical vent data from database or manufacturer declaration (MEV dc). ",0]
["Kitchen-Wall-Fans-Specific-Power","SAP-Ventilation","SAP-Property-Details",true,"float",0,1,"MEV dc, specific fan power of fans through wall, kitchen, in watts per (litres per second); if mechanical vent data from manufacturer declaration (MEV dc). ",0]
["Non-Kitchen-Wall-Fans-Count","SAP-Ventilation","SAP-Property-Details",true,"int",0,1,"MEV dc, number of fans through wall, rooms other than kitchen; if mechanical vent data from database or manufacturer declaration (MEV dc). ",0]
["Non-Kitchen-Wall-Fans-Specific-Power","SAP-Ventilation","SAP-Property-Details",true,"float",0,1,"MEV dc, specific fan power of fans through wall, rooms other than kitchen, in watts per (litres per second); if mechanical vent data from manufacturer declaration (MEV dc). ",0]
["Extract-Fans-Count","SAP-Ventilation","SAP-Property-Details",true,"int",0,1," ",0]
["PSV-Count","SAP-Ventilation","SAP-Property-Details",true,"int",0,1," ",0]
["Is-Mechanical-Vent-Approved-Installer-Scheme","SAP-Ventilation","SAP-Property-Details",true,"bool",0,1," ",4,"true - True","1 - True","false - False","0 - False"]
["Mechanical-Vent-Ducts-Index-Number","SAP-Ventilation","SAP-Property-Details",true,"int",0,1,"Mechanical vent ducts index number; if applicable. ",0]
["SAP-Lighting","SAP-Property-Details","SAP10-Data",false,null,0,1," Details of the main lighting for the property",0]
["Fixed-Lights","SAP-Lighting","SAP-Property-Details",false,null,0,1,"The record of a lighting type within the building. Fixed lighting present in the property.",0]
["Fixed-Light","Fixed-Lights","SAP-Lighting",false,null,1,"unbounded"," Various details for each fixed lighting type in the property.",0]
["Lighting-Efficacy","Fixed-Light","Fixed-Lights",true,"float",1,1,"The efficacy of the lighting type in lumens/Watt. ",0]
["Lighting-Power","Fixed-Light","Fixed-Lights",true,"float",1,1,"The power of the selected lighting type in Watts. ",0]
["Lighting-Outlets","Fixed-Light","Fixed-Lights",true,"int",1,1,"The number of light fitting outlets of that type. ",0]
["SAP-Deselected-Improvements","SAP-Property-Details","SAP10-Data",false,null,0,1," There are 22 possible improvement measures, designated from A to V. This must record measures deselected by DEA (A to V is the full set, only E, N, U and V are considered at the moment for new build).",0]
["Deselected-Improvement-Measure","SAP-Deselected-Improvements","SAP-Property-Details",true,"str",1,"unbounded"," ",37,"A - Loft insulation","A2 - Flat roof insulation","A3 - Room-in-roof insulation","B - Cavity wall insulation","C - Hot water cylinder insulation","D - Draughtproofing","E - Low energy lights","F - Cylinder thermostat","G - Heating controls for wet central heating system","H - Heating controls for warm air system","I - Upgrade boiler, same fuel","J - Biomass boiler","J2 - Biomass boiler as alternative improvement","K - Biomass room heater with boiler","L - New or replacement fan-assisted storage heaters","L2 - New or replacement high heat retention storage heaters","M - Replacement warm-air unit","N - Solar water heating","O - Replacement double glazed windows","O3 - Replacement double glazing units","P - Secondary glazing","Q - Solid wall insulation","Q2 - External insulation with cavity wall insulation","R - Condensing oil boiler","S - Change heating to Band A gas condensing boiler (no fuel switch)","T - Change heating to Band A gas condensing boiler (fuel switch)","T2 - Flue gas heat recovery","U - Photovoltaics","V - Wind turbine (roof mounted)","V2 - Wind turbine (on mast)","W - Floor insulation","X - Insulated doors","Y - Instantaneous waste water heat recovery","Y2 - Storage waste water heat recovery","Z1 - Air or ground source heat pump","Z2 - Air or ground source heat pump with underfloor heating","Z3 - Micro-CHP"]
["SAP-Flat-Details","SAP-Property-Details","SAP10-Data",false,null,0,1," ",0]
["Level","SAP-Flat-Details","SAP-Property-Details",true,"str",1,1,"Indication of where a flat is located in a building. ",4,"0 - basement","1 - ground floor","2 - mid floor","3 - top floor"]
["Storeys","SAP-Flat-Details","SAP-Property-Details",true,"int",1,1,"Count of number of storeys present in the block of flats. ",0]
["SAP-Special-Features","SAP-Property-Details","SAP10-Data",false,null,0,1," ",0]
["SAP-Special-Feature","SAP-Special-Features","SAP-Property-Details",false,null,1,"unbounded"," ",0]
["Description","SAP-Special-Feature","SAP-Special-Features",true,"str",1,1," ",0]
["Energy-Feature","SAP-Special-Feature","SAP-Special-Features",false,null,1,1," ",0]
["Energy-Saved-Or-Generated","Energy-Feature","SAP-Special-Feature",true,"float",1,1,"Energy saved or generated in kWh/year. ",0]
["Saved-Or-Generated-Fuel","Energy-Feature","SAP-Special-Feature",true,"str",0,1," ",43,"1 - Gas: mains gas","2 - Gas: bulk LPG","3 - Gas: bottled LPG","4 - Oil: heating oil","7 - Gas: biogas","8 - LNG","9 - LPG subject to Special Condition 18","10 - Solid fuel: dual fuel appliance (mineral and wood)","11 - Solid fuel: house coal","12 - Solid fuel: manufactured smokeless fuel","15 - Solid fuel: anthracite","20 - Solid fuel: wood logs","21 - Solid fuel: wood chips","22 - Solid fuel: wood pellets (in bags, for secondary heating)","23 - Solid fuel: wood pellets (bulk supply in bags, for main heating)","36 - Electricity: electricity sold to grid","37 - Electricity: electricity displaced from grid","39 - Electricity: electricity, unspecified tariff","41 - Community heating schemes: heat from electric heat pump","42 - Community heating schemes: heat from boilers - waste combustion","43 - Community heating schemes: heat from boilers - biomass","44 - Community heating schemes: heat from boilers - biogas","45 - Community heating schemes: waste heat from power stations","46 - Community heating schemes: geothermal heat source","47 - Community heating schemes: high grade heat recovered from process","48 - Community heating schemes: heat from CHP","49 - Community heating schemes: low grade heat recovered from process","50 - Community heating schemes: electricity for pumping in distribution network","51 - Community heating schemes: heat from mains gas","52 - Community heating schemes: heat from LPG","53 - Community heating schemes: heat from oil","54 - Community heating schemes: heat from coal","55 - Community heating schemes: heat from B30D","56 - Community heating schemes: heat from boilers that can use mineral oil or biodiesel","57 - Community heating schemes: heat from boilers using biodiesel from any biomass source","58 - Community heating schemes: biodiesel from vegetable oil only","71 - biodiesel from any biomass source","72 - biodiesel from used cooking oil only","73 - biodiesel from vegetable oil only","74 - appliances able to use mineral oil or liquid biofuel","75 - B30K","76 - bioethanol from any biomass source","99 - Fuel data from pcdb"]
["Energy-Used","Energy-Feature","SAP-Special-Feature",true,"float",1,1,"Energy used in kWh/year. ",0]
["Energy-Used-Fuel","Energy-Feature","SAP-Special-Feature",true,"str",0,1," ",43,"1 - Gas: mains gas","2 - Gas: bulk LPG","3 - Gas: bottled LPG","4 - Oil: heating oil","7 - Gas: biogas","8 - LNG","9 - LPG subject to Special Condition 18","10 - Solid fuel: dual fuel appliance (mineral and wood)","11 - Solid fuel: house coal","12 - Solid fuel: manufactured smokeless fuel","15 - Solid fuel: anthracite","20 - Solid fuel: wood logs","21 - Solid fuel: wood chips","22 - Solid fuel: wood pellets (in bags, for secondary heating)","23 - Solid fuel: wood pellets (bulk supply in bags, for main heating)","36 - Electricity: electricity sold to grid","37 - Electricity: electricity displaced from grid","39 - Electricity: electricity, unspecified tariff","41 - Community heating schemes: heat from electric heat pump","42 - Community heating schemes: heat from boilers - waste combustion","43 - Community heating schemes: heat from boilers - biomass","44 - Community heating schemes: heat from boilers - biogas","45 - Community heating schemes: waste heat from power stations","46 - Community heating schemes: geothermal heat source","47 - Community heating schemes: high grade heat recovered from process","48 - Community heating schemes: heat from CHP","49 - Community heating schemes: low grade heat recovered from process","50 - Community heating schemes: electricity for pumping in distribution network","51 - Community heating schemes: heat from mains gas","52 - Community heating schemes: heat from LPG","53 - Community heating schemes: heat from oil","54 - Community heating schemes: heat from coal","55 - Community heating schemes: heat from B30D","56 - Community heating schemes: heat from boilers that can use mineral oil or biodiesel","57 - Community heating schemes: heat from boilers using biodiesel from any biomass source","58 - Community heating schemes: biodiesel from vegetable oil only","71 - biodiesel from any biomass source","72 - biodiesel from used cooking oil only","73 - biodiesel from vegetable oil only","74 - appliances able to use mineral oil or liquid biofuel","75 - B30K","76 - bioethanol from any biomass source","99 - Fuel data from pcdb"]
["Air-Change-Rates","Energy-Feature","SAP-Special-Feature",false,null,0,1,"For Appendix Q procedure that provides air change rates. Only one Special Feature can have data on air change rates. ",0]
["Air-Change-Rate","Air-Change-Rates","Energy-Feature",false,null,12,12," ",0]
["Air-Change-Rate-Month","Air-Change-Rate","Air-Change-Rates",true,"str",1,1," ",12,"Jan - ","Feb - ","Mar - ","Apr - ","May - ","Jun - ","Jul - ","Aug - ","Sep - ","Oct - ","Nov - ","Dec - "]
["Air-Change-Rate-Value","Air-Change-Rate","Air-Change-Rates",true,"float",1,1,"Air change rate in month. ",0]
["Emissions-Feature","SAP-Special-Feature","SAP-Special-Features",false,null,1,1," ",0]
["Emissions-Saved","Emissions-Feature","SAP-Special-Feature",true,"float",1,1,"Emissions saved in kg/year. ",0]
["Emissions-Created","Emissions-Feature","SAP-Special-Feature",true,"float",1,1,"Additional emissions in kg/year. ",0]
["Design-Water-Use","SAP-Property-Details","SAP10-Data",true,"str",0,1,"Design limit for total water use. ",1,"1 - <= 125 litres per person per day"]
["SAP-Cooling","SAP-Property-Details","SAP10-Data",false,null,0,1," ",0]
["Cooled-Area","SAP-Cooling","SAP-Property-Details",true,"float",0,1," ",0]
["Cooling-System-Data-Source","SAP-Cooling","SAP-Property-Details",true,"str",0,1," ",3,"1 - from database","2 - from manufacturer declaration","3 - from SAP table"]
["Cooling-System-Class","SAP-Cooling","SAP-Property-Details",true,"str",0,1,"Data set includes either class or SEER, not both. ",12,"A+++ - ","A++ - ","A+ - ","A - ","B - ","C - ","D - ","E - ","F - ","G - ","ND - ","Unknown - "]
["System-Energy-Efficiency-Ratio","SAP-Cooling","SAP-Property-Details",true,"float",0,1,"SEER. ",0]
["PDF","SAP-Report","SAP-Compliance-Report",true,"b64encode",0,1,"DEPRECATED - DO NOT USE This element is allowed for backwards-compatibility but any data sent here will not be read, processed or stored by the register. ",0]
["Insurance-Details","SAP-Report","SAP-Compliance-Report",false,null,0,1," Details of the Professional Indemnity Insurance policy used to provide cover against a compensation claim against any particular Home Condition Report. A particular Home Condition Report may be covered by an Professional Indemnity Insurance policy in one of three different ways: * The Home Inspector has personal Professional Indemnity Insurance and the Home Condition Report is covered by this. * The Home Condition Report is covered by an umbrella Professional Indemnity Insurance policy held by the Home Condition Report Supplier that assigned the inspection to the Home Inspector. * An individual insurance policy is taken out to cover the individual report such as the case where the property is unusual and falls outside the Home Inspectors normal Professional Indemnity Insurance policy. A Home Inspector may use any or all of these methods to providing Professional Indemnity Insurance for a Home Condition Report on a case-by-case basis.",0]
["Insurer","Insurance-Details","SAP-Report",true,"str",1,1,"The name of the insurance company that underwrites / issued the insurance policy ",0]
["Policy-No","Insurance-Details","SAP-Report",true,"str",1,1,"The policy number of the insurance policy ",0]
["Effective-Date","Insurance-Details","SAP-Report",true,"fromisoformat",1,1,"The date that the insurance policy becomes effective (commences cover) ",0]
["Expiry-Date","Insurance-Details","SAP-Report",true,"fromisoformat",1,1,"The date that the insurance policy is supposed to expire. ",0]
["PI-Limit","Insurance-Details","SAP-Report",true,"float",1,1,"The upper limit of the Professional Indemnity cover provided by the insurance policy. Extension of a Decimal value for use with monetary values where a currency code needs to be specified. The currency code is actually metadata about the value so, in line with good XML practice, the Currency Code is declared as an XML-Attribute of the Money datatype rather than as a separate XML-Element. The currency attribute should then include a list of valid currencies codes that are supported.",0]
["ExternalDefinitions-Revision-Number","SAP-Report","SAP-Compliance-Report",true,"str",1,1,"A number indicating the version of related ExternalDefinitions.xsd ",0]
["Client-Name","SAP-Compliance-Report",null,true,"str",1,1,"Name of the client. External to the EPC schema for GDPR purposes. ",0]
["Client-Company","SAP-Compliance-Report",null,true,"str",1,1,"Company name of the client. External to the EPC schema for GDPR purposes. ",0]
["Client-Address","SAP-Compliance-Report",null,false,null,1,1,"Address of the client. External to the EPC schema for GDPR purposes. An address is composed of a number of structured elements such as Postcode, Post-Town, Street etc.",0]
["Address-Line-1","Client-Address","SAP-Compliance-Report",true,"str",1,1," ",0]
["Address-Line-2","Client-Address","SAP-Compliance-Report",true,"str",0,1," ",0]
["Address-Line-3","Client-Address","SAP-Compliance-Report",true,"str",0,1," ",0]
["Post-Town","Client-Address","SAP-Compliance-Report",true,"str",1,1," ",0]
["Postcode","Client-Address","SAP-Compliance-Report",true,"str",1,1,"The Postcode for the Address ",0]
["Is-Multiple-Compliance","SAP-Compliance-Report",null,true,"bool",0,1,"Is the compliance report part of a multiple compliance calculation. ",4,"true - True","1 - True","false - False","0 - False"]